Workbook

Sheet SolCotizacion
B1: Solicitud de Cotización Software Microsoft Enterprise Agreement y Licenciamiento Eduactivo
B3: Versión: 29 | C3: 2023-06-14
B4: Información de la Entidad Compradora
B6: Nombre de la Entidad | E6: xxxxxxxxxx | K6: NIT | M6: xxxxxxxxxx
B8: Dirección de la Entidad | E8: xxxxxxxxxx | K8: Correo de contacto | M8: xxxxxxxxxx
B10: Municipio | E10: xxxxxxxxxx | K10: Teléfono de contacto | M10: xxxxxxxxxx
B12: Nombre funcionario Comprador | E12: xxxxxxxxxx
B16: Solicitud de Cotización
B18: Categoría | E18: ENTERPRISE | I18: Valor TRM | J18: 3898.48 | L18: 2 | M18: Fecha de lanzamiento del evento de cotización | N18: 2024-08-01
I19: Debe ingresar máximo dos decimales.
B20: Productos
A22: *Libros, revistas, cartillas y/o catálogo Segmento 1. | B22: =E18 -> ENTERPRISE
B24: Cantidad de filas:
B25: 1
B27: Item | C27: Código Catálogo | E27: Descripción del Producto | I27: Tipo | J27: Unidad | K27: Zona | L27: Asistencia | M27: Perfil | N27: Número de parte | O27: Forma de Pago | P27: cantidad
A28: =E28&L28 -> Soporte técnico proactivo Remoto | B28: 1 | C28: IT-SW-10-04 | E28: =IFERROR(VLOOKUP($C28&$E$18,Consolidado!$B:$U,9,0),VLOOKUP($C28&"Canal",Consolidado!$B:$U,9,0)) -> Soporte técnico proactivo | I28: =IFERROR(VLOOKUP($C28&$E$18,Consolidado!$B:$U,12,0),VLOOKUP($C28&"Canal",Consolidado!$B:$U,12,0)) -> Servicio | J28: =IFERROR(VLOOKUP($C28&$E$18,Consolidado!$B:$U,10,0),VLOOKUP($C28&"Canal",Consolidado!$B:$U,10,0)) -> Hora | K28: =IFERROR(VLOOKUP($C28&$E$18,Consolidado!$B:$U,13,0),VLOOKUP($C28&"Canal",Consolidado!$B:$U,13,0)) -> Zona 3 | L28: =IFERROR(VLOOKUP($C28&$E$18,Consolidado!$B:$U,14,0),VLOOKUP($C28&"Canal",Consolidado!$B:$U,14,0)) -> Remoto | M28: =IFERROR(VLOOKUP($C28&$E$18,Consolidado!$B:$U,15,0),VLOOKUP($C28&"Canal",Consolidado!$B:$U,15,0)) -> Tecnico,Tecnologo o Profesional | N28: =IFERROR(VLOOKUP($C28&$E$18,Consolidado!$B:$U,16,0),VLOOKUP($C28&"Canal",Consolidado!$B:$U,16,0)) -> 41F-00008APEAEAS | O28: =IFERROR(VLOOKUP($C28&$E$18,Consolidado!$B:$U,17,0),VLOOKUP($C28&"Canal",Consolidado!$B:$U,17,0)) -> Mensual por servicios efectivamente prestados | P28: 290 | Q28: =IFERROR(VLOOKUP($C28&$E$18,Consolidado!$B:$U,5,0),VLOOKUP($C28&"Canal",Consolidado!$B:$U,5,0)) -> CANAL
A29: =E29&L29 -> Soporte técnico reactivo Remoto | B29: 2 | C29: IT-SW-11-06 | E29: =IFERROR(VLOOKUP($C29&$E$18,Consolidado!$B:$U,9,0),VLOOKUP($C29&"Canal",Consolidado!$B:$U,9,0)) -> Soporte técnico reactivo | I29: =IFERROR(VLOOKUP($C29&$E$18,Consolidado!$B:$U,12,0),VLOOKUP($C29&"Canal",Consolidado!$B:$U,12,0)) -> Servicio | J29: =IFERROR(VLOOKUP($C29&$E$18,Consolidado!$B:$U,10,0),VLOOKUP($C29&"Canal",Consolidado!$B:$U,10,0)) -> Hora | K29: =IFERROR(VLOOKUP($C29&$E$18,Consolidado!$B:$U,13,0),VLOOKUP($C29&"Canal",Consolidado!$B:$U,13,0)) -> Zona 1 | L29: =IFERROR(VLOOKUP($C29&$E$18,Consolidado!$B:$U,14,0),VLOOKUP($C29&"Canal",Consolidado!$B:$U,14,0)) -> Remoto | M29: =IFERROR(VLOOKUP($C29&$E$18,Consolidado!$B:$U,15,0),VLOOKUP($C29&"Canal",Consolidado!$B:$U,15,0)) -> Tecnico,Tecnologo o Profesional | N29: =IFERROR(VLOOKUP($C29&$E$18,Consolidado!$B:$U,16,0),VLOOKUP($C29&"Canal",Consolidado!$B:$U,16,0)) -> DDY-00005APEAEAS | O29: =IFERROR(VLOOKUP($C29&$E$18,Consolidado!$B:$U,17,0),VLOOKUP($C29&"Canal",Consolidado!$B:$U,17,0)) -> Mensual por servicios efectivamente prestados | P29: 260 | Q29: =IFERROR(VLOOKUP($C29&$E$18,Consolidado!$B:$U,5,0),VLOOKUP($C29&"Canal",Consolidado!$B:$U,5,0)) -> CANAL
A30: =E30&L30 -> Gerente de cuenta (soporte) Sitio | B30: 3 | C30: IT-SW-06-02 | E30: =IFERROR(VLOOKUP($C30&$E$18,Consolidado!$B:$U,9,0),VLOOKUP($C30&"Canal",Consolidado!$B:$U,9,0)) -> Gerente de cuenta (soporte) | I30: =IFERROR(VLOOKUP($C30&$E$18,Consolidado!$B:$U,12,0),VLOOKUP($C30&"Canal",Consolidado!$B:$U,12,0)) -> Servicio | J30: =IFERROR(VLOOKUP($C30&$E$18,Consolidado!$B:$U,10,0),VLOOKUP($C30&"Canal",Consolidado!$B:$U,10,0)) -> Mes | K30: =IFERROR(VLOOKUP($C30&$E$18,Consolidado!$B:$U,13,0),VLOOKUP($C30&"Canal",Consolidado!$B:$U,13,0)) -> Zona 2 | L30: =IFERROR(VLOOKUP($C30&$E$18,Consolidado!$B:$U,14,0),VLOOKUP($C30&"Canal",Consolidado!$B:$U,14,0)) -> Sitio | M30: =IFERROR(VLOOKUP($C30&$E$18,Consolidado!$B:$U,15,0),VLOOKUP($C30&"Canal",Consolidado!$B:$U,15,0)) -> Profesional | N30: =IFERROR(VLOOKUP($C30&$E$18,Consolidado!$B:$U,16,0),VLOOKUP($C30&"Canal",Consolidado!$B:$U,16,0)) -> SZ6-00032ENTEAEAS | O30: =IFERROR(VLOOKUP($C30&$E$18,Consolidado!$B:$U,17,0),VLOOKUP($C30&"Canal",Consolidado!$B:$U,17,0)) -> Mensual por servicios efectivamente prestados | P30: 1 | Q30: =IFERROR(VLOOKUP($C30&$E$18,Consolidado!$B:$U,5,0),VLOOKUP($C30&"Canal",Consolidado!$B:$U,5,0)) -> CANAL
B31: 1. Si requiere agregue o elimine fila
B34: Gravámenes adicionales*
B35: Si los hay, indique los gravámenes adicionales a los que está sujeta la Orden de Compra. Son gravámenes adicionales por ejemplo; estampillas y demás impuestos territoriales. Los impuestos como ICA y retención en la fuente NO son gravámenes adicionales.
B36: Gravámenes adicionales (estampillas)
B37: No | C37: Descripción | H37: Porcentaje
B38: 1
F39: Total porcentaje: | H39: =SUM(H38:H38) -> 0
D40: Filas a agregar o eliminar Gravámenes:
D41: 1

Sheet Anexo
B1: Con el objetivo de complementar el entendimiento sobre la solicitud de Productos y Servicios Microsoft , por favor diligencie la totalidad de la información que se pide a continuación.
B3: Tenga en cuenta que esta información es de utilidad para que el Proveedor pueda cotizar de la manera más precisa posible los Productos y Servicios Microsoft solicitados, por lo cual la exactitud y completitud es muy importante.
A4: No | B4: Requerimiento adicional | C4: Descripción | D4: INFORMACION SUMINISTRADA POR LA ENTIDAD COMPRADORA
B5: Nombre y Nit de la Entidad Estatal a la cual se le entregará la titularidad de las licencias adquiridas. | D5: 800113672- SECRETARIA DE EDUCACIÓN Y CULTURA
A6: 1 | B6: Lugar de entrega de los Productos y Servicios Microsoft. (Especificar dirección y ciudad de entrega). | D6: DEPARTAMENTO DEL TOLIMA
A7: 2 | B7: Datos Contacto de entrega (Especificar nombre, teléfono y correo electrónico). | D7: LYDA GICELA GARZÓN AREVALO, lyda.garzon@sedtolima.gov.co, 3002134186
A8: 3 | B8: Funciones a realizar el soporte en sitio.
A9: 4 | B9: Área de conocimiento de las personas que prestan el servicio de soporte técnico proactivo.
A10: 5 | B10: Área de conocimiento de las personas que prestan el servicio de soporte técnico reactivo.
A11: 6 | B11: Mecanismo de solicitud del soporte reactivo.
A12: 7 | B12: Especificar que información o que bases de datos se van a migrar. Aplica en el caso que la Entidad Compradora solicite el servicio de migración de información o de bases de datos.
A13: 8 | B13: Actividades del gerente de cuenta.
A14: 9 | B14: Indique número de personas que requieren de capacitación. En caso que la Entidad Compradora solicite el servicio de capacitación usuario final o usuario técnico.
A15: 10 | B15: Especificar características de configuración y descripción de las tareas a realizar. En caso que la Entidad Compradora solicite el servicio de configuración y parametrización.
A16: 12 | B16: Establecer las políticas de respaldo de información.

Sheet ResumenCotizacion
B1: Solicitud de Cotización Software Microsoft Enterprise Agreement y Licenciamiento Eduactivo
B3: =SolCotizacion!B3 -> Versión: 29 | C3: =+SolCotizacion!C3 -> 2023-06-14
B4: Información de la Entidad Compradora
B6: Nombre de la Entidad | E6: xxxxxxxxxx | K6: NIT | M6: xxxxxxxxxx
B8: Dirección de la Entidad | E8: xxxxxxxxxx | K8: Correo de contacto | M8: xxxxxxxxxx
B10: Municipio | E10: xxxxxxxxxx | K10: Teléfono de contacto | M10: xxxxxxxxxx
B12: Nombre funcionario Comprador | E12: xxxxxxxxxx
B16: Solicitud de Cotización
B18: Categoría | E18: ENTERPRISE | I18: Valor TRM | J18: =SolCotizacion!J18 -> 3898.48 | M18: Fecha | N18: =SolCotizacion!N18 -> 2024-08-01
B20: Productos
A22: *Libros, revistas, cartillas y/o catálogo Segmento 1. | B22: =SolCotizacion!B22 -> ENTERPRISE
B24: Cantidad de filas:
B25: 1
B27: Item | C27: Código Catálogo | E27: Descripción del Producto | I27: Tipo | J27: Unidad | K27: Zona | L27: Asistencia | M27: Perfil | N27: Número de parte | O27: Forma de Pago | P27: cantidad | Q27: Precio Unitario | R27: Precio Unitario + Gravamen | S27: Subtotal | T27: IVA | U27: Precio Total
A28: Soporte técnico proactivo Remoto | B28: 1 | C28: IT-SW-10-04 | E28: Soporte técnico proactivo | I28: Servicio | J28: Hora | K28: Zona 3 | L28: Remoto | M28: Tecnico,Tecnologo o Profesional | N28: 41F-00008APEAEAS | O28: Mensual por servicios efectivamente prestados | P28: 290 | Q28: =IFERROR(VLOOKUP("UT SOFT IG3"&$V28&$C28,temp!$A:$Y,19,0),VLOOKUP("Catalogo principal"&$V28&$C28,temp!$A:$Y,19,0)) -> 116250 | R28: =ROUND(Q28/(1-(VLOOKUP("Total porcentaje:",$F:$H,3))),2) -> 116250 | S28: =ROUND(P28*R28,2) -> 33712500 | T28: =IFERROR(ROUND(S28*IF(VLOOKUP("UT SOFT IG3"&$V28&$C28,Consolidado!$A:$U,21,0)=1,19%,0),2),ROUND(S28*IF(VLOOKUP("Catalogo principal"&$V28&$C28,Consolidado!$A:$U,21,0)=1,19%,0),2)) -> 6405375 | U28: =S28+T28 -> 40117875 | V28: =IFERROR(VLOOKUP($C28&$E$18,Consolidado!$B:$U,5,0),VLOOKUP($C28&"Canal",Consolidado!$B:$U,5,0)) -> CANAL
A29: Soporte técnico reactivo Remoto | B29: 2 | C29: IT-SW-11-06 | E29: Soporte técnico reactivo | I29: Servicio | J29: Hora | K29: Zona 1 | L29: Remoto | M29: Tecnico,Tecnologo o Profesional | N29: DDY-00005APEAEAS | O29: Mensual por servicios efectivamente prestados | P29: 260 | Q29: =IFERROR(VLOOKUP("UT SOFT IG3"&$V29&$C29,temp!$A:$Y,19,0),VLOOKUP("Catalogo principal"&$V29&$C29,temp!$A:$Y,19,0)) -> 105000 | R29: =ROUND(Q29/(1-(VLOOKUP("Total porcentaje:",$F:$H,3))),2) -> 105000 | S29: =ROUND(P29*R29,2) -> 27300000 | T29: =IFERROR(ROUND(S29*IF(VLOOKUP("UT SOFT IG3"&$V29&$C29,Consolidado!$A:$U,21,0)=1,19%,0),2),ROUND(S29*IF(VLOOKUP("Catalogo principal"&$V29&$C29,Consolidado!$A:$U,21,0)=1,19%,0),2)) -> 5187000 | U29: =S29+T29 -> 32487000 | V29: =IFERROR(VLOOKUP($C29&$E$18,Consolidado!$B:$U,5,0),VLOOKUP($C29&"Canal",Consolidado!$B:$U,5,0)) -> CANAL
A30: Gerente de cuenta (soporte) Sitio | B30: 3 | C30: IT-SW-06-02 | E30: Gerente de cuenta (soporte) | I30: Servicio | J30: Mes | K30: Zona 2 | L30: Sitio | M30: Profesional | N30: SZ6-00032ENTEAEAS | O30: Mensual por servicios efectivamente prestados | P30: 1 | Q30: =IFERROR(VLOOKUP("UT SOFT IG3"&$V30&$C30,temp!$A:$Y,19,0),VLOOKUP("Catalogo principal"&$V30&$C30,temp!$A:$Y,19,0)) -> 17524500 | R30: =ROUND(Q30/(1-(VLOOKUP("Total porcentaje:",$F:$H,3))),2) -> 17524500 | S30: =ROUND(P30*R30,2) -> 17524500 | T30: =IFERROR(ROUND(S30*IF(VLOOKUP("UT SOFT IG3"&$V30&$C30,Consolidado!$A:$U,21,0)=1,19%,0),2),ROUND(S30*IF(VLOOKUP("Catalogo principal"&$V30&$C30,Consolidado!$A:$U,21,0)=1,19%,0),2)) -> 3329655 | U30: =S30+T30 -> 20854155 | V30: =IFERROR(VLOOKUP($C30&$E$18,Consolidado!$B:$U,5,0),VLOOKUP($C30&"Canal",Consolidado!$B:$U,5,0)) -> CANAL
B31: 1. Si requiere agregue o elimine fila | T31: Valor Total | U31: =ROUND(SUM($U$28:$U$30),2) -> 93459030
B34: Gravámenes adicionales*
B35: Si los hay, indique los gravámenes adicionales a los que está sujeta la Orden de Compra. Son gravámenes adicionales por ejemplo; estampillas y demás impuestos territoriales. Los impuestos como ICA y retención en la fuente NO son gravámenes adicionales.
B36: Gravámenes adicionales (estampillas)
B37: No | C37: Descripción | H37: Porcentaje
B38: 1
F39: Total porcentaje: | H39: =SUM(H38:H38) -> 0
D40: Filas a agregar o eliminar Gravámenes:
D41: 1
... 1 more rows

Sheet Cotizacion
B1: Solicitud de Cotización Software Microsoft Enterprise Agreement y Licenciamiento Eduactivo
B3: =SolCotizacion!B3 -> Versión: 29 | C3: =SolCotizacion!C3 -> 2023-06-14
B4: Información de la Entidad Compradora
B6: Nombre de la Entidad | E6: xxxxxxxxxx | K6: NIT | M6: xxxxxxxxxx
B8: Dirección de la Entidad | E8: xxxxxxxxxx | K8: Correo de contacto | M8: xxxxxxxxxx
B10: Municipio | E10: xxxxxxxxxx | K10: Teléfono de contacto | M10: xxxxxxxxxx
B12: Nombre funcionario Comprador | E12: xxxxxxxxxx
B16: Solicitud de Cotización
B18: Categoría | E18: ENTERPRISE | I18: Valor TRM | J18: =SolCotizacion!J18 -> 3898.48 | M18: Fecha | N18: =SolCotizacion!N18 -> 2024-08-01
B20: Productos
A22: *Libros, revistas, cartillas y/o catálogo Segmento 1. | B22: =SolCotizacion!B22 -> ENTERPRISE
B24: Cantidad de filas:
B25: 1 | L25: Proveedor | N25: UT SOFT IG3
B27: Item | C27: Código Catálogo | E27: Descripción del Producto | I27: Tipo | J27: Unidad | K27: Zona | L27: Asistencia | M27: Perfil | N27: Número de parte | O27: Forma de Pago | P27: cantidad | Q27: Precio Unitario | R27: Precio Unitario + Gravamen | S27: Descuento adicional | T27: Precio con Descuento | U27: Subtotal | V27: IVA | W27: Vr IVA | X27: Precio Total
A28: Soporte técnico proactivo Remoto | B28: 1 | C28: IT-SW-10-04 | E28: Soporte técnico proactivo | I28: Servicio | J28: Hora | K28: Zona 3 | L28: Remoto | M28: Tecnico,Tecnologo o Profesional | N28: 41F-00008APEAEAS | O28: Mensual por servicios efectivamente prestados | P28: 290 | Q28: =IFERROR(VLOOKUP($N$25&$Y28&$C28,temp!$A:$Y,19,0),VLOOKUP("Catalogo principal"&$Y28&$C28,temp!$A:$Y,19,0)) -> 116250 | R28: =ROUND(Q28/(1-(VLOOKUP("Total porcentaje:",$F:$H,3))),2) -> 116250 | T28: =ROUND(R28*(1-S28),2) -> 116250 | U28: =ROUND(P28*T28,2) -> 33712500 | V28: Si | W28: =IF(V28="Si",U28*19%,0) -> 6405375 | X28: =U28+W28 -> 40117875 | Y28: =IFERROR(VLOOKUP($C28&$E$18,Consolidado!$B:$U,5,0),VLOOKUP($C28&"Canal",Consolidado!$B:$U,5,0)) -> CANAL
A29: Soporte técnico reactivo Remoto | B29: 2 | C29: IT-SW-11-06 | E29: Soporte técnico reactivo | I29: Servicio | J29: Hora | K29: Zona 1 | L29: Remoto | M29: Tecnico,Tecnologo o Profesional | N29: DDY-00005APEAEAS | O29: Mensual por servicios efectivamente prestados | P29: 260 | Q29: =IFERROR(VLOOKUP($N$25&$Y29&$C29,temp!$A:$Y,19,0),VLOOKUP("Catalogo principal"&$Y29&$C29,temp!$A:$Y,19,0)) -> 105000 | R29: =ROUND(Q29/(1-(VLOOKUP("Total porcentaje:",$F:$H,3))),2) -> 105000 | T29: =ROUND(R29*(1-S29),2) -> 105000 | U29: =ROUND(P29*T29,2) -> 27300000 | V29: Si | W29: =IF(V29="Si",U29*19%,0) -> 5187000 | X29: =U29+W29 -> 32487000 | Y29: =IFERROR(VLOOKUP($C29&$E$18,Consolidado!$B:$U,5,0),VLOOKUP($C29&"Canal",Consolidado!$B:$U,5,0)) -> CANAL
A30: Gerente de cuenta (soporte) Sitio | B30: 3 | C30: IT-SW-06-02 | E30: Gerente de cuenta (soporte) | I30: Servicio | J30: Mes | K30: Zona 2 | L30: Sitio | M30: Profesional | N30: SZ6-00032ENTEAEAS | O30: Mensual por servicios efectivamente prestados | P30: 1 | Q30: =IFERROR(VLOOKUP($N$25&$Y30&$C30,temp!$A:$Y,19,0),VLOOKUP("Catalogo principal"&$Y30&$C30,temp!$A:$Y,19,0)) -> 17524500 | R30: =ROUND(Q30/(1-(VLOOKUP("Total porcentaje:",$F:$H,3))),2) -> 17524500 | T30: =ROUND(R30*(1-S30),2) -> 17524500 | U30: =ROUND(P30*T30,2) -> 17524500 | V30: Si | W30: =IF(V30="Si",U30*19%,0) -> 3329655 | X30: =U30+W30 -> 20854155 | Y30: =IFERROR(VLOOKUP($C30&$E$18,Consolidado!$B:$U,5,0),VLOOKUP($C30&"Canal",Consolidado!$B:$U,5,0)) -> CANAL
B31: 1. Si requiere agregue o elimine fila | W31: Valor Total | X31: =ROUND(SUM($X$28:$X$30),2) -> 93459030
B34: Gravámenes adicionales*
B35: Si los hay, indique los gravámenes adicionales a los que está sujeta la Orden de Compra. Son gravámenes adicionales por ejemplo; estampillas y demás impuestos territoriales. Los impuestos como ICA y retención en la fuente NO son gravámenes adicionales.
B36: Gravámenes adicionales (estampillas)
B37: No | C37: Descripción | H37: Porcentaje
B38: 1
F39: Total porcentaje: | H39: =SUM(H38:H38) -> 0
D40: Filas a agregar o eliminar Gravámenes:
D41: 1

Sheet CSV (hidden)
A1: Tipo | B1: Cantidad | C1: CÃ³digo de unidad de medida* | D1: Precio base | E1: Divisa | F1: DescripciÃ³n | G1: MercancÃ­a
A2: item | B2: 5 | C2: Und | D2: "563000" | E2: COP | F2: wms01--IT-SW-01-06 CapacitaciÃ³n para usuario final - hasta 10 Personas.
A3: item | B3: 5 | C3: Und | D3: "136500" | E3: COP | F3: wms01--UUH-00001EAEASAP Microsoft D365 Human Resources Attach Subscription to D365 Base SKU Per User_EA_EAS_AP
A4: item | B4: 1 | C4: Und | D4: "664525" | E4: COP | F4: wms01--IVA

Sheet Categorias (hidden)
A1: Categoría 1 | B1: Sistema Operativo, Plataforma, Nube e Infraestructura y Desarrollo Aplicaciones (Open – CSP)
A2: Categoría 2 | B2: Productividad Administración y análisis de datos (Open - CSP)
A3: Categoría 3 | B3: Movilidad (Open - CSP)
A4: Categoría 4 | B4: Aplicaciones empresariales (Open - CSP)
A5: Categoría 5 | B5: Campus (Educativo)
A6: Categoría 6 | B6: OVS (Educativo)
A7: Categoría 7 | B7: Open - CSP (Educativo)

Sheet Consolidado (hidden)
A1: LLAVE | B1: TEMP1 | C1: TEMP2 | D1: PROVEEDOR | E1: Código matriz Colombia Compra Eficiente | F1: categoria | G1: PROVEEDOR2 | H1: Moneda | I1: Parametrización de los Servicios | J1: Nombre Producto | K1: Unidad de Medida | L1: Unidad TVEC | M1: Tipo | N1: Zona | O1: Asistencia | P1: Perfil | Q1: Número de parte | R1: Forma de Pago | S1: Precio | T1: Activo | U1: IVA | V1: Moneda | X1: Familia
A2: =D2&F2&E2 -> Catalogo principalEDUCATIVO125-00110AP | B2: =E2&F2 -> 125-00110APEDUCATIVO | D2: Catalogo principal | E2: 125-00110AP | F2: EDUCATIVO | G2: =D2 -> Catalogo principal | H2: USD | I2: N/A | J2: Microsoft® Azure DevOps Server All Languages License & Software Assurance_Additional Product | K2: Unidad | L2: Und | M2: License/Software Assurance | N2: N/A | O2: N/A | P2: EES ACADEMICO | Q2: 125-00110AP | R2: Suscripción Anual | S2: 41 | T2: 1 | U2: 0 | V2: USD
A3: Catalogo principalEDUCATIVO126-00156AP | B3: =E3&F3 -> 126-00156APEDUCATIVO | D3: Catalogo principal | E3: 126-00156AP | F3: EDUCATIVO | G3: =D3 -> Catalogo principal | H3: USD | I3: N/A | J3: Microsoft® Azure DevOps Server CAL All Languages License & Software Assurance Device CAL_Additional Product | K3: Unidad | L3: Und | M3: License/Software Assurance | N3: N/A | O3: N/A | P3: EES ACADEMICO | Q3: 126-00156AP | R3: Suscripción Anual | S3: 41 | T3: 1 | U3: 0 | V3: USD
A4: Catalogo principalEDUCATIVO228-04437AP | B4: 228-04437APEDUCATIVO | D4: Catalogo principal | E4: 228-04437AP | F4: EDUCATIVO | G4: Catalogo principal | H4: USD | I4: N/A | J4: Microsoft® SQL Server Standard All Languages License & Software Assurance_Additional Product | K4: Unidad | L4: Und | M4: License/Software Assurance | N4: N/A | O4: N/A | P4: EES ACADEMICO | Q4: 228-04437AP | R4: Suscripción Anual | S4: 104 | T4: 1 | U4: 0 | V4: USD
A5: Catalogo principalEDUCATIVO2ER-00003AP | B5: 2ER-00003APEDUCATIVO | D5: Catalogo principal | E5: 2ER-00003AP | F5: EDUCATIVO | G5: Catalogo principal | H5: USD | I5: N/A | J5: Microsoft® Defender Cloud Apps Subscription Per User Education_Additional Product | K5: Unidad | L5: Und | M5: Monthly Subscriptions | N5: N/A | O5: N/A | P5: EES ACADEMICO | Q5: 2ER-00003AP | R5: Suscripción mensual con pago anual | S5: 0.9 | T5: 1 | U5: 0 | V5: USD
A6: Catalogo principalEDUCATIVO2ER-00003STU | B6: 2ER-00003STUEDUCATIVO | D6: Catalogo principal | E6: 2ER-00003STU | F6: EDUCATIVO | G6: Catalogo principal | H6: USD | I6: N/A | J6: Microsoft® Defender Cloud Apps Subscription Per User Education_Student | K6: Unidad | L6: Und | M6: Monthly Subscriptions | N6: N/A | O6: N/A | P6: EES ACADEMICO | Q6: 2ER-00003STU | R6: Suscripción mensual con pago anual | S6: 0.5 | T6: 1 | U6: 0 | V6: USD
A7: Catalogo principalEDUCATIVO2ZA-00001SUB | B7: 2ZA-00001SUBEDUCATIVO | D7: Catalogo principal | E7: 2ZA-00001SUB | F7: EDUCATIVO | G7: Catalogo principal | H7: USD | I7: N/A | J7: Microsoft® Minecraft Education (M365 A5) Subscription Student Use Benefit Per User | K7: Unidad | L7: Und | M7: Monthly Subscriptions | N7: N/A | O7: N/A | P7: EES ACADEMICO | Q7: 2ZA-00001SUB | R7: Suscripción mensual con pago anual | S7: 0 | T7: 1 | U7: 0 | V7: USD
A8: Catalogo principalEDUCATIVO2ZA-00002AP | B8: 2ZA-00002APEDUCATIVO | D8: Catalogo principal | E8: 2ZA-00002AP | F8: EDUCATIVO | G8: Catalogo principal | H8: USD | I8: N/A | J8: Microsoft® Minecraft Education (M365 A5) Subscription Per User_Additional Product | K8: Unidad | L8: Und | M8: Monthly Subscriptions | N8: N/A | O8: N/A | P8: EES ACADEMICO | Q8: 2ZA-00002AP | R8: Suscripción mensual con pago anual | S8: 0.42 | T8: 1 | U8: 0 | V8: USD
A9: Catalogo principalEDUCATIVO2ZA-00002FAC | B9: 2ZA-00002FACEDUCATIVO | D9: Catalogo principal | E9: 2ZA-00002FAC | F9: EDUCATIVO | G9: Catalogo principal | H9: USD | I9: N/A | J9: Microsoft® Minecraft Education (M365 A5) Subscription Per User_Faculty | K9: Unidad | L9: Und | M9: Monthly Subscriptions | N9: N/A | O9: N/A | P9: EES ACADEMICO | Q9: 2ZA-00002FAC | R9: Suscripción mensual con pago anual | S9: 1.1 | T9: 1 | U9: 0 | V9: USD
A10: Catalogo principalEDUCATIVO2ZA-00002STU | B10: 2ZA-00002STUEDUCATIVO | D10: Catalogo principal | E10: 2ZA-00002STU | F10: EDUCATIVO | G10: Catalogo principal | H10: USD | I10: N/A | J10: Microsoft® Minecraft Education (M365 A5) Subscription Per User_Student | K10: Unidad | L10: Und | M10: Monthly Subscriptions | N10: N/A | O10: N/A | P10: EES ACADEMICO | Q10: 2ZA-00002STU | R10: Suscripción mensual con pago anual | S10: 0.42 | T10: 1 | U10: 0 | V10: USD
A11: Catalogo principalEDUCATIVO312-02177AP | B11: 312-02177APEDUCATIVO | D11: Catalogo principal | E11: 312-02177AP | F11: EDUCATIVO | G11: Catalogo principal | H11: USD | I11: N/A | J11: Microsoft® Exchange Server Standard All Languages License & Software Assurance_Additional Product | K11: Unidad | L11: Und | M11: License/Software Assurance | N11: N/A | O11: N/A | P11: EES ACADEMICO | Q11: 312-02177AP | R11: Suscripción Anual | S11: 75 | T11: 1 | U11: 0 | V11: USD
A12: Catalogo principalEDUCATIVO32M-00001AP | B12: 32M-00001APEDUCATIVO | D12: Catalogo principal | E12: 32M-00001AP | F12: EDUCATIVO | G12: Catalogo principal | H12: USD | I12: N/A | J12: Microsoft® MyAnalytics Edu Subscription Per User_Additional Product | K12: Unidad | L12: Und | M12: Monthly Subscriptions | N12: N/A | O12: N/A | P12: EES ACADEMICO | Q12: 32M-00001AP | R12: Suscripción mensual con pago anual | S12: 1.5 | T12: 1 | U12: 0 | V12: USD
A13: Catalogo principalEDUCATIVO32M-00001STU | B13: 32M-00001STUEDUCATIVO | D13: Catalogo principal | E13: 32M-00001STU | F13: EDUCATIVO | G13: Catalogo principal | H13: USD | I13: N/A | J13: Microsoft® MyAnalytics Edu Subscription Per User_Student | K13: Unidad | L13: Und | M13: Monthly Subscriptions | N13: N/A | O13: N/A | P13: EES ACADEMICO | Q13: 32M-00001STU | R13: Suscripción mensual con pago anual | S13: 1.12 | T13: 1 | U13: 0 | V13: USD
A14: Catalogo principalEDUCATIVO359-00765AP | B14: 359-00765APEDUCATIVO | D14: Catalogo principal | E14: 359-00765AP | F14: EDUCATIVO | G14: Catalogo principal | H14: USD | I14: N/A | J14: Microsoft® SQL CAL All Languages License & Software Assurance Device CAL_Additional Product | K14: Unidad | L14: Und | M14: License/Software Assurance | N14: N/A | O14: N/A | P14: EES ACADEMICO | Q14: 359-00765AP | R14: Suscripción Anual | S14: 25 | T14: 1 | U14: 0 | V14: USD
A15: Catalogo principalEDUCATIVO359-00765FAC | B15: 359-00765FACEDUCATIVO | D15: Catalogo principal | E15: 359-00765FAC | F15: EDUCATIVO | G15: Catalogo principal | H15: USD | I15: N/A | J15: Microsoft® SQL CAL All Languages License & Software Assurance Device CAL_Faculty | K15: Unidad | L15: Und | M15: License/Software Assurance | N15: N/A | O15: N/A | P15: EES ACADEMICO | Q15: 359-00765FAC | R15: Suscripción Anual | S15: 9 | T15: 1 | U15: 0 | V15: USD
A16: Catalogo principalEDUCATIVO359-00765STU | B16: 359-00765STUEDUCATIVO | D16: Catalogo principal | E16: 359-00765STU | F16: EDUCATIVO | G16: Catalogo principal | H16: USD | I16: N/A | J16: Microsoft® SQL CAL All Languages License & Software Assurance Device CAL_Student | K16: Unidad | L16: Und | M16: License/Software Assurance | N16: N/A | O16: N/A | P16: EES ACADEMICO | Q16: 359-00765STU | R16: Suscripción Anual | S16: 9 | T16: 1 | U16: 0 | V16: USD
A17: Catalogo principalEDUCATIVO381-01587FAC | B17: 381-01587FACEDUCATIVO | D17: Catalogo principal | E17: 381-01587FAC | F17: EDUCATIVO | G17: Catalogo principal | H17: USD | I17: N/A | J17: Microsoft® Exchange Standard CAL All Languages License & Software Assurance Device CAL_Faculty | K17: Unidad | L17: Und | M17: License/Software Assurance | N17: N/A | O17: N/A | P17: EES ACADEMICO | Q17: 381-01587FAC | R17: Suscripción Anual | S17: 2.96 | T17: 1 | U17: 0 | V17: USD
A18: Catalogo principalEDUCATIVO381-01587STU | B18: 381-01587STUEDUCATIVO | D18: Catalogo principal | E18: 381-01587STU | F18: EDUCATIVO | G18: Catalogo principal | H18: USD | I18: N/A | J18: Microsoft® Exchange Standard CAL All Languages License & Software Assurance Device CAL_Student | K18: Unidad | L18: Und | M18: License/Software Assurance | N18: N/A | O18: N/A | P18: EES ACADEMICO | Q18: 381-01587STU | R18: Suscripción Anual | S18: 0.78 | T18: 1 | U18: 0 | V18: USD
A19: Catalogo principalEDUCATIVO395-02412AP | B19: 395-02412APEDUCATIVO | D19: Catalogo principal | E19: 395-02412AP | F19: EDUCATIVO | G19: Catalogo principal | H19: USD | I19: N/A | J19: Microsoft® Exchange Server Enterprise All Languages License & Software Assurance_Additional Product | K19: Unidad | L19: Und | M19: License/Software Assurance | N19: N/A | O19: N/A | P19: EES ACADEMICO | Q19: 395-02412AP | R19: Suscripción Anual | S19: 426 | T19: 1 | U19: 0 | V19: USD
A20: Catalogo principalEDUCATIVO395-03039AP | B20: 395-03039APEDUCATIVO | D20: Catalogo principal | E20: 395-03039AP | F20: EDUCATIVO | G20: Catalogo principal | H20: USD | I20: N/A | J20: Microsoft® Exchange Server Enterprise All Languages SA Step-up Exchg Svr - Std_Additional Product | K20: Unidad | L20: Und | M20: SA Step Up | N20: N/A | O20: N/A | P20: EES ACADEMICO | Q20: 395-03039AP | R20: Suscripción Anual | S20: 352 | T20: 1 | U20: 0 | V20: USD
A21: Catalogo principalEDUCATIVO3ND-00524FAC | B21: 3ND-00524FACEDUCATIVO | D21: Catalogo principal | E21: 3ND-00524FAC | F21: EDUCATIVO | G21: Catalogo principal | H21: USD | I21: N/A | J21: Microsoft® System Center Service Manager All Languages License & Software Assurance Per OSE_Faculty | K21: Unidad | L21: Und | M21: License/Software Assurance | N21: N/A | O21: N/A | P21: EES ACADEMICO | Q21: 3ND-00524FAC | R21: Suscripción Anual | S21: 1.25 | T21: 1 | U21: 0 | V21: USD
A22: Catalogo principalEDUCATIVO1SC-00005AP | B22: 1SC-00005APEDUCATIVO | D22: Catalogo principal | E22: 1SC-00005AP | F22: EDUCATIVO | G22: Catalogo principal | H22: USD | I22: N/A | J22: Microsoft® D365 Project Operations FSA Edu Subscription Per User From SA From VL/DPL_Additional Product | K22: Unidad | L22: Und | M22: Monthly Subscriptions | N22: N/A | O22: N/A | P22: EES ACADEMICO | Q22: 1SC-00005AP | R22: Suscripción mensual con pago anual | S22: 52.8 | T22: 1 | U22: 0 | V22: USD
A23: Catalogo principalEDUCATIVO1SC-00005STU | B23: 1SC-00005STUEDUCATIVO | D23: Catalogo principal | E23: 1SC-00005STU | F23: EDUCATIVO | G23: Catalogo principal | H23: USD | I23: N/A | J23: Microsoft® D365 Project Operations FSA Edu Subscription Per User From SA From VL/DPL_Student | K23: Unidad | L23: Und | M23: Monthly Subscriptions | N23: N/A | O23: N/A | P23: EES ACADEMICO | Q23: 1SC-00005STU | R23: Suscripción mensual con pago anual | S23: 38.4 | T23: 1 | U23: 0 | V23: USD
A24: Catalogo principalEDUCATIVO1SJ-00005AP | B24: 1SJ-00005APEDUCATIVO | D24: Catalogo principal | E24: 1SJ-00005AP | F24: EDUCATIVO | G24: Catalogo principal | H24: USD | I24: N/A | J24: Microsoft® D365 Project Operations Attach FSA Edu Subscription Per User From SA From VL/DPL_Additional Product | K24: Unidad | L24: Und | M24: Monthly Subscriptions | N24: N/A | O24: N/A | P24: EES ACADEMICO | Q24: 1SJ-00005AP | R24: Suscripción mensual con pago anual | S24: 13.2 | T24: 1 | U24: 0 | V24: USD
A25: Catalogo principalEDUCATIVO1SJ-00005STU | B25: 1SJ-00005STUEDUCATIVO | D25: Catalogo principal | E25: 1SJ-00005STU | F25: EDUCATIVO | G25: Catalogo principal | H25: USD | I25: N/A | J25: Microsoft® D365 Project Operations Attach FSA Edu Subscription Per User From SA From VL/DPL_Student | K25: Unidad | L25: Und | M25: Monthly Subscriptions | N25: N/A | O25: N/A | P25: EES ACADEMICO | Q25: 1SJ-00005STU | R25: Suscripción mensual con pago anual | S25: 9.6 | T25: 1 | U25: 0 | V25: USD
A26: Catalogo principalEDUCATIVO1SA-00007AP | B26: 1SA-00007APEDUCATIVO | D26: Catalogo principal | E26: 1SA-00007AP | F26: EDUCATIVO | G26: Catalogo principal | H26: USD | I26: N/A | J26: Microsoft® D365 Project Operations Edu Subscription Per User_Additional Product | K26: Unidad | L26: Und | M26: Monthly Subscriptions | N26: N/A | O26: N/A | P26: EES ACADEMICO | Q26: 1SA-00007AP | R26: Suscripción mensual con pago anual | S26: 65.99 | T26: 1 | U26: 0 | V26: USD
A27: Catalogo principalEDUCATIVO1SA-00007STU | B27: 1SA-00007STUEDUCATIVO | D27: Catalogo principal | E27: 1SA-00007STU | F27: EDUCATIVO | G27: Catalogo principal | H27: USD | I27: N/A | J27: Microsoft® D365 Project Operations Edu Subscription Per User_Student | K27: Unidad | L27: Und | M27: Monthly Subscriptions | N27: N/A | O27: N/A | P27: EES ACADEMICO | Q27: 1SA-00007STU | R27: Suscripción mensual con pago anual | S27: 47.99 | T27: 1 | U27: 0 | V27: USD
A28: Catalogo principalEDUCATIVO1SA-00009AP | B28: 1SA-00009APEDUCATIVO | D28: Catalogo principal | E28: 1SA-00009AP | F28: EDUCATIVO | G28: Catalogo principal | H28: USD | I28: N/A | J28: Microsoft® D365 Project Operations Edu Step-up D365 Operations Activity Per User_Additional Product | K28: Unidad | L28: Und | M28: Step Up | N28: N/A | O28: N/A | P28: EES ACADEMICO | Q28: 1SA-00009AP | R28: Suscripción mensual con pago anual | S28: 43.99 | T28: 1 | U28: 0 | V28: USD
A29: Catalogo principalEDUCATIVO1SA-00009STU | B29: 1SA-00009STUEDUCATIVO | D29: Catalogo principal | E29: 1SA-00009STU | F29: EDUCATIVO | G29: Catalogo principal | H29: USD | I29: N/A | J29: Microsoft® D365 Project Operations Edu Step-up D365 Operations Activity Per User_Student | K29: Unidad | L29: Und | M29: Step Up | N29: N/A | O29: N/A | P29: EES ACADEMICO | Q29: 1SA-00009STU | R29: Suscripción mensual con pago anual | S29: 34.24 | T29: 1 | U29: 0 | V29: USD
A30: Catalogo principalEDUCATIVO1SA-00010AP | B30: 1SA-00010APEDUCATIVO | D30: Catalogo principal | E30: 1SA-00010AP | F30: EDUCATIVO | G30: Catalogo principal | H30: USD | I30: N/A | J30: Microsoft® D365 Project Operations Edu Step-up D365 Team Members Per User_Additional Product | K30: Unidad | L30: Und | M30: Step Up | N30: N/A | O30: N/A | P30: EES ACADEMICO | Q30: 1SA-00010AP | R30: Suscripción mensual con pago anual | S30: 62.47 | T30: 1 | U30: 0 | V30: USD
A31: Catalogo principalEDUCATIVO1SA-00010STU | B31: 1SA-00010STUEDUCATIVO | D31: Catalogo principal | E31: 1SA-00010STU | F31: EDUCATIVO | G31: Catalogo principal | H31: USD | I31: N/A | J31: Microsoft® D365 Project Operations Edu Step-up D365 Team Members Per User_Student | K31: Unidad | L31: Und | M31: Step Up | N31: N/A | O31: N/A | P31: EES ACADEMICO | Q31: 1SA-00010STU | R31: Suscripción mensual con pago anual | S31: 45.79 | T31: 1 | U31: 0 | V31: USD
A32: Catalogo principalEDUCATIVO1SA-00011AP | B32: 1SA-00011APEDUCATIVO | D32: Catalogo principal | E32: 1SA-00011AP | F32: EDUCATIVO | G32: Catalogo principal | H32: USD | I32: N/A | J32: Microsoft® D365 Project Operations Edu Step-up D365 Project Operations Attach Per User_Additional Product | K32: Unidad | L32: Und | M32: Step Up | N32: N/A | O32: N/A | P32: EES ACADEMICO | Q32: 1SA-00011AP | R32: Suscripción mensual con pago anual | S32: 49.49 | T32: 1 | U32: 0 | V32: USD
A33: Catalogo principalEDUCATIVO1SA-00011STU | B33: 1SA-00011STUEDUCATIVO | D33: Catalogo principal | E33: 1SA-00011STU | F33: EDUCATIVO | G33: Catalogo principal | H33: USD | I33: N/A | J33: Microsoft® D365 Project Operations Edu Step-up D365 Project Operations Attach Per User_Student | K33: Unidad | L33: Und | M33: Step Up | N33: N/A | O33: N/A | P33: EES ACADEMICO | Q33: 1SA-00011STU | R33: Suscripción mensual con pago anual | S33: 35.99 | T33: 1 | U33: 0 | V33: USD
A34: Catalogo principalEDUCATIVO1SH-00007AP | B34: 1SH-00007APEDUCATIVO | D34: Catalogo principal | E34: 1SH-00007AP | F34: EDUCATIVO | G34: Catalogo principal | H34: USD | I34: N/A | J34: Microsoft® D365 Project Operations Attach Edu Subscription Per User_Additional Product | K34: Unidad | L34: Und | M34: Monthly Subscriptions | N34: N/A | O34: N/A | P34: EES ACADEMICO | Q34: 1SH-00007AP | R34: Suscripción mensual con pago anual | S34: 16.5 | T34: 1 | U34: 0 | V34: USD
A35: Catalogo principalEDUCATIVO1SH-00007STU | B35: 1SH-00007STUEDUCATIVO | D35: Catalogo principal | E35: 1SH-00007STU | F35: EDUCATIVO | G35: Catalogo principal | H35: USD | I35: N/A | J35: Microsoft® D365 Project Operations Attach Edu Subscription Per User_Student | K35: Unidad | L35: Und | M35: Monthly Subscriptions | N35: N/A | O35: N/A | P35: EES ACADEMICO | Q35: 1SH-00007STU | R35: Suscripción mensual con pago anual | S35: 12 | T35: 1 | U35: 0 | V35: USD
A36: Catalogo principalEDUCATIVO1TK-00001AP | B36: 1TK-00001APEDUCATIVO | D36: Catalogo principal | E36: 1TK-00001AP | F36: EDUCATIVO | G36: Catalogo principal | H36: USD | I36: N/A | J36: Microsoft® Viva Topics Edu Subscription Per User_Additional Product | K36: Unidad | L36: Und | M36: Monthly Subscriptions | N36: N/A | O36: N/A | P36: EES ACADEMICO | Q36: 1TK-00001AP | R36: Suscripción mensual con pago anual | S36: 1 | T36: 1 | U36: 0 | V36: USD
A37: Catalogo principalEDUCATIVO1TK-00001STU | B37: 1TK-00001STUEDUCATIVO | D37: Catalogo principal | E37: 1TK-00001STU | F37: EDUCATIVO | G37: Catalogo principal | H37: USD | I37: N/A | J37: Microsoft® Viva Topics Edu Subscription Per User_Student | K37: Unidad | L37: Und | M37: Monthly Subscriptions | N37: N/A | O37: N/A | P37: EES ACADEMICO | Q37: 1TK-00001STU | R37: Suscripción mensual con pago anual | S37: 0.75 | T37: 1 | U37: 0 | V37: USD
A38: Catalogo principalEDUCATIVO1TL-00007AP | B38: 1TL-00007APEDUCATIVO | D38: Catalogo principal | E38: 1TL-00007AP | F38: EDUCATIVO | G38: Catalogo principal | H38: USD | I38: N/A | J38: Microsoft® Extra Graph Connector Capacity Edu Subscription Add-on_Additional Product | K38: Unidad | L38: Und | M38: Monthly Subscriptions | N38: N/A | O38: N/A | P38: EES ACADEMICO | Q38: 1TL-00007AP | R38: Suscripción mensual con pago anual | S38: 200 | T38: 1 | U38: 0 | V38: USD
A39: Catalogo principalEDUCATIVO1TL-00007STU | B39: 1TL-00007STUEDUCATIVO | D39: Catalogo principal | E39: 1TL-00007STU | F39: EDUCATIVO | G39: Catalogo principal | H39: USD | I39: N/A | J39: Microsoft® Extra Graph Connector Capacity Edu Subscription Add-on_Student | K39: Unidad | L39: Und | M39: Monthly Subscriptions | N39: N/A | O39: N/A | P39: EES ACADEMICO | Q39: 1TL-00007STU | R39: Suscripción mensual con pago anual | S39: 200 | T39: 1 | U39: 0 | V39: USD
A40: Catalogo principalEDUCATIVO5Z1-00009AP | B40: 5Z1-00009APEDUCATIVO | D40: Catalogo principal | E40: 5Z1-00009AP | F40: EDUCATIVO | G40: Catalogo principal | H40: USD | I40: N/A | J40: Microsoft® SharePoint Syntex Edu Subscription Add-on_Additional Product | K40: Unidad | L40: Und | M40: Monthly Subscriptions | N40: N/A | O40: N/A | P40: EES ACADEMICO | Q40: 5Z1-00009AP | R40: Suscripción mensual con pago anual | S40: 1 | T40: 1 | U40: 0 | V40: USD
A41: Catalogo principalEDUCATIVO5Z1-00009STU | B41: 5Z1-00009STUEDUCATIVO | D41: Catalogo principal | E41: 5Z1-00009STU | F41: EDUCATIVO | G41: Catalogo principal | H41: USD | I41: N/A | J41: Microsoft® SharePoint Syntex Edu Subscription Add-on_Student | K41: Unidad | L41: Und | M41: Monthly Subscriptions | N41: N/A | O41: N/A | P41: EES ACADEMICO | Q41: 5Z1-00009STU | R41: Suscripción mensual con pago anual | S41: 0.75 | T41: 1 | U41: 0 | V41: USD
A42: Catalogo principalEDUCATIVO61F-00003AP | B42: 61F-00003APEDUCATIVO | D42: Catalogo principal | E42: 61F-00003AP | F42: EDUCATIVO | G42: Catalogo principal | H42: USD | I42: N/A | J42: Microsoft® MS Cloud Healthcare EMR CAP AO Edu Subscription_Additional Product | K42: Unidad | L42: Und | M42: Monthly Subscriptions | N42: N/A | O42: N/A | P42: EES ACADEMICO | Q42: 61F-00003AP | R42: Suscripción mensual con pago anual | S42: 500 | T42: 1 | U42: 0 | V42: USD
A43: Catalogo principalEDUCATIVO61F-00003STU | B43: 61F-00003STUEDUCATIVO | D43: Catalogo principal | E43: 61F-00003STU | F43: EDUCATIVO | G43: Catalogo principal | H43: USD | I43: N/A | J43: Microsoft® MS Cloud Healthcare EMR CAP AO Edu Subscription_Student | K43: Unidad | L43: Und | M43: Monthly Subscriptions | N43: N/A | O43: N/A | P43: EES ACADEMICO | Q43: 61F-00003STU | R43: Suscripción mensual con pago anual | S43: 500 | T43: 1 | U43: 0 | V43: USD
A44: Catalogo principalEDUCATIVOG3U-00004FAC | B44: G3U-00004FACEDUCATIVO | D44: Catalogo principal | E44: G3U-00004FAC | F44: EDUCATIVO | G44: Catalogo principal | H44: USD | I44: N/A | J44: Microsoft Azure Rights Management Services Academicemic Subscription for O365 Edu Per User_Faculty | K44: Unidad | L44: Und | M44: Producto | N44: N/A | O44: N/A | P44: EES ACADEMICO | Q44: =E44 -> G3U-00004FAC | R44: Suscripción mensual con pago anual | S44: 0 | T44: 1 | U44: 0 | V44: =H44 -> USD
A45: Catalogo principalEDUCATIVOG3U-00004STU | B45: G3U-00004STUEDUCATIVO | D45: Catalogo principal | E45: G3U-00004STU | F45: EDUCATIVO | G45: Catalogo principal | H45: USD | I45: N/A | J45: Microsoft Azure Rights Management Services Academicemic Subscription for O365 Edu Per User_Student | K45: Unidad | L45: Und | M45: Producto | N45: N/A | O45: N/A | P45: EES ACADEMICO | Q45: G3U-00004STU | R45: Suscripción mensual con pago anual | S45: 0 | T45: 1 | U45: 0 | V45: USD
A46: Catalogo principalEDUCATIVOAAJ-57460AP | B46: AAJ-57460APEDUCATIVO | D46: Catalogo principal | E46: AAJ-57460AP | F46: EDUCATIVO | G46: Catalogo principal | H46: USD | I46: N/A | J46: Microsoft® Win Svr STDCORE Ext Scrty Alng 2 Year3 of EOS (Jan 2022-Jan 2023)_Additional Product | K46: Unidad | L46: Und | M46: Extended Coverage | N46: N/A | O46: N/A | P46: EES ACADEMICO | Q46: AAJ-57460AP | R46: Licencia | S46: 23 | T46: 1 | U46: 0 | V46: USD
A47: Catalogo principalEDUCATIVOAAJ-57461AP | B47: AAJ-57461APEDUCATIVO | D47: Catalogo principal | E47: AAJ-57461AP | F47: EDUCATIVO | G47: Catalogo principal | H47: USD | I47: N/A | J47: Microsoft® Win Svr STDCORE Ext Scrty Alng 16 Year3 of EOS (Jan 2022-Jan 2023)_Additional Product | K47: Unidad | L47: Und | M47: Extended Coverage | N47: N/A | O47: N/A | P47: EES ACADEMICO | Q47: AAJ-57461AP | R47: Licencia | S47: 176 | T47: 1 | U47: 0 | V47: USD
A48: Catalogo principalEDUCATIVOAAJ-57462AP | B48: AAJ-57462APEDUCATIVO | D48: Catalogo principal | E48: AAJ-57462AP | F48: EDUCATIVO | G48: Catalogo principal | H48: USD | I48: N/A | J48: Microsoft® Win Svr DC CORE Ext Scrty Alng 2 Year3 of EOS (Jan 2022-Jan 2023_Additional Product | K48: Unidad | L48: Und | M48: Extended Coverage | N48: N/A | O48: N/A | P48: EES ACADEMICO | Q48: AAJ-57462AP | R48: Licencia | S48: 139 | T48: 1 | U48: 0 | V48: USD
A49: Catalogo principalEDUCATIVOAAJ-57464AP | B49: AAJ-57464APEDUCATIVO | D49: Catalogo principal | E49: AAJ-57464AP | F49: EDUCATIVO | G49: Catalogo principal | H49: USD | I49: N/A | J49: Microsoft® Win Svr DC CORE Ext Scrty Alng 16 Year3 of EOS (Jan 2022-Jan 2023)_Additional Product | K49: Unidad | L49: Und | M49: Extended Coverage | N49: N/A | O49: N/A | P49: EES ACADEMICO | Q49: AAJ-57464AP | R49: Licencia | S49: 1110 | T49: 1 | U49: 0 | V49: USD
A50: Catalogo principalEDUCATIVOAAD-44064AP | B50: AAD-44064APEDUCATIVO | D50: Catalogo principal | E50: AAD-44064AP | F50: EDUCATIVO | G50: Catalogo principal | H50: USD | I50: N/A | J50: Extended Security Updates for SQL 2012 Standard 2 Core pack 1st year of EOS (July 2019-July 2020)_Additional Product | K50: Unidad | L50: Und | M50: Extended Coverage | N50: N/A | O50: N/A | P50: EES ACADEMICO | Q50: AAD-44064AP | R50: Licencia | S50: 647 | T50: 1 | U50: 0 | V50: USD
A51: Catalogo principalEDUCATIVOAAD-44066AP | B51: AAD-44066APEDUCATIVO | D51: Catalogo principal | E51: AAD-44066AP | F51: EDUCATIVO | G51: Catalogo principal | H51: USD | I51: N/A | J51: Extended Security Updates for SQL 2012 Standard Per Server 1st year of EOS (July 2019-July 2020)_Additional Product | K51: Unidad | L51: Und | M51: Extended Coverage | N51: N/A | O51: N/A | P51: EES ACADEMICO | Q51: AAD-44066AP | R51: Licencia | S51: 162 | T51: 1 | U51: 0 | V51: USD
A52: Catalogo principalEDUCATIVOAAD-44067AP | B52: AAD-44067APEDUCATIVO | D52: Catalogo principal | E52: AAD-44067AP | F52: EDUCATIVO | G52: Catalogo principal | H52: USD | I52: N/A | J52: Extended Security Updates for SQL Enterprise Edition 2 Core pack 1st year of EOS (July 2019-July 2020)_Additional Product | K52: Unidad | L52: Und | M52: Extended Coverage | N52: N/A | O52: N/A | P52: EES ACADEMICO | Q52: AAD-44067AP | R52: Licencia | S52: 2479 | T52: 1 | U52: 0 | V52: USD
A53: Catalogo principalEDUCATIVOAAD-44069AP | B53: AAD-44069APEDUCATIVO | D53: Catalogo principal | E53: AAD-44069AP | F53: EDUCATIVO | G53: Catalogo principal | H53: USD | I53: N/A | J53: Extended Security Updates for SQL Enterprise Edition Per Server for 1st year of EOS (July 2019-July 2020)_Additional Product | K53: Unidad | L53: Und | M53: Extended Coverage | N53: N/A | O53: N/A | P53: EES ACADEMICO | Q53: AAD-44069AP | R53: Licencia | S53: 1549 | T53: 1 | U53: 0 | V53: USD
A54: Catalogo principalEDUCATIVOH5T-00003AP | B54: H5T-00003APEDUCATIVO | D54: Catalogo principal | E54: H5T-00003AP | F54: EDUCATIVO | G54: Catalogo principal | H54: USD | I54: N/A | J54: Microsoft® Certification in Academic VL Fee Fund-MCP Cert Pack 30_Additional Product | K54: Unidad | L54: Und | M54: Fee | N54: N/A | O54: N/A | P54: EES ACADEMICO | Q54: H5T-00003AP | R54: Licencia | S54: 1583 | T54: 1 | U54: 0 | V54: USD
A55: Catalogo principalEDUCATIVOH5T-00014AP | B55: H5T-00014APEDUCATIVO | D55: Catalogo principal | E55: H5T-00014AP | F55: EDUCATIVO | G55: Catalogo principal | H55: USD | I55: N/A | J55: Microsoft® Certification in Academic VL Fee MOS-MCE Cert Site Lic Combo 125_Additional Product | K55: Unidad | L55: Und | M55: Fee | N55: N/A | O55: N/A | P55: EES ACADEMICO | Q55: H5T-00014AP | R55: Licencia | S55: 3098 | T55: 1 | U55: 0 | V55: USD
A56: Catalogo principalEDUCATIVOH5T-00017AP | B56: H5T-00017APEDUCATIVO | D56: Catalogo principal | E56: H5T-00017AP | F56: EDUCATIVO | G56: Catalogo principal | H56: USD | I56: N/A | J56: Microsoft® Certification in Academic VL Fee Fund-MOS-MCE Cert Site Lic Combo 500_Additional Product | K56: Unidad | L56: Und | M56: Fee | N56: N/A | O56: N/A | P56: EES ACADEMICO | Q56: H5T-00017AP | R56: Licencia | S56: 4274 | T56: 1 | U56: 0 | V56: USD
A57: Catalogo principalEDUCATIVOH5T-00020AP | B57: H5T-00020APEDUCATIVO | D57: Catalogo principal | E57: H5T-00020AP | F57: EDUCATIVO | G57: Catalogo principal | H57: USD | I57: N/A | J57: Microsoft® Certification in Academic VL Fee Fund-MCE Cert Site Lic Combo 125_Additional Product | K57: Unidad | L57: Und | M57: Fee | N57: N/A | O57: N/A | P57: EES ACADEMICO | Q57: H5T-00020AP | R57: Licencia | S57: 3098 | T57: 1 | U57: 0 | V57: USD
A58: Catalogo principalEDUCATIVONJ6-00002AP | B58: NJ6-00002APEDUCATIVO | D58: Catalogo principal | E58: NJ6-00002AP | F58: EDUCATIVO | G58: Catalogo principal | H58: USD | I58: N/A | J58: Microsoft Import Service O365 Edu Fee Per GB_Additional Product | K58: Unidad | L58: Und | M58: Producto | N58: N/A | O58: N/A | P58: EES ACADEMICO | Q58: NJ6-00002AP | R58: Licencia | S58: 1.8 | T58: 1 | U58: 0 | V58: USD
A59: Catalogo principalEDUCATIVO3ND-00524STU | B59: 3ND-00524STUEDUCATIVO | D59: Catalogo principal | E59: 3ND-00524STU | F59: EDUCATIVO | G59: Catalogo principal | H59: USD | I59: N/A | J59: Microsoft® System Center Service Manager All Languages License & Software Assurance Per OSE_Student | K59: Unidad | L59: Und | M59: License/Software Assurance | N59: N/A | O59: N/A | P59: EES ACADEMICO | Q59: 3ND-00524STU | R59: Suscripción Anual | S59: 0.94 | T59: 1 | U59: 0 | V59: USD
A60: Catalogo principalEDUCATIVO3R3-00001AP | B60: 3R3-00001APEDUCATIVO | D60: Catalogo principal | E60: 3R3-00001AP | F60: EDUCATIVO | G60: Catalogo principal | H60: USD | I60: N/A | J60: Microsoft® Azure Active Directory Premium P1 A Subscription Per User_Additional Product | K60: Unidad | L60: Und | M60: Monthly Subscriptions | N60: N/A | O60: N/A | P60: EES ACADEMICO | Q60: 3R3-00001AP | R60: Suscripción mensual con pago anual | S60: 0.55 | T60: 1 | U60: 0 | V60: USD
A61: Catalogo principalEDUCATIVO3R3-00001STU | B61: 3R3-00001STUEDUCATIVO | D61: Catalogo principal | E61: 3R3-00001STU | F61: EDUCATIVO | G61: Catalogo principal | H61: USD | I61: N/A | J61: Microsoft® Azure Active Directory Premium P1 A Subscription Per User_Student | K61: Unidad | L61: Und | M61: Monthly Subscriptions | N61: N/A | O61: N/A | P61: EES ACADEMICO | Q61: 3R3-00001STU | R61: Suscripción mensual con pago anual | S61: 0.22 | T61: 1 | U61: 0 | V61: USD
A62: =D62&F62&E62 -> Catalogo principalEDUCATIVO3R3-00004SUB | B62: =E62&F62 -> 3R3-00004SUBEDUCATIVO | D62: Catalogo principal | E62: 3R3-00004SUB | F62: EDUCATIVO | G62: =D62 -> Catalogo principal | H62: USD | I62: N/A | J62: Microsoft® Azure Active Directory Premium P1 A Subscription Per User Student Use Benefit | K62: Unidad | L62: Und | M62: Monthly Subscriptions | N62: N/A | O62: N/A | P62: EES ACADEMICO | Q62: 3R3-00004SUB | R62: Suscripción mensual con pago anual | S62: 0 | T62: 1 | U62: 0 | V62: USD
A63: Catalogo principalEDUCATIVO3VU-00043AP | B63: 3VU-00043APEDUCATIVO | D63: Catalogo principal | E63: 3VU-00043AP | F63: EDUCATIVO | G63: Catalogo principal | H63: USD | I63: N/A | J63: Microsoft® MSDN Platforms All Languages License & Software Assurance_Additional Product | K63: Unidad | L63: Und | M63: License/Software Assurance | N63: N/A | O63: N/A | P63: EES ACADEMICO | Q63: 3VU-00043AP | R63: Suscripción Anual | S63: 156 | T63: 1 | U63: 0 | V63: USD
A64: Catalogo principalEDUCATIVO3ZK-00193FAC | B64: 3ZK-00193FACEDUCATIVO | D64: Catalogo principal | E64: 3ZK-00193FAC | F64: EDUCATIVO | G64: Catalogo principal | H64: USD | I64: N/A | J64: Microsoft® System Center Orchestrator All Languages License & Software Assurance Per OSE_Faculty | K64: Unidad | L64: Und | M64: License/Software Assurance | N64: N/A | O64: N/A | P64: EES ACADEMICO | Q64: 3ZK-00193FAC | R64: Suscripción Anual | S64: 1.25 | T64: 1 | U64: 0 | V64: USD
A65: Catalogo principalEDUCATIVO3ZK-00193STU | B65: 3ZK-00193STUEDUCATIVO | D65: Catalogo principal | E65: 3ZK-00193STU | F65: EDUCATIVO | G65: Catalogo principal | H65: USD | I65: N/A | J65: Microsoft® System Center Orchestrator All Languages License & Software Assurance Per OSE_Student | K65: Unidad | L65: Und | M65: License/Software Assurance | N65: N/A | O65: N/A | P65: EES ACADEMICO | Q65: 3ZK-00193STU | R65: Suscripción Anual | S65: 0.94 | T65: 1 | U65: 0 | V65: USD
A66: Catalogo principalEDUCATIVO4ZF-00019AP | B66: 4ZF-00019APEDUCATIVO | D66: Catalogo principal | E66: 4ZF-00019AP | F66: EDUCATIVO | G66: Catalogo principal | H66: USD | I66: N/A | J66: Microsoft® Win VDA Device All Languages Subscription Per Device_Additional Product | K66: Unidad | L66: Und | M66: Monthly Subscriptions | N66: N/A | O66: N/A | P66: EES ACADEMICO | Q66: 4ZF-00019AP | R66: Suscripción mensual con pago anual | S66: 3.34 | T66: 1 | U66: 0 | V66: USD
A67: Catalogo principalEDUCATIVO5HU-00215AP | B67: 5HU-00215APEDUCATIVO | D67: Catalogo principal | E67: 5HU-00215AP | F67: EDUCATIVO | G67: Catalogo principal | H67: USD | I67: N/A | J67: Microsoft® SfB Server All Languages License & Software Assurance_Additional Product | K67: Unidad | L67: Und | M67: License/Software Assurance | N67: N/A | O67: N/A | P67: EES ACADEMICO | Q67: 5HU-00215AP | R67: Suscripción Anual | S67: 384 | T67: 1 | U67: 0 | V67: USD
A68: Catalogo principalEDUCATIVO5RS-00002AP | B68: 5RS-00002APEDUCATIVO | D68: Catalogo principal | E68: 5RS-00002AP | F68: EDUCATIVO | G68: Catalogo principal | H68: USD | I68: N/A | J68: Microsoft® Exchange Online P1 Edu Subscription Per User Alumni_Additional Product | K68: Unidad | L68: Und | M68: Monthly Subscriptions | N68: N/A | O68: N/A | P68: EES ACADEMICO | Q68: 5RS-00002AP | R68: Suscripción mensual con pago anual | S68: 0 | T68: 1 | U68: 0 | V68: USD
A69: Catalogo principalEDUCATIVO5WS-00001AP | B69: 5WS-00001APEDUCATIVO | D69: Catalogo principal | E69: 5WS-00001AP | F69: EDUCATIVO | G69: Catalogo principal | H69: USD | I69: N/A | J69: Microsoft® EOA Exchange Online Edu Subscription Per User_Additional Product | K69: Unidad | L69: Und | M69: Monthly Subscriptions | N69: N/A | O69: N/A | P69: EES ACADEMICO | Q69: 5WS-00001AP | R69: Suscripción mensual con pago anual | S69: 1 | T69: 1 | U69: 0 | V69: USD
A70: =D70&F70&E70 -> Catalogo principalEDUCATIVO5WS-00001STU | B70: =E70&F70 -> 5WS-00001STUEDUCATIVO | D70: Catalogo principal | E70: 5WS-00001STU | F70: EDUCATIVO | G70: Catalogo principal | H70: USD | I70: N/A | J70: Microsoft® EOA Exchange Online Edu Subscription Per User_Student | K70: Unidad | L70: Und | M70: Monthly Subscriptions | N70: N/A | O70: N/A | P70: EES ACADEMICO | Q70: 5WS-00001STU | R70: Suscripción mensual con pago anual | S70: 1 | T70: 1 | U70: 0 | V70: USD
A71: Catalogo principalEDUCATIVO5XS-00001FACA | B71: 5XS-00001FACAEDUCATIVO | D71: Catalogo principal | E71: 5XS-00001FACA | F71: EDUCATIVO | G71: =D71 -> Catalogo principal | H71: USD | I71: N/A | J71: Microsoft® M365 Apps Enterprise Edu Subscription Per User_FacultyLevelA | K71: Unidad | L71: Und | M71: Monthly Subscriptions | N71: N/A | O71: N/A | P71: EES ACADEMICO | Q71: 5XS-00001FACA | R71: Suscripción mensual con pago anual | S71: 2.25 | T71: 1 | U71: 0 | V71: USD
A72: Catalogo principalEDUCATIVO5XS-00001FACB | B72: 5XS-00001FACBEDUCATIVO | D72: Catalogo principal | E72: 5XS-00001FACB | F72: EDUCATIVO | G72: Catalogo principal | H72: USD | I72: N/A | J72: Microsoft® M365 Apps Enterprise Edu Subscription Per User_FacultyLevelB | K72: Unidad | L72: Und | M72: Monthly Subscriptions | N72: N/A | O72: N/A | P72: EES ACADEMICO | Q72: 5XS-00001FACB | R72: Suscripción mensual con pago anual | S72: 2.1 | T72: 1 | U72: 0 | V72: USD
A73: Catalogo principalEDUCATIVO5XS-00001FACC | B73: 5XS-00001FACCEDUCATIVO | D73: Catalogo principal | E73: 5XS-00001FACC | F73: EDUCATIVO | G73: Catalogo principal | H73: USD | I73: N/A | J73: Microsoft® M365 Apps Enterprise Edu Subscription Per User_FacultyLevelC | K73: Unidad | L73: Und | M73: Monthly Subscriptions | N73: N/A | O73: N/A | P73: EES ACADEMICO | Q73: 5XS-00001FACC | R73: Suscripción mensual con pago anual | S73: 1.94 | T73: 1 | U73: 0 | V73: USD
A74: Catalogo principalEDUCATIVO5XS-00001FACD | B74: 5XS-00001FACDEDUCATIVO | D74: Catalogo principal | E74: 5XS-00001FACD | F74: EDUCATIVO | G74: Catalogo principal | H74: USD | I74: N/A | J74: Microsoft® M365 Apps Enterprise Edu Subscription Per User_FacultyLevelD | K74: Unidad | L74: Und | M74: Monthly Subscriptions | N74: N/A | O74: N/A | P74: EES ACADEMICO | Q74: 5XS-00001FACD | R74: Suscripción mensual con pago anual | S74: 1.82 | T74: 1 | U74: 0 | V74: USD
A75: Catalogo principalEDUCATIVO5XS-00001STUA | B75: 5XS-00001STUAEDUCATIVO | D75: Catalogo principal | E75: 5XS-00001STUA | F75: EDUCATIVO | G75: Catalogo principal | H75: USD | I75: N/A | J75: Microsoft® M365 Apps Enterprise Edu Subscription Per User_StudentLevelA | K75: Unidad | L75: Und | M75: Monthly Subscriptions | N75: N/A | O75: N/A | P75: EES ACADEMICO | Q75: 5XS-00001STUA | R75: Suscripción mensual con pago anual | S75: 1.75 | T75: 1 | U75: 0 | V75: USD
A76: Catalogo principalEDUCATIVO5XS-00001STUB | B76: 5XS-00001STUBEDUCATIVO | D76: Catalogo principal | E76: 5XS-00001STUB | F76: EDUCATIVO | G76: Catalogo principal | H76: USD | I76: N/A | J76: Microsoft® M365 Apps Enterprise Edu Subscription Per User_StudentLevelB | K76: Unidad | L76: Und | M76: Monthly Subscriptions | N76: N/A | O76: N/A | P76: EES ACADEMICO | Q76: 5XS-00001STUB | R76: Suscripción mensual con pago anual | S76: 1.63 | T76: 1 | U76: 0 | V76: USD
A77: Catalogo principalEDUCATIVO5XS-00001STUC | B77: 5XS-00001STUCEDUCATIVO | D77: Catalogo principal | E77: 5XS-00001STUC | F77: EDUCATIVO | G77: Catalogo principal | H77: USD | I77: N/A | J77: Microsoft® M365 Apps Enterprise Edu Subscription Per User_StudentLevelC | K77: Unidad | L77: Und | M77: Monthly Subscriptions | N77: N/A | O77: N/A | P77: EES ACADEMICO | Q77: 5XS-00001STUC | R77: Suscripción mensual con pago anual | S77: 1.51 | T77: 1 | U77: 0 | V77: USD
A78: Catalogo principalEDUCATIVO5XS-00001STUD | B78: 5XS-00001STUDEDUCATIVO | D78: Catalogo principal | E78: 5XS-00001STUD | F78: EDUCATIVO | G78: Catalogo principal | H78: USD | I78: N/A | J78: Microsoft® M365 Apps Enterprise Edu Subscription Per User_StudentLevelD | K78: Unidad | L78: Und | M78: Monthly Subscriptions | N78: N/A | O78: N/A | P78: EES ACADEMICO | Q78: 5XS-00001STUD | R78: Suscripción mensual con pago anual | S78: 1.41 | T78: 1 | U78: 0 | V78: USD
A79: Catalogo principalEDUCATIVO5XS-00002SUB | B79: 5XS-00002SUBEDUCATIVO | D79: Catalogo principal | E79: 5XS-00002SUB | F79: EDUCATIVO | G79: Catalogo principal | H79: USD | I79: N/A | J79: Microsoft® M365 Apps Enterprise Edu Subscription Student Use Benefit Per User | K79: Unidad | L79: Und | M79: Monthly Subscriptions | N79: N/A | O79: N/A | P79: EES ACADEMICO | Q79: 5XS-00002SUB | R79: Suscripción mensual con pago anual | S79: 0 | T79: 1 | U79: 0 | V79: USD
A80: Catalogo principalEDUCATIVO5XS-00003AP | B80: 5XS-00003APEDUCATIVO | D80: Catalogo principal | E80: 5XS-00003AP | F80: EDUCATIVO | G80: Catalogo principal | H80: USD | I80: N/A | J80: Microsoft® M365 Apps Enterprise Edu Subscription Add-on Office Pro Plus_Additional Product | K80: Unidad | L80: Und | M80: Monthly Subscriptions | N80: N/A | O80: N/A | P80: EES ACADEMICO | Q80: 5XS-00003AP | R80: Suscripción mensual con pago anual | S80: 0 | T80: 1 | U80: 0 | V80: USD
A81: Catalogo principalEDUCATIVO5XS-00003STU | B81: 5XS-00003STUEDUCATIVO | D81: Catalogo principal | E81: 5XS-00003STU | F81: EDUCATIVO | G81: Catalogo principal | H81: USD | I81: N/A | J81: Microsoft® M365 Apps Enterprise Edu Subscription Add-on Office Pro Plus_Student | K81: Unidad | L81: Und | M81: Monthly Subscriptions | N81: N/A | O81: N/A | P81: EES ACADEMICO | Q81: 5XS-00003STU | R81: Suscripción mensual con pago anual | S81: 0 | T81: 1 | U81: 0 | V81: USD
A82: Catalogo principalEDUCATIVO6E9-00001AP | B82: 6E9-00001APEDUCATIVO | D82: Catalogo principal | E82: 6E9-00001AP | F82: EDUCATIVO | G82: Catalogo principal | H82: USD | I82: N/A | J82: Microsoft® Azure Active Directory Premium P2 A Subscription Per User_Additional Product | K82: Unidad | L82: Und | M82: Monthly Subscriptions | N82: N/A | O82: N/A | P82: EES ACADEMICO | Q82: 6E9-00001AP | R82: Suscripción mensual con pago anual | S82: 1.1 | T82: 1 | U82: 0 | V82: USD
A83: Catalogo principalEDUCATIVO6E9-00001STU | B83: 6E9-00001STUEDUCATIVO | D83: Catalogo principal | E83: 6E9-00001STU | F83: EDUCATIVO | G83: Catalogo principal | H83: USD | I83: N/A | J83: Microsoft® Azure Active Directory Premium P2 A Subscription Per User_Student | K83: Unidad | L83: Und | M83: Monthly Subscriptions | N83: N/A | O83: N/A | P83: EES ACADEMICO | Q83: 6E9-00001STU | R83: Suscripción mensual con pago anual | S83: 0.83 | T83: 1 | U83: 0 | V83: USD
A84: Catalogo principalEDUCATIVO6E9-00002AP | B84: 6E9-00002APEDUCATIVO | D84: Catalogo principal | E84: 6E9-00002AP | F84: EDUCATIVO | G84: Catalogo principal | H84: USD | I84: N/A | J84: Microsoft® Azure Active Directory Premium P2 A Step-up Azure Active Directory Premium P1 A_Additional Product | K84: Unidad | L84: Und | M84: Step Up | N84: N/A | O84: N/A | P84: EES ACADEMICO | Q84: 6E9-00002AP | R84: Suscripción mensual con pago anual | S84: 0.55 | T84: 1 | U84: 0 | V84: USD
A85: Catalogo principalEDUCATIVO6E9-00002STU | B85: 6E9-00002STUEDUCATIVO | D85: Catalogo principal | E85: 6E9-00002STU | F85: EDUCATIVO | G85: Catalogo principal | H85: USD | I85: N/A | J85: Microsoft® Azure Active Directory Premium P2 A Step-up Azure Active Directory Premium P1 A_Student | K85: Unidad | L85: Und | M85: Step Up | N85: N/A | O85: N/A | P85: EES ACADEMICO | Q85: 6E9-00002STU | R85: Suscripción mensual con pago anual | S85: 0.61 | T85: 1 | U85: 0 | V85: USD
A86: Catalogo principalEDUCATIVO6E9-00004SUB | B86: 6E9-00004SUBEDUCATIVO | D86: Catalogo principal | E86: 6E9-00004SUB | F86: EDUCATIVO | G86: Catalogo principal | H86: USD | I86: N/A | J86: Microsoft® Azure Active Directory Premium P2 A Subscription Per User Student Use Benefit | K86: Unidad | L86: Und | M86: Monthly Subscriptions | N86: N/A | O86: N/A | P86: EES ACADEMICO | Q86: 6E9-00004SUB | R86: Suscripción mensual con pago anual | S86: 0 | T86: 1 | U86: 0 | V86: USD
A87: Catalogo principalEDUCATIVO6MV-00003AP | B87: 6MV-00003APEDUCATIVO | D87: Catalogo principal | E87: 6MV-00003AP | F87: EDUCATIVO | G87: Catalogo principal | H87: USD | I87: N/A | J87: Microsoft® Exchange Enterprise CAL Service Edu All Languages Subscription Per User_Additional Product | K87: Unidad | L87: Und | M87: Monthly Subscriptions | N87: N/A | O87: N/A | P87: EES ACADEMICO | Q87: 6MV-00003AP | R87: Suscripción mensual con pago anual | S87: 0 | T87: 1 | U87: 0 | V87: USD
A88: Catalogo principalEDUCATIVO6MV-00003STU | B88: 6MV-00003STUEDUCATIVO | D88: Catalogo principal | E88: 6MV-00003STU | F88: EDUCATIVO | G88: Catalogo principal | H88: USD | I88: N/A | J88: Microsoft® Exchange Enterprise CAL Service Edu All Languages Subscription Per User_Student | K88: Unidad | L88: Und | M88: Monthly Subscriptions | N88: N/A | O88: N/A | P88: EES ACADEMICO | Q88: 6MV-00003STU | R88: Suscripción mensual con pago anual | S88: 0 | T88: 1 | U88: 0 | V88: USD
A89: Catalogo principalEDUCATIVO6QV-00003AP | B89: 6QV-00003APEDUCATIVO | D89: Catalogo principal | E89: 6QV-00003AP | F89: EDUCATIVO | G89: Catalogo principal | H89: USD | I89: N/A | J89: Microsoft® Enterprise CAL Services Edu All Languages Subscription Per User_Additional Product | K89: Unidad | L89: Und | M89: Monthly Subscriptions | N89: N/A | O89: N/A | P89: EES ACADEMICO | Q89: 6QV-00003AP | R89: Suscripción mensual con pago anual | S89: 0 | T89: 1 | U89: 0 | V89: USD
A90: Catalogo principalEDUCATIVO6QV-00003STU | B90: 6QV-00003STUEDUCATIVO | D90: Catalogo principal | E90: 6QV-00003STU | F90: EDUCATIVO | G90: Catalogo principal | H90: USD | I90: N/A | J90: Microsoft® Enterprise CAL Services Edu All Languages Subscription Per User_Student | K90: Unidad | L90: Und | M90: Monthly Subscriptions | N90: N/A | O90: N/A | P90: EES ACADEMICO | Q90: 6QV-00003STU | R90: Suscripción mensual con pago anual | S90: 0 | T90: 1 | U90: 0 | V90: USD
A91: Catalogo principalEDUCATIVO6VC-01251AP | B91: 6VC-01251APEDUCATIVO | D91: Catalogo principal | E91: 6VC-01251AP | F91: EDUCATIVO | G91: Catalogo principal | H91: USD | I91: N/A | J91: Microsoft® Win Remote Desktop Services CAL All Languages License & Software Assurance Device CAL_Additional Product | K91: Unidad | L91: Und | M91: License/Software Assurance | N91: N/A | O91: N/A | P91: EES ACADEMICO | Q91: 6VC-01251AP | R91: Suscripción Anual | S91: 12 | T91: 1 | U91: 0 | V91: USD
A92: Catalogo principalEDUCATIVO6VC-01251FAC | B92: 6VC-01251FACEDUCATIVO | D92: Catalogo principal | E92: 6VC-01251FAC | F92: EDUCATIVO | G92: Catalogo principal | H92: USD | I92: N/A | J92: Microsoft® Win Remote Desktop Services CAL All Languages License & Software Assurance Device CAL_Faculty | K92: Unidad | L92: Und | M92: License/Software Assurance | N92: N/A | O92: N/A | P92: EES ACADEMICO | Q92: 6VC-01251FAC | R92: Suscripción Anual | S92: 9 | T92: 1 | U92: 0 | V92: USD
A93: Catalogo principalEDUCATIVO6VC-01251STU | B93: 6VC-01251STUEDUCATIVO | D93: Catalogo principal | E93: 6VC-01251STU | F93: EDUCATIVO | G93: Catalogo principal | H93: USD | I93: N/A | J93: Microsoft® Win Remote Desktop Services CAL All Languages License & Software Assurance Device CAL_Student | K93: Unidad | L93: Und | M93: License/Software Assurance | N93: N/A | O93: N/A | P93: EES ACADEMICO | Q93: 6VC-01251STU | R93: Suscripción Anual | S93: 4.84 | T93: 1 | U93: 0 | V93: USD
A94: Catalogo principalEDUCATIVO6XC-00298AP | B94: 6XC-00298APEDUCATIVO | D94: Catalogo principal | E94: 6XC-00298AP | F94: EDUCATIVO | G94: Catalogo principal | H94: USD | I94: N/A | J94: Microsoft® Win Remote Desktop Services External Connector All Languages License & Software Assurance_Additional Product | K94: Unidad | L94: Und | M94: License/Software Assurance | N94: N/A | O94: N/A | P94: EES ACADEMICO | Q94: 6XC-00298AP | R94: Suscripción Anual | S94: 1178 | T94: 1 | U94: 0 | V94: USD
A95: Catalogo principalEDUCATIVO6YH-00575AP | B95: 6YH-00575APEDUCATIVO | D95: Catalogo principal | E95: 6YH-00575AP | F95: EDUCATIVO | G95: Catalogo principal | H95: USD | I95: N/A | J95: Microsoft® SfB All Languages License & Software Assurance_Additional Product | K95: Unidad | L95: Und | M95: License/Software Assurance | N95: N/A | O95: N/A | P95: EES ACADEMICO | Q95: 6YH-00575AP | R95: Suscripción Anual | S95: 2.34 | T95: 1 | U95: 0 | V95: USD
A96: Catalogo principalEDUCATIVO6YH-00575STU | B96: 6YH-00575STUEDUCATIVO | D96: Catalogo principal | E96: 6YH-00575STU | F96: EDUCATIVO | G96: Catalogo principal | H96: USD | I96: N/A | J96: Microsoft® SfB All Languages License & Software Assurance_Student | K96: Unidad | L96: Und | M96: License/Software Assurance | N96: N/A | O96: N/A | P96: EES ACADEMICO | Q96: 6YH-00575STU | R96: Suscripción Anual | S96: 1.4 | T96: 1 | U96: 0 | V96: USD
A97: Catalogo principalEDUCATIVO6ZH-00395FAC | B97: 6ZH-00395FACEDUCATIVO | D97: Catalogo principal | E97: 6ZH-00395FAC | F97: EDUCATIVO | G97: Catalogo principal | H97: USD | I97: N/A | J97: Microsoft® SfB Server Standard CAL All Languages License & Software Assurance Device CAL_Faculty | K97: Unidad | L97: Und | M97: License/Software Assurance | N97: N/A | O97: N/A | P97: EES ACADEMICO | Q97: 6ZH-00395FAC | R97: Suscripción Anual | S97: 3.28 | T97: 1 | U97: 0 | V97: USD
A98: Catalogo principalEDUCATIVO6ZH-00395STU | B98: 6ZH-00395STUEDUCATIVO | D98: Catalogo principal | E98: 6ZH-00395STU | F98: EDUCATIVO | G98: Catalogo principal | H98: USD | I98: N/A | J98: Microsoft® SfB Server Standard CAL All Languages License & Software Assurance Device CAL_Student | K98: Unidad | L98: Und | M98: License/Software Assurance | N98: N/A | O98: N/A | P98: EES ACADEMICO | Q98: 6ZH-00395STU | R98: Suscripción Anual | S98: 2.18 | T98: 1 | U98: 0 | V98: USD
A99: Catalogo principalEDUCATIVO76A-00025FACA | B99: 76A-00025FACAEDUCATIVO | D99: Catalogo principal | E99: 76A-00025FACA | F99: EDUCATIVO | G99: Catalogo principal | H99: USD | I99: N/A | J99: Microsoft® ECAL All Languages License & Software Assurance Device CAL with Services_FacultyLevelA | K99: Unidad | L99: Und | M99: License/Software Assurance | N99: N/A | O99: N/A | P99: EES ACADEMICO | Q99: 76A-00025FACA | R99: Suscripción Anual | S99: 26 | T99: 1 | U99: 0 | V99: USD
A100: Catalogo principalEDUCATIVO76A-00025FACB | B100: 76A-00025FACBEDUCATIVO | D100: Catalogo principal | E100: 76A-00025FACB | F100: EDUCATIVO | G100: Catalogo principal | H100: USD | I100: N/A | J100: Microsoft® ECAL All Languages License & Software Assurance Device CAL with Services_FacultyLevelB | K100: Unidad | L100: Und | M100: License/Software Assurance | N100: N/A | O100: N/A | P100: EES ACADEMICO | Q100: 76A-00025FACB | R100: Suscripción Anual | S100: 24 | T100: 1 | U100: 0 | V100: USD
A101: Catalogo principalEDUCATIVO76A-00025FACC | B101: 76A-00025FACCEDUCATIVO | D101: Catalogo principal | E101: 76A-00025FACC | F101: EDUCATIVO | G101: Catalogo principal | H101: USD | I101: N/A | J101: Microsoft® ECAL All Languages License & Software Assurance Device CAL with Services_FacultyLevelC | K101: Unidad | L101: Und | M101: License/Software Assurance | N101: N/A | O101: N/A | P101: EES ACADEMICO | Q101: 76A-00025FACC | R101: Suscripción Anual | S101: 22 | T101: 1 | U101: 0 | V101: USD
A102: Catalogo principalEDUCATIVO76A-00025FACD | B102: 76A-00025FACDEDUCATIVO | D102: Catalogo principal | E102: 76A-00025FACD | F102: EDUCATIVO | G102: Catalogo principal | H102: USD | I102: N/A | J102: Microsoft® ECAL All Languages License & Software Assurance Device CAL with Services_FacultyLevelD | K102: Unidad | L102: Und | M102: License/Software Assurance | N102: N/A | O102: N/A | P102: EES ACADEMICO | Q102: 76A-00025FACD | R102: Suscripción Anual | S102: 21 | T102: 1 | U102: 0 | V102: USD
A103: Catalogo principalEDUCATIVO76A-00025STUA | B103: 76A-00025STUAEDUCATIVO | D103: Catalogo principal | E103: 76A-00025STUA | F103: EDUCATIVO | G103: Catalogo principal | H103: USD | I103: N/A | J103: Microsoft® ECAL All Languages License & Software Assurance Device CAL with Services_StudentLevelA | K103: Unidad | L103: Und | M103: License/Software Assurance | N103: N/A | O103: N/A | P103: EES ACADEMICO | Q103: 76A-00025STUA | R103: Suscripción Anual | S103: 16 | T103: 1 | U103: 0 | V103: USD
A104: Catalogo principalEDUCATIVO76A-00025STUB | B104: 76A-00025STUBEDUCATIVO | D104: Catalogo principal | E104: 76A-00025STUB | F104: EDUCATIVO | G104: Catalogo principal | H104: USD | I104: N/A | J104: Microsoft® ECAL All Languages License & Software Assurance Device CAL with Services_StudentLevelB | K104: Unidad | L104: Und | M104: License/Software Assurance | N104: N/A | O104: N/A | P104: EES ACADEMICO | Q104: 76A-00025STUB | R104: Suscripción Anual | S104: 15 | T104: 1 | U104: 0 | V104: USD
A105: Catalogo principalEDUCATIVO76A-00025STUC | B105: 76A-00025STUCEDUCATIVO | D105: Catalogo principal | E105: 76A-00025STUC | F105: EDUCATIVO | G105: Catalogo principal | H105: USD | I105: N/A | J105: Microsoft® ECAL All Languages License & Software Assurance Device CAL with Services_StudentLevelC | K105: Unidad | L105: Und | M105: License/Software Assurance | N105: N/A | O105: N/A | P105: EES ACADEMICO | Q105: 76A-00025STUC | R105: Suscripción Anual | S105: 14 | T105: 1 | U105: 0 | V105: USD
A106: Catalogo principalEDUCATIVO76A-00025STUD | B106: 76A-00025STUDEDUCATIVO | D106: Catalogo principal | E106: 76A-00025STUD | F106: EDUCATIVO | G106: Catalogo principal | H106: USD | I106: N/A | J106: Microsoft® ECAL All Languages License & Software Assurance Device CAL with Services_StudentLevelD | K106: Unidad | L106: Und | M106: License/Software Assurance | N106: N/A | O106: N/A | P106: EES ACADEMICO | Q106: 76A-00025STUD | R106: Suscripción Anual | S106: 13 | T106: 1 | U106: 0 | V106: USD
A107: Catalogo principalEDUCATIVO76A-00043FACA | B107: 76A-00043FACAEDUCATIVO | D107: Catalogo principal | E107: 76A-00043FACA | F107: EDUCATIVO | G107: Catalogo principal | H107: USD | I107: N/A | J107: Microsoft® ECAL All Languages SA Step-up CCAL Device CAL with Services_FacultyLevelA | K107: Unidad | L107: Und | M107: SA Step Up | N107: N/A | O107: N/A | P107: EES ACADEMICO | Q107: 76A-00043FACA | R107: Suscripción Anual | S107: 13 | T107: 1 | U107: 0 | V107: USD
A108: Catalogo principalEDUCATIVO76A-00043FACB | B108: 76A-00043FACBEDUCATIVO | D108: Catalogo principal | E108: 76A-00043FACB | F108: EDUCATIVO | G108: Catalogo principal | H108: USD | I108: N/A | J108: Microsoft® ECAL All Languages SA Step-up CCAL Device CAL with Services_FacultyLevelB | K108: Unidad | L108: Und | M108: SA Step Up | N108: N/A | O108: N/A | P108: EES ACADEMICO | Q108: 76A-00043FACB | R108: Suscripción Anual | S108: 12 | T108: 1 | U108: 0 | V108: USD
A109: Catalogo principalEDUCATIVO76A-00043FACC | B109: 76A-00043FACCEDUCATIVO | D109: Catalogo principal | E109: 76A-00043FACC | F109: EDUCATIVO | G109: Catalogo principal | H109: USD | I109: N/A | J109: Microsoft® ECAL All Languages SA Step-up CCAL Device CAL with Services_FacultyLevelC | K109: Unidad | L109: Und | M109: SA Step Up | N109: N/A | O109: N/A | P109: EES ACADEMICO | Q109: 76A-00043FACC | R109: Suscripción Anual | S109: 11 | T109: 1 | U109: 0 | V109: USD
A110: Catalogo principalEDUCATIVO76A-00043FACD | B110: 76A-00043FACDEDUCATIVO | D110: Catalogo principal | E110: 76A-00043FACD | F110: EDUCATIVO | G110: Catalogo principal | H110: USD | I110: N/A | J110: Microsoft® ECAL All Languages SA Step-up CCAL Device CAL with Services_FacultyLevelD | K110: Unidad | L110: Und | M110: SA Step Up | N110: N/A | O110: N/A | P110: EES ACADEMICO | Q110: 76A-00043FACD | R110: Suscripción Anual | S110: 10 | T110: 1 | U110: 0 | V110: USD
A111: Catalogo principalEDUCATIVO76A-00043STUA | B111: 76A-00043STUAEDUCATIVO | D111: Catalogo principal | E111: 76A-00043STUA | F111: EDUCATIVO | G111: Catalogo principal | H111: USD | I111: N/A | J111: Microsoft® ECAL All Languages SA Step-up CCAL Device CAL with Services_StudentLevelA | K111: Unidad | L111: Und | M111: SA Step Up | N111: N/A | O111: N/A | P111: EES ACADEMICO | Q111: 76A-00043STUA | R111: Suscripción Anual | S111: 13 | T111: 1 | U111: 0 | V111: USD
A112: Catalogo principalEDUCATIVO76A-00043STUB | B112: 76A-00043STUBEDUCATIVO | D112: Catalogo principal | E112: 76A-00043STUB | F112: EDUCATIVO | G112: Catalogo principal | H112: USD | I112: N/A | J112: Microsoft® ECAL All Languages SA Step-up CCAL Device CAL with Services_StudentLevelB | K112: Unidad | L112: Und | M112: SA Step Up | N112: N/A | O112: N/A | P112: EES ACADEMICO | Q112: 76A-00043STUB | R112: Suscripción Anual | S112: 13 | T112: 1 | U112: 0 | V112: USD
A113: Catalogo principalEDUCATIVO76A-00043STUC | B113: 76A-00043STUCEDUCATIVO | D113: Catalogo principal | E113: 76A-00043STUC | F113: EDUCATIVO | G113: Catalogo principal | H113: USD | I113: N/A | J113: Microsoft® ECAL All Languages SA Step-up CCAL Device CAL with Services_StudentLevelC | K113: Unidad | L113: Und | M113: SA Step Up | N113: N/A | O113: N/A | P113: EES ACADEMICO | Q113: 76A-00043STUC | R113: Suscripción Anual | S113: 12 | T113: 1 | U113: 0 | V113: USD
A114: Catalogo principalEDUCATIVO76A-00043STUD | B114: 76A-00043STUDEDUCATIVO | D114: Catalogo principal | E114: 76A-00043STUD | F114: EDUCATIVO | G114: Catalogo principal | H114: USD | I114: N/A | J114: Microsoft® ECAL All Languages SA Step-up CCAL Device CAL with Services_StudentLevelD | K114: Unidad | L114: Und | M114: SA Step Up | N114: N/A | O114: N/A | P114: EES ACADEMICO | Q114: 76A-00043STUD | R114: Suscripción Anual | S114: 11 | T114: 1 | U114: 0 | V114: USD
A115: Catalogo principalEDUCATIVO76N-02345FAC | B115: 76N-02345FACEDUCATIVO | D115: Catalogo principal | E115: 76N-02345FAC | F115: EDUCATIVO | G115: Catalogo principal | H115: USD | I115: N/A | J115: Microsoft® SharePoint Enterprise CAL All Languages License & Software Assurance Device CAL_Faculty | K115: Unidad | L115: Und | M115: License/Software Assurance | N115: N/A | O115: N/A | P115: EES ACADEMICO | Q115: 76N-02345FAC | R115: Suscripción Anual | S115: 9 | T115: 1 | U115: 0 | V115: USD
A116: Catalogo principalEDUCATIVO76N-02345STU | B116: 76N-02345STUEDUCATIVO | D116: Catalogo principal | E116: 76N-02345STU | F116: EDUCATIVO | G116: Catalogo principal | H116: USD | I116: N/A | J116: Microsoft® SharePoint Enterprise CAL All Languages License & Software Assurance Device CAL_Student | K116: Unidad | L116: Und | M116: License/Software Assurance | N116: N/A | O116: N/A | P116: EES ACADEMICO | Q116: 76N-02345STU | R116: Suscripción Anual | S116: 6 | T116: 1 | U116: 0 | V116: USD
A117: Catalogo principalEDUCATIVO77D-00110AP | B117: 77D-00110APEDUCATIVO | D117: Catalogo principal | E117: 77D-00110AP | F117: EDUCATIVO | G117: Catalogo principal | H117: USD | I117: N/A | J117: Microsoft® Visual Studio Professional MSDN All Languages License & Software Assurance_Additional Product | K117: Unidad | L117: Und | M117: License/Software Assurance | N117: N/A | O117: N/A | P117: EES ACADEMICO | Q117: 77D-00110AP | R117: Suscripción Anual | S117: 69 | T117: 1 | U117: 0 | V117: USD
A118: Catalogo principalEDUCATIVO7AH-00281FAC | B118: 7AH-00281FACEDUCATIVO | D118: Catalogo principal | E118: 7AH-00281FAC | F118: EDUCATIVO | G118: Catalogo principal | H118: USD | I118: N/A | J118: Microsoft® SfB Server Enterprise CAL All Languages License & Software Assurance Device CAL_Faculty | K118: Unidad | L118: Und | M118: License/Software Assurance | N118: N/A | O118: N/A | P118: EES ACADEMICO | Q118: 7AH-00281FAC | R118: Suscripción Anual | S118: 12 | T118: 1 | U118: 0 | V118: USD
A119: Catalogo principalEDUCATIVO7AH-00281STU | B119: 7AH-00281STUEDUCATIVO | D119: Catalogo principal | E119: 7AH-00281STU | F119: EDUCATIVO | G119: Catalogo principal | H119: USD | I119: N/A | J119: Microsoft® SfB Server Enterprise CAL All Languages License & Software Assurance Device CAL_Student | K119: Unidad | L119: Und | M119: License/Software Assurance | N119: N/A | O119: N/A | P119: EES ACADEMICO | Q119: 7AH-00281STU | R119: Suscripción Anual | S119: 8 | T119: 1 | U119: 0 | V119: USD
A120: Catalogo principalEDUCATIVO7HS-00001AP | B120: 7HS-00001APEDUCATIVO | D120: Catalogo principal | E120: 7HS-00001AP | F120: EDUCATIVO | G120: Catalogo principal | H120: USD | I120: N/A | J120: Microsoft® Project Online Essentials Edu Subscription Per User_Additional Product | K120: Unidad | L120: Und | M120: Monthly Subscriptions | N120: N/A | O120: N/A | P120: EES ACADEMICO | Q120: 7HS-00001AP | R120: Suscripción mensual con pago anual | S120: 0 | T120: 1 | U120: 0 | V120: USD
A121: Catalogo principalEDUCATIVO7HS-00001STU | B121: 7HS-00001STUEDUCATIVO | D121: Catalogo principal | E121: 7HS-00001STU | F121: EDUCATIVO | G121: Catalogo principal | H121: USD | I121: N/A | J121: Microsoft® Project Online Essentials Edu Subscription Per User_Student | K121: Unidad | L121: Und | M121: Monthly Subscriptions | N121: N/A | O121: N/A | P121: EES ACADEMICO | Q121: 7HS-00001STU | R121: Suscripción mensual con pago anual | S121: 0 | T121: 1 | U121: 0 | V121: USD
A122: Catalogo principalEDUCATIVO7JQ-00341AP | B122: 7JQ-00341APEDUCATIVO | D122: Catalogo principal | E122: 7JQ-00341AP | F122: EDUCATIVO | G122: Catalogo principal | H122: USD | I122: N/A | J122: Microsoft® SQL Server Enterprise Core All Languages License & Software Assurance 2 Licenses_Additional Product | K122: Unidad | L122: Und | M122: License/Software Assurance | N122: N/A | O122: N/A | P122: EES ACADEMICO | Q122: 7JQ-00341AP | R122: Suscripción Anual | S122: 1591 | T122: 1 | U122: 0 | V122: USD
A123: Catalogo principalEDUCATIVO7JQ-00448AP | B123: 7JQ-00448APEDUCATIVO | D123: Catalogo principal | E123: 7JQ-00448AP | F123: EDUCATIVO | G123: Catalogo principal | H123: USD | I123: N/A | J123: Microsoft® SQL Server Enterprise Core All Languages SA Step-up 2 Licenses SQL Svr Standard Core_Additional Product | K123: Unidad | L123: Und | M123: SA Step Up | N123: N/A | O123: N/A | P123: EES ACADEMICO | Q123: 7JQ-00448AP | R123: Suscripción Anual | S123: 1176 | T123: 1 | U123: 0 | V123: USD
A124: Catalogo principalEDUCATIVO7MA-00001AP | B124: 7MA-00001APEDUCATIVO | D124: Catalogo principal | E124: 7MA-00001AP | F124: EDUCATIVO | G124: Catalogo principal | H124: USD | I124: N/A | J124: Microsoft® Project P3 Edu Subscription Per User_Additional Product | K124: Unidad | L124: Und | M124: Monthly Subscriptions | N124: N/A | O124: N/A | P124: EES ACADEMICO | Q124: 7MA-00001AP | R124: Suscripción mensual con pago anual | S124: 6 | T124: 1 | U124: 0 | V124: USD
A125: Catalogo principalEDUCATIVO7MA-00001STU | B125: 7MA-00001STUEDUCATIVO | D125: Catalogo principal | E125: 7MA-00001STU | F125: EDUCATIVO | G125: Catalogo principal | H125: USD | I125: N/A | J125: Microsoft® Project P3 Edu Subscription Per User_Student | K125: Unidad | L125: Und | M125: Monthly Subscriptions | N125: N/A | O125: N/A | P125: EES ACADEMICO | Q125: 7MA-00001STU | R125: Suscripción mensual con pago anual | S125: 4.21 | T125: 1 | U125: 0 | V125: USD
A126: Catalogo principalEDUCATIVO7MA-00002AP | B126: 7MA-00002APEDUCATIVO | D126: Catalogo principal | E126: 7MA-00002AP | F126: EDUCATIVO | G126: Catalogo principal | H126: USD | I126: N/A | J126: Microsoft® Project P3 Edu Step-up Project for O365 Per User_Additional Product | K126: Unidad | L126: Und | M126: Step Up | N126: N/A | O126: N/A | P126: EES ACADEMICO | Q126: 7MA-00002AP | R126: Suscripción mensual con pago anual | S126: 3.41 | T126: 1 | U126: 0 | V126: USD
A127: Catalogo principalEDUCATIVO7MA-00002STU | B127: 7MA-00002STUEDUCATIVO | D127: Catalogo principal | E127: 7MA-00002STU | F127: EDUCATIVO | G127: Catalogo principal | H127: USD | I127: N/A | J127: Microsoft® Project P3 Edu Step-up Project for O365 Per User_Student | K127: Unidad | L127: Und | M127: Step Up | N127: N/A | O127: N/A | P127: EES ACADEMICO | Q127: 7MA-00002STU | R127: Suscripción mensual con pago anual | S127: 3.11 | T127: 1 | U127: 0 | V127: USD
A128: Catalogo principalEDUCATIVO7MA-00003AP | B128: 7MA-00003APEDUCATIVO | D128: Catalogo principal | E128: 7MA-00003AP | F128: EDUCATIVO | G128: Catalogo principal | H128: USD | I128: N/A | J128: Microsoft® Project P3 Edu Step-up Proj Online Essentials for EDU Per User_Additional Product | K128: Unidad | L128: Und | M128: Step Up | N128: N/A | O128: N/A | P128: EES ACADEMICO | Q128: 7MA-00003AP | R128: Suscripción mensual con pago anual | S128: 6 | T128: 1 | U128: 0 | V128: USD
A129: Catalogo principalEDUCATIVO7MA-00003STU | B129: 7MA-00003STUEDUCATIVO | D129: Catalogo principal | E129: 7MA-00003STU | F129: EDUCATIVO | G129: Catalogo principal | H129: USD | I129: N/A | J129: Microsoft® Project P3 Edu Step-up Proj Online Essentials for EDU Per User_Student | K129: Unidad | L129: Und | M129: Step Up | N129: N/A | O129: N/A | P129: EES ACADEMICO | Q129: 7MA-00003STU | R129: Suscripción mensual con pago anual | S129: 4.21 | T129: 1 | U129: 0 | V129: USD
A130: Catalogo principalEDUCATIVO7NQ-00302AP | B130: 7NQ-00302APEDUCATIVO | D130: Catalogo principal | E130: 7NQ-00302AP | F130: EDUCATIVO | G130: Catalogo principal | H130: USD | I130: N/A | J130: Microsoft® SQL Server Standard Core All Languages License & Software Assurance 2 Licenses_Additional Product | K130: Unidad | L130: Und | M130: License/Software Assurance | N130: N/A | O130: N/A | P130: EES ACADEMICO | Q130: 7NQ-00302AP | R130: Suscripción Anual | S130: 415 | T130: 1 | U130: 0 | V130: USD
A131: Catalogo principalEDUCATIVO7TR-00001AP | B131: 7TR-00001APEDUCATIVO | D131: Catalogo principal | E131: 7TR-00001AP | F131: EDUCATIVO | G131: Catalogo principal | H131: USD | I131: N/A | J131: Microsoft® Project P5 Edu Subscription Per User_Additional Product | K131: Unidad | L131: Und | M131: Monthly Subscriptions | N131: N/A | O131: N/A | P131: EES ACADEMICO | Q131: 7TR-00001AP | R131: Suscripción mensual con pago anual | S131: 11 | T131: 1 | U131: 0 | V131: USD
A132: Catalogo principalEDUCATIVO7TR-00001STU | B132: 7TR-00001STUEDUCATIVO | D132: Catalogo principal | E132: 7TR-00001STU | F132: EDUCATIVO | G132: Catalogo principal | H132: USD | I132: N/A | J132: Microsoft® Project P5 Edu Subscription Per User_Student | K132: Unidad | L132: Und | M132: Monthly Subscriptions | N132: N/A | O132: N/A | P132: EES ACADEMICO | Q132: 7TR-00001STU | R132: Suscripción mensual con pago anual | S132: 8 | T132: 1 | U132: 0 | V132: USD
A133: Catalogo principalEDUCATIVO7TR-00002AP | B133: 7TR-00002APEDUCATIVO | D133: Catalogo principal | E133: 7TR-00002AP | F133: EDUCATIVO | G133: Catalogo principal | H133: USD | I133: N/A | J133: Microsoft® Project P5 Edu Step-up Project P5 w/o Client Per User_Additional Product | K133: Unidad | L133: Und | M133: Step Up | N133: N/A | O133: N/A | P133: EES ACADEMICO | Q133: 7TR-00002AP | R133: Suscripción mensual con pago anual | S133: 11 | T133: 1 | U133: 0 | V133: USD
A134: =D134&F134&E134 -> Catalogo principalEDUCATIVO7TR-00002STU | B134: =E134&F134 -> 7TR-00002STUEDUCATIVO | D134: Catalogo principal | E134: 7TR-00002STU | F134: EDUCATIVO | G134: Catalogo principal | H134: USD | I134: N/A | J134: Microsoft® Project P5 Edu Step-up Project P5 w/o Client Per User_Student | K134: Unidad | L134: Und | M134: Step Up | N134: N/A | O134: N/A | P134: EES ACADEMICO | Q134: 7TR-00002STU | R134: Suscripción mensual con pago anual | S134: 8 | T134: 1 | U134: 0 | V134: USD
A135: Catalogo principalEDUCATIVO7TR-00003AP | B135: 7TR-00003APEDUCATIVO | D135: Catalogo principal | E135: 7TR-00003AP | F135: EDUCATIVO | G135: =D135 -> Catalogo principal | H135: USD | I135: N/A | J135: Microsoft® Project P5 Edu Step-up Project P3 Per User_Additional Product | K135: Unidad | L135: Und | M135: Step Up | N135: N/A | O135: N/A | P135: EES ACADEMICO | Q135: 7TR-00003AP | R135: Suscripción mensual con pago anual | S135: 4.68 | T135: 1 | U135: 0 | V135: USD
A136: Catalogo principalEDUCATIVO7TR-00003STU | B136: 7TR-00003STUEDUCATIVO | D136: Catalogo principal | E136: 7TR-00003STU | F136: EDUCATIVO | G136: Catalogo principal | H136: USD | I136: N/A | J136: Microsoft® Project P5 Edu Step-up Project P3 Per User_Student | K136: Unidad | L136: Und | M136: Step Up | N136: N/A | O136: N/A | P136: EES ACADEMICO | Q136: 7TR-00003STU | R136: Suscripción mensual con pago anual | S136: 3.74 | T136: 1 | U136: 0 | V136: USD
A137: Catalogo principalEDUCATIVO7VC-00137AP | B137: 7VC-00137APEDUCATIVO | D137: Catalogo principal | E137: 7VC-00137AP | F137: EDUCATIVO | G137: Catalogo principal | H137: USD | I137: N/A | J137: Microsoft® Forefront Identity Manager All Languages License & Software Assurance Live Edition_Additional Product | K137: Unidad | L137: Und | M137: License/Software Assurance | N137: N/A | O137: N/A | P137: EES ACADEMICO | Q137: 7VC-00137AP | R137: Suscripción Anual | S137: 212 | T137: 1 | U137: 0 | V137: USD
A138: Catalogo principalEDUCATIVO965-00002AP | B138: 965-00002APEDUCATIVO | D138: Catalogo principal | E138: 965-00002AP | F138: EDUCATIVO | G138: Catalogo principal | H138: USD | I138: N/A | J138: Microsoft® Azure Active Directory Basic Subscription Per User_Additional Product | K138: Unidad | L138: Und | M138: Monthly Subscriptions | N138: N/A | O138: N/A | P138: EES ACADEMICO | Q138: 965-00002AP | R138: Suscripción mensual con pago anual | S138: 0 | T138: 1 | U138: 0 | V138: USD
A139: Catalogo principalEDUCATIVO965-00002STU | B139: 965-00002STUEDUCATIVO | D139: Catalogo principal | E139: 965-00002STU | F139: EDUCATIVO | G139: Catalogo principal | H139: USD | I139: N/A | J139: Microsoft® Azure Active Directory Basic Subscription Per User_Student | K139: Unidad | L139: Und | M139: Monthly Subscriptions | N139: N/A | O139: N/A | P139: EES ACADEMICO | Q139: 965-00002STU | R139: Suscripción mensual con pago anual | S139: 0 | T139: 1 | U139: 0 | V139: USD
A140: Catalogo principalEDUCATIVO9EA-00039AP | B140: 9EA-00039APEDUCATIVO | D140: Catalogo principal | E140: 9EA-00039AP | F140: EDUCATIVO | G140: Catalogo principal | H140: USD | I140: N/A | J140: Microsoft® Win Server Datacenter Core All Languages License & Software Assurance 2 Licenses_Additional Product | K140: Unidad | L140: Und | M140: License/Software Assurance | N140: N/A | O140: N/A | P140: EES ACADEMICO | Q140: 9EA-00039AP | R140: Suscripción Anual | S140: 49 | T140: 1 | U140: 0 | V140: USD
A141: Catalogo principalEDUCATIVO9EA-00271AP | B141: 9EA-00271APEDUCATIVO | D141: Catalogo principal | E141: 9EA-00271AP | F141: EDUCATIVO | G141: Catalogo principal | H141: USD | I141: N/A | J141: Microsoft® Win Server Datacenter Core All Languages License & Software Assurance 16 Licenses_Additional Product | K141: Unidad | L141: Und | M141: License/Software Assurance | N141: N/A | O141: N/A | P141: EES ACADEMICO | Q141: 9EA-00271AP | R141: Suscripción Anual | S141: 389 | T141: 1 | U141: 0 | V141: USD
A142: Catalogo principalEDUCATIVO9EA-00274AP | B142: 9EA-00274APEDUCATIVO | D142: Catalogo principal | E142: 9EA-00274AP | F142: EDUCATIVO | G142: Catalogo principal | H142: USD | I142: N/A | J142: Microsoft® Win Server Datacenter Core All Languages SA Step-up 16 Licenses Win Server Std_Additional Product | K142: Unidad | L142: Und | M142: SA Step Up | N142: N/A | O142: N/A | P142: EES ACADEMICO | Q142: 9EA-00274AP | R142: Suscripción Anual | S142: 328 | T142: 1 | U142: 0 | V142: USD
A143: Catalogo principalEDUCATIVO9EA-00279AP | B143: 9EA-00279APEDUCATIVO | D143: Catalogo principal | E143: 9EA-00279AP | F143: EDUCATIVO | G143: Catalogo principal | H143: USD | I143: N/A | J143: Microsoft® Win Server Datacenter Core All Languages SA Step-up 2 Licenses Win Server Std_Additional Product | K143: Unidad | L143: Und | M143: SA Step Up | N143: N/A | O143: N/A | P143: EES ACADEMICO | Q143: 9EA-00279AP | R143: Suscripción Anual | S143: 41 | T143: 1 | U143: 0 | V143: USD
A144: Catalogo principalEDUCATIVO9EM-00265AP | B144: 9EM-00265APEDUCATIVO | D144: Catalogo principal | E144: 9EM-00265AP | F144: EDUCATIVO | G144: Catalogo principal | H144: USD | I144: N/A | J144: Microsoft® Win Server Standard Core All Languages License & Software Assurance 16 Licenses_Additional Product | K144: Unidad | L144: Und | M144: License/Software Assurance | N144: N/A | O144: N/A | P144: EES ACADEMICO | Q144: 9EM-00265AP | R144: Suscripción Anual | S144: 61 | T144: 1 | U144: 0 | V144: USD
A145: Catalogo principalEDUCATIVO9EM-00562AP | B145: 9EM-00562APEDUCATIVO | D145: Catalogo principal | E145: 9EM-00562AP | F145: EDUCATIVO | G145: Catalogo principal | H145: USD | I145: N/A | J145: Microsoft® Win Server Standard Core All Languages License & Software Assurance 2 Licenses_Additional Product | K145: Unidad | L145: Und | M145: License/Software Assurance | N145: N/A | O145: N/A | P145: EES ACADEMICO | Q145: 9EM-00562AP | R145: Suscripción Anual | S145: 8 | T145: 1 | U145: 0 | V145: USD
A146: Catalogo principalEDUCATIVO9EN-00193AP | B146: 9EN-00193APEDUCATIVO | D146: Catalogo principal | E146: 9EN-00193AP | F146: EDUCATIVO | G146: Catalogo principal | H146: USD | I146: N/A | J146: Microsoft® System Center Standard Core All Languages License & Software Assurance 16 Licenses_Additional Product | K146: Unidad | L146: Und | M146: License/Software Assurance | N146: N/A | O146: N/A | P146: EES ACADEMICO | Q146: 9EN-00193AP | R146: Suscripción Anual | S146: 93 | T146: 1 | U146: 0 | V146: USD
A147: Catalogo principalEDUCATIVO9EN-00494AP | B147: 9EN-00494APEDUCATIVO | D147: Catalogo principal | E147: 9EN-00494AP | F147: EDUCATIVO | G147: Catalogo principal | H147: USD | I147: N/A | J147: Microsoft® System Center Standard Core All Languages License & Software Assurance 2 Licenses_Additional Product | K147: Unidad | L147: Und | M147: License/Software Assurance | N147: N/A | O147: N/A | P147: EES ACADEMICO | Q147: 9EN-00494AP | R147: Suscripción Anual | S147: 12 | T147: 1 | U147: 0 | V147: USD
A148: Catalogo principalEDUCATIVO9EP-00037AP | B148: 9EP-00037APEDUCATIVO | D148: Catalogo principal | E148: 9EP-00037AP | F148: EDUCATIVO | G148: Catalogo principal | H148: USD | I148: N/A | J148: Microsoft® System Center Datacenter Core All Languages License & Software Assurance 2 Licenses_Additional Product | K148: Unidad | L148: Und | M148: License/Software Assurance | N148: N/A | O148: N/A | P148: EES ACADEMICO | Q148: 9EP-00037AP | R148: Suscripción Anual | S148: 32 | T148: 1 | U148: 0 | V148: USD
A149: Catalogo principalEDUCATIVO9EP-00201AP | B149: 9EP-00201APEDUCATIVO | D149: Catalogo principal | E149: 9EP-00201AP | F149: EDUCATIVO | G149: Catalogo principal | H149: USD | I149: N/A | J149: Microsoft® System Center Datacenter Core All Languages License & Software Assurance 16 Licenses_Additional Product | K149: Unidad | L149: Und | M149: License/Software Assurance | N149: N/A | O149: N/A | P149: EES ACADEMICO | Q149: 9EP-00201AP | R149: Suscripción Anual | S149: 253 | T149: 1 | U149: 0 | V149: USD
A150: Catalogo principalEDUCATIVO9EP-00204AP | B150: 9EP-00204APEDUCATIVO | D150: Catalogo principal | E150: 9EP-00204AP | F150: EDUCATIVO | G150: Catalogo principal | H150: USD | I150: N/A | J150: Microsoft® System Center Datacenter Core All Languages SA Step-up 16 Licenses Sys Ctr Std_Additional Product | K150: Unidad | L150: Und | M150: SA Step Up | N150: N/A | O150: N/A | P150: EES ACADEMICO | Q150: 9EP-00204AP | R150: Suscripción Anual | S150: 161 | T150: 1 | U150: 0 | V150: USD
A151: Catalogo principalEDUCATIVO9EP-00209AP | B151: 9EP-00209APEDUCATIVO | D151: Catalogo principal | E151: 9EP-00209AP | F151: EDUCATIVO | G151: Catalogo principal | H151: USD | I151: N/A | J151: Microsoft® System Center Datacenter Core All Languages SA Step-up 2 Licenses Sys Ctr Std_Additional Product | K151: Unidad | L151: Und | M151: SA Step Up | N151: N/A | O151: N/A | P151: EES ACADEMICO | Q151: 9EP-00209AP | R151: Suscripción Anual | S151: 21 | T151: 1 | U151: 0 | V151: USD
A152: Catalogo principalEDUCATIVO9GA-00006AP | B152: 9GA-00006APEDUCATIVO | D152: Catalogo principal | E152: 9GA-00006AP | F152: EDUCATIVO | G152: Catalogo principal | H152: USD | I152: N/A | J152: Microsoft® CIS Suite Standard Core All Languages License & Software Assurance 2 Licenses_Additional Product | K152: Unidad | L152: Und | M152: License/Software Assurance | N152: N/A | O152: N/A | P152: EES ACADEMICO | Q152: 9GA-00006AP | R152: Suscripción Anual | S152: 19 | T152: 1 | U152: 0 | V152: USD
A153: Catalogo principalEDUCATIVO9GA-00308AP | B153: 9GA-00308APEDUCATIVO | D153: Catalogo principal | E153: 9GA-00308AP | F153: EDUCATIVO | G153: Catalogo principal | H153: USD | I153: N/A | J153: Microsoft® CIS Suite Standard Core All Languages License & Software Assurance 16 Licenses_Additional Product | K153: Unidad | L153: Und | M153: License/Software Assurance | N153: N/A | O153: N/A | P153: EES ACADEMICO | Q153: 9GA-00308AP | R153: Suscripción Anual | S153: 147 | T153: 1 | U153: 0 | V153: USD
A154: Catalogo principalEDUCATIVO9GS-00128AP | B154: 9GS-00128APEDUCATIVO | D154: Catalogo principal | E154: 9GS-00128AP | F154: EDUCATIVO | G154: Catalogo principal | H154: USD | I154: N/A | J154: Microsoft® CIS Suite Datacenter Core All Languages License & Software Assurance 16 Licenses_Additional Product | K154: Unidad | L154: Und | M154: License/Software Assurance | N154: N/A | O154: N/A | P154: EES ACADEMICO | Q154: 9GS-00128AP | R154: Suscripción Anual | S154: 610 | T154: 1 | U154: 0 | V154: USD
A155: Catalogo principalEDUCATIVO9GS-00131AP | B155: 9GS-00131APEDUCATIVO | D155: Catalogo principal | E155: 9GS-00131AP | F155: EDUCATIVO | G155: Catalogo principal | H155: USD | I155: N/A | J155: Microsoft® CIS Suite Datacenter Core All Languages SA Step-up 16 Licenses CIS Standard Core_Additional Product | K155: Unidad | L155: Und | M155: SA Step Up | N155: N/A | O155: N/A | P155: EES ACADEMICO | Q155: 9GS-00131AP | R155: Suscripción Anual | S155: 463 | T155: 1 | U155: 0 | V155: USD
A156: Catalogo principalEDUCATIVO9GS-00136AP | B156: 9GS-00136APEDUCATIVO | D156: Catalogo principal | E156: 9GS-00136AP | F156: EDUCATIVO | G156: Catalogo principal | H156: USD | I156: N/A | J156: Microsoft® CIS Suite Datacenter Core All Languages SA Step-up 2 Licenses CIS Standard Core_Additional Product | K156: Unidad | L156: Und | M156: SA Step Up | N156: N/A | O156: N/A | P156: EES ACADEMICO | Q156: 9GS-00136AP | R156: Suscripción Anual | S156: 58 | T156: 1 | U156: 0 | V156: USD
A157: Catalogo principalEDUCATIVO9GS-00495AP | B157: 9GS-00495APEDUCATIVO | D157: Catalogo principal | E157: 9GS-00495AP | F157: EDUCATIVO | G157: Catalogo principal | H157: USD | I157: N/A | J157: Microsoft® CIS Suite Datacenter Core All Languages License & Software Assurance 2 Licenses_Additional Product | K157: Unidad | L157: Und | M157: License/Software Assurance | N157: N/A | O157: N/A | P157: EES ACADEMICO | Q157: 9GS-00495AP | R157: Suscripción Anual | S157: 77 | T157: 1 | U157: 0 | V157: USD
A158: Catalogo principalEDUCATIVO9JS-00001AP | B158: 9JS-00001APEDUCATIVO | D158: Catalogo principal | E158: 9JS-00001AP | F158: EDUCATIVO | G158: Catalogo principal | H158: USD | I158: N/A | J158: Microsoft® O365 Extra File Storage Edu Subscription Add-on Extra Storage 1GB_Additional Product | K158: Unidad | L158: Und | M158: Monthly Subscriptions | N158: N/A | O158: N/A | P158: EES ACADEMICO | Q158: 9JS-00001AP | R158: Suscripción mensual con pago anual | S158: 0.22 | T158: 1 | U158: 0 | V158: USD
A159: Catalogo principalEDUCATIVO9KS-00001AP | B159: 9KS-00001APEDUCATIVO | D159: Catalogo principal | E159: 9KS-00001AP | F159: EDUCATIVO | G159: Catalogo principal | H159: USD | I159: N/A | J159: Microsoft® EOA Exchange Server Edu Subscription Per User_Additional Product | K159: Unidad | L159: Und | M159: Monthly Subscriptions | N159: N/A | O159: N/A | P159: EES ACADEMICO | Q159: 9KS-00001AP | R159: Suscripción mensual con pago anual | S159: 1 | T159: 1 | U159: 0 | V159: USD
A160: Catalogo principalEDUCATIVO9KS-00001STU | B160: 9KS-00001STUEDUCATIVO | D160: Catalogo principal | E160: 9KS-00001STU | F160: EDUCATIVO | G160: Catalogo principal | H160: USD | I160: N/A | J160: Microsoft® EOA Exchange Server Edu Subscription Per User_Student | K160: Unidad | L160: Und | M160: Monthly Subscriptions | N160: N/A | O160: N/A | P160: EES ACADEMICO | Q160: 9KS-00001STU | R160: Suscripción mensual con pago anual | S160: 1 | T160: 1 | U160: 0 | V160: USD
A161: Catalogo principalEDUCATIVO9ST-00091AP | B161: 9ST-00091APEDUCATIVO | D161: Catalogo principal | E161: 9ST-00091AP | F161: EDUCATIVO | G161: Catalogo principal | H161: USD | I161: N/A | J161: Microsoft® Office Audit & Control Management All Languages License & Software Assurance_Additional Product | K161: Unidad | L161: Und | M161: License/Software Assurance | N161: N/A | O161: N/A | P161: EES ACADEMICO | Q161: 9ST-00091AP | R161: Suscripción Anual | S161: 285 | T161: 1 | U161: 0 | V161: USD
A162: Catalogo principalEDUCATIVO9TX-00635FAC | B162: 9TX-00635FACEDUCATIVO | D162: Catalogo principal | E162: 9TX-00635FAC | F162: EDUCATIVO | G162: Catalogo principal | H162: USD | I162: N/A | J162: Microsoft® System Center Operations Manager All Languages License & Software Assurance Per OSE_Faculty | K162: Unidad | L162: Und | M162: License/Software Assurance | N162: N/A | O162: N/A | P162: EES ACADEMICO | Q162: 9TX-00635FAC | R162: Suscripción Anual | S162: 1.25 | T162: 1 | U162: 0 | V162: USD
A163: Catalogo principalEDUCATIVO9TX-00635STU | B163: 9TX-00635STUEDUCATIVO | D163: Catalogo principal | E163: 9TX-00635STU | F163: EDUCATIVO | G163: Catalogo principal | H163: USD | I163: N/A | J163: Microsoft® System Center Operations Manager All Languages License & Software Assurance Per OSE_Student | K163: Unidad | L163: Und | M163: License/Software Assurance | N163: N/A | O163: N/A | P163: EES ACADEMICO | Q163: 9TX-00635STU | R163: Suscripción Anual | S163: 0.94 | T163: 1 | U163: 0 | V163: USD
A164: Catalogo principalEDUCATIVOAAA-43267AP | B164: AAA-43267APEDUCATIVO | D164: Catalogo principal | E164: AAA-43267AP | F164: EDUCATIVO | G164: Catalogo principal | H164: USD | I164: N/A | J164: Microsoft® Win E3 VDA Step-up Win VDA All Language_Additional Product | K164: Unidad | L164: Und | M164: Monthly Subscriptions | N164: N/A | O164: N/A | P164: EES ACADEMICO | Q164: AAA-43267AP | R164: Suscripción mensual con pago anual | S164: 0.64 | T164: 1 | U164: 0 | V164: USD
A165: Catalogo principalEDUCATIVOAAA-72987FACA | B165: AAA-72987FACAEDUCATIVO | D165: Catalogo principal | E165: AAA-72987FACA | F165: EDUCATIVO | G165: Catalogo principal | H165: USD | I165: N/A | J165: Microsoft® Win A3 Edu Subscription Per User_FacultyLevelA | K165: Unidad | L165: Und | M165: Monthly Subscriptions | N165: N/A | O165: N/A | P165: EES ACADEMICO | Q165: AAA-72987FACA | R165: Suscripción mensual con pago anual | S165: 2.21 | T165: 1 | U165: 0 | V165: USD
A166: Catalogo principalEDUCATIVOAAA-72987FACB | B166: AAA-72987FACBEDUCATIVO | D166: Catalogo principal | E166: AAA-72987FACB | F166: EDUCATIVO | G166: Catalogo principal | H166: USD | I166: N/A | J166: Microsoft® Win A3 Edu Subscription Per User_FacultyLevelB | K166: Unidad | L166: Und | M166: Monthly Subscriptions | N166: N/A | O166: N/A | P166: EES ACADEMICO | Q166: AAA-72987FACB | R166: Suscripción mensual con pago anual | S166: 2.11 | T166: 1 | U166: 0 | V166: USD
A167: Catalogo principalEDUCATIVOAAA-72987FACC | B167: AAA-72987FACCEDUCATIVO | D167: Catalogo principal | E167: AAA-72987FACC | F167: EDUCATIVO | G167: Catalogo principal | H167: USD | I167: N/A | J167: Microsoft® Win A3 Edu Subscription Per User_FacultyLevelC | K167: Unidad | L167: Und | M167: Monthly Subscriptions | N167: N/A | O167: N/A | P167: EES ACADEMICO | Q167: AAA-72987FACC | R167: Suscripción mensual con pago anual | S167: 2 | T167: 1 | U167: 0 | V167: USD
A168: Catalogo principalEDUCATIVOAAA-72987FACD | B168: AAA-72987FACDEDUCATIVO | D168: Catalogo principal | E168: AAA-72987FACD | F168: EDUCATIVO | G168: Catalogo principal | H168: USD | I168: N/A | J168: Microsoft® Win A3 Edu Subscription Per User_FacultyLevelD | K168: Unidad | L168: Und | M168: Monthly Subscriptions | N168: N/A | O168: N/A | P168: EES ACADEMICO | Q168: AAA-72987FACD | R168: Suscripción mensual con pago anual | S168: 1.91 | T168: 1 | U168: 0 | V168: USD
A169: Catalogo principalEDUCATIVOAAA-72987STUA | B169: AAA-72987STUAEDUCATIVO | D169: Catalogo principal | E169: AAA-72987STUA | F169: EDUCATIVO | G169: Catalogo principal | H169: USD | I169: N/A | J169: Microsoft® Win A3 Edu Subscription Per User_StudentLevelA | K169: Unidad | L169: Und | M169: Monthly Subscriptions | N169: N/A | O169: N/A | P169: EES ACADEMICO | Q169: AAA-72987STUA | R169: Suscripción mensual con pago anual | S169: 1.62 | T169: 1 | U169: 0 | V169: USD
A170: Catalogo principalEDUCATIVOAAA-72987STUB | B170: AAA-72987STUBEDUCATIVO | D170: Catalogo principal | E170: AAA-72987STUB | F170: EDUCATIVO | G170: Catalogo principal | H170: USD | I170: N/A | J170: Microsoft® Win A3 Edu Subscription Per User_StudentLevelB | K170: Unidad | L170: Und | M170: Monthly Subscriptions | N170: N/A | O170: N/A | P170: EES ACADEMICO | Q170: AAA-72987STUB | R170: Suscripción mensual con pago anual | S170: 1.55 | T170: 1 | U170: 0 | V170: USD
A171: Catalogo principalEDUCATIVOAAA-72987STUC | B171: AAA-72987STUCEDUCATIVO | D171: Catalogo principal | E171: AAA-72987STUC | F171: EDUCATIVO | G171: Catalogo principal | H171: USD | I171: N/A | J171: Microsoft® Win A3 Edu Subscription Per User_StudentLevelC | K171: Unidad | L171: Und | M171: Monthly Subscriptions | N171: N/A | O171: N/A | P171: EES ACADEMICO | Q171: AAA-72987STUC | R171: Suscripción mensual con pago anual | S171: 1.47 | T171: 1 | U171: 0 | V171: USD
A172: Catalogo principalEDUCATIVOAAA-72987STUD | B172: AAA-72987STUDEDUCATIVO | D172: Catalogo principal | E172: AAA-72987STUD | F172: EDUCATIVO | G172: Catalogo principal | H172: USD | I172: N/A | J172: Microsoft® Win A3 Edu Subscription Per User_StudentLevelD | K172: Unidad | L172: Und | M172: Monthly Subscriptions | N172: N/A | O172: N/A | P172: EES ACADEMICO | Q172: AAA-72987STUD | R172: Suscripción mensual con pago anual | S172: 1.41 | T172: 1 | U172: 0 | V172: USD
A173: Catalogo principalEDUCATIVOAAA-72988FACA | B173: AAA-72988FACAEDUCATIVO | D173: Catalogo principal | E173: AAA-72988FACA | F173: EDUCATIVO | G173: Catalogo principal | H173: USD | I173: N/A | J173: Microsoft® Win A5 Edu Subscription Per User_FacultyLevelA | K173: Unidad | L173: Und | M173: Monthly Subscriptions | N173: N/A | O173: N/A | P173: EES ACADEMICO | Q173: AAA-72988FACA | R173: Suscripción mensual con pago anual | S173: 4.69 | T173: 1 | U173: 0 | V173: USD
A174: Catalogo principalEDUCATIVOAAA-72988FACB | B174: AAA-72988FACBEDUCATIVO | D174: Catalogo principal | E174: AAA-72988FACB | F174: EDUCATIVO | G174: Catalogo principal | H174: USD | I174: N/A | J174: Microsoft® Win A5 Edu Subscription Per User_FacultyLevelB | K174: Unidad | L174: Und | M174: Monthly Subscriptions | N174: N/A | O174: N/A | P174: EES ACADEMICO | Q174: AAA-72988FACB | R174: Suscripción mensual con pago anual | S174: 4.6 | T174: 1 | U174: 0 | V174: USD
A175: Catalogo principalEDUCATIVOAAA-72988FACC | B175: AAA-72988FACCEDUCATIVO | D175: Catalogo principal | E175: AAA-72988FACC | F175: EDUCATIVO | G175: Catalogo principal | H175: USD | I175: N/A | J175: Microsoft® Win A5 Edu Subscription Per User_FacultyLevelC | K175: Unidad | L175: Und | M175: Monthly Subscriptions | N175: N/A | O175: N/A | P175: EES ACADEMICO | Q175: AAA-72988FACC | R175: Suscripción mensual con pago anual | S175: 4.49 | T175: 1 | U175: 0 | V175: USD
A176: Catalogo principalEDUCATIVOAAA-72988FACD | B176: AAA-72988FACDEDUCATIVO | D176: Catalogo principal | E176: AAA-72988FACD | F176: EDUCATIVO | G176: Catalogo principal | H176: USD | I176: N/A | J176: Microsoft® Win A5 Edu Subscription Per User_FacultyLevelD | K176: Unidad | L176: Und | M176: Monthly Subscriptions | N176: N/A | O176: N/A | P176: EES ACADEMICO | Q176: AAA-72988FACD | R176: Suscripción mensual con pago anual | S176: 4.41 | T176: 1 | U176: 0 | V176: USD
A177: Catalogo principalEDUCATIVOAAA-72988STUA | B177: AAA-72988STUAEDUCATIVO | D177: Catalogo principal | E177: AAA-72988STUA | F177: EDUCATIVO | G177: Catalogo principal | H177: USD | I177: N/A | J177: Microsoft® Win A5 Edu Subscription Per User_StudentLevelA | K177: Unidad | L177: Und | M177: Monthly Subscriptions | N177: N/A | O177: N/A | P177: EES ACADEMICO | Q177: AAA-72988STUA | R177: Suscripción mensual con pago anual | S177: 4.68 | T177: 1 | U177: 0 | V177: USD
A178: Catalogo principalEDUCATIVOAAA-72988STUB | B178: AAA-72988STUBEDUCATIVO | D178: Catalogo principal | E178: AAA-72988STUB | F178: EDUCATIVO | G178: Catalogo principal | H178: USD | I178: N/A | J178: Microsoft® Win A5 Edu Subscription Per User_StudentLevelB | K178: Unidad | L178: Und | M178: Monthly Subscriptions | N178: N/A | O178: N/A | P178: EES ACADEMICO | Q178: AAA-72988STUB | R178: Suscripción mensual con pago anual | S178: 4.61 | T178: 1 | U178: 0 | V178: USD
A179: Catalogo principalEDUCATIVOAAA-72988STUC | B179: AAA-72988STUCEDUCATIVO | D179: Catalogo principal | E179: AAA-72988STUC | F179: EDUCATIVO | G179: Catalogo principal | H179: USD | I179: N/A | J179: Microsoft® Win A5 Edu Subscription Per User_StudentLevelC | K179: Unidad | L179: Und | M179: Monthly Subscriptions | N179: N/A | O179: N/A | P179: EES ACADEMICO | Q179: AAA-72988STUC | R179: Suscripción mensual con pago anual | S179: 4.49 | T179: 1 | U179: 0 | V179: USD
A180: Catalogo principalEDUCATIVOAAA-72988STUD | B180: AAA-72988STUDEDUCATIVO | D180: Catalogo principal | E180: AAA-72988STUD | F180: EDUCATIVO | G180: Catalogo principal | H180: USD | I180: N/A | J180: Microsoft® Win A5 Edu Subscription Per User_StudentLevelD | K180: Unidad | L180: Und | M180: Monthly Subscriptions | N180: N/A | O180: N/A | P180: EES ACADEMICO | Q180: AAA-72988STUD | R180: Suscripción mensual con pago anual | S180: 4.41 | T180: 1 | U180: 0 | V180: USD
A181: Catalogo principalEDUCATIVOAAA-72989FACA | B181: AAA-72989FACAEDUCATIVO | D181: Catalogo principal | E181: AAA-72989FACA | F181: EDUCATIVO | G181: Catalogo principal | H181: USD | I181: N/A | J181: Microsoft® Win A5 Edu Step-up Sub Win A3 Per User_FacultyLevelA | K181: Unidad | L181: Und | M181: Monthly Subscriptions | N181: N/A | O181: N/A | P181: EES ACADEMICO | Q181: AAA-72989FACA | R181: Suscripción mensual con pago anual | S181: 2.65 | T181: 1 | U181: 0 | V181: USD
A182: =D182&F182&E182 -> Catalogo principalEDUCATIVOAAA-72989FACB | B182: =E182&F182 -> AAA-72989FACBEDUCATIVO | D182: Catalogo principal | E182: AAA-72989FACB | F182: EDUCATIVO | G182: Catalogo principal | H182: USD | I182: N/A | J182: Microsoft® Win A5 Edu Step-up Sub Win A3 Per User_FacultyLevelB | K182: Unidad | L182: Und | M182: Monthly Subscriptions | N182: N/A | O182: N/A | P182: EES ACADEMICO | Q182: AAA-72989FACB | R182: Suscripción mensual con pago anual | S182: 2.65 | T182: 1 | U182: 0 | V182: USD
A183: Catalogo principalEDUCATIVOAAA-72989FACC | B183: AAA-72989FACCEDUCATIVO | D183: Catalogo principal | E183: AAA-72989FACC | F183: EDUCATIVO | G183: Catalogo principal | H183: USD | I183: N/A | J183: Microsoft® Win A5 Edu Step-up Sub Win A3 Per User_FacultyLevelC | K183: Unidad | L183: Und | M183: Monthly Subscriptions | N183: N/A | O183: N/A | P183: EES ACADEMICO | Q183: AAA-72989FACC | R183: Suscripción mensual con pago anual | S183: 2.65 | T183: 1 | U183: 0 | V183: USD
A184: Catalogo principalEDUCATIVOAAA-72989FACD | B184: AAA-72989FACDEDUCATIVO | D184: Catalogo principal | E184: AAA-72989FACD | F184: EDUCATIVO | G184: Catalogo principal | H184: USD | I184: N/A | J184: Microsoft® Win A5 Edu Step-up Sub Win A3 Per User_FacultyLevelD | K184: Unidad | L184: Und | M184: Monthly Subscriptions | N184: N/A | O184: N/A | P184: EES ACADEMICO | Q184: AAA-72989FACD | R184: Suscripción mensual con pago anual | S184: 2.65 | T184: 1 | U184: 0 | V184: USD
A185: Catalogo principalEDUCATIVOAAA-72989STUA | B185: AAA-72989STUAEDUCATIVO | D185: Catalogo principal | E185: AAA-72989STUA | F185: EDUCATIVO | G185: Catalogo principal | H185: USD | I185: N/A | J185: Microsoft® Win A5 Edu Step-up Sub Win A3 Per User_StudentLevelA | K185: Unidad | L185: Und | M185: Monthly Subscriptions | N185: N/A | O185: N/A | P185: EES ACADEMICO | Q185: AAA-72989STUA | R185: Suscripción mensual con pago anual | S185: 3.2 | T185: 1 | U185: 0 | V185: USD
A186: Catalogo principalEDUCATIVOAAA-72989STUB | B186: AAA-72989STUBEDUCATIVO | D186: Catalogo principal | E186: AAA-72989STUB | F186: EDUCATIVO | G186: Catalogo principal | H186: USD | I186: N/A | J186: Microsoft® Win A5 Edu Step-up Sub Win A3 Per User_StudentLevelB | K186: Unidad | L186: Und | M186: Monthly Subscriptions | N186: N/A | O186: N/A | P186: EES ACADEMICO | Q186: AAA-72989STUB | R186: Suscripción mensual con pago anual | S186: 3.2 | T186: 1 | U186: 0 | V186: USD
A187: Catalogo principalEDUCATIVOAAA-72989STUC | B187: AAA-72989STUCEDUCATIVO | D187: Catalogo principal | E187: AAA-72989STUC | F187: EDUCATIVO | G187: Catalogo principal | H187: USD | I187: N/A | J187: Microsoft® Win A5 Edu Step-up Sub Win A3 Per User_StudentLevelC | K187: Unidad | L187: Und | M187: Monthly Subscriptions | N187: N/A | O187: N/A | P187: EES ACADEMICO | Q187: AAA-72989STUC | R187: Suscripción mensual con pago anual | S187: 3.15 | T187: 1 | U187: 0 | V187: USD
A188: Catalogo principalEDUCATIVOAAA-72989STUD | B188: AAA-72989STUDEDUCATIVO | D188: Catalogo principal | E188: AAA-72989STUD | F188: EDUCATIVO | G188: Catalogo principal | H188: USD | I188: N/A | J188: Microsoft® Win A5 Edu Step-up Sub Win A3 Per User_StudentLevelD | K188: Unidad | L188: Und | M188: Monthly Subscriptions | N188: N/A | O188: N/A | P188: EES ACADEMICO | Q188: AAA-72989STUD | R188: Suscripción mensual con pago anual | S188: 3.13 | T188: 1 | U188: 0 | V188: USD
A189: Catalogo principalEDUCATIVOAAA-72990SUB | B189: AAA-72990SUBEDUCATIVO | D189: Catalogo principal | E189: AAA-72990SUB | F189: EDUCATIVO | G189: Catalogo principal | H189: USD | I189: N/A | J189: Microsoft® Win A5 Edu Subscription Student Use Benefit Per User | K189: Unidad | L189: Und | M189: Monthly Subscriptions | N189: N/A | O189: N/A | P189: EES ACADEMICO | Q189: AAA-72990SUB | R189: Suscripción mensual con pago anual | S189: 0 | T189: 1 | U189: 0 | V189: USD
A190: Catalogo principalEDUCATIVOAAA-73001SUB | B190: AAA-73001SUBEDUCATIVO | D190: Catalogo principal | E190: AAA-73001SUB | F190: EDUCATIVO | G190: Catalogo principal | H190: USD | I190: N/A | J190: Microsoft® Win A3 Edu Subscription Student Use Benefit Per User | K190: Unidad | L190: Und | M190: Monthly Subscriptions | N190: N/A | O190: N/A | P190: EES ACADEMICO | Q190: AAA-73001SUB | R190: Suscripción mensual con pago anual | S190: 0 | T190: 1 | U190: 0 | V190: USD
A191: Catalogo principalEDUCATIVOAAD-38391FACA | B191: AAD-38391FACAEDUCATIVO | D191: Catalogo principal | E191: AAD-38391FACA | F191: EDUCATIVO | G191: Catalogo principal | H191: USD | I191: N/A | J191: Microsoft® M365 A3 Unified Edu Subscription Per User_FacultyLevelA | K191: Unidad | L191: Und | M191: Monthly Subscriptions | N191: N/A | O191: N/A | P191: EES ACADEMICO | Q191: AAD-38391FACA | R191: Suscripción mensual con pago anual | S191: 5.76 | T191: 1 | U191: 0 | V191: USD
A192: Catalogo principalEDUCATIVOAAD-38391FACB | B192: AAD-38391FACBEDUCATIVO | D192: Catalogo principal | E192: AAD-38391FACB | F192: EDUCATIVO | G192: Catalogo principal | H192: USD | I192: N/A | J192: Microsoft® M365 A3 Unified Edu Subscription Per User_FacultyLevelB | K192: Unidad | L192: Und | M192: Monthly Subscriptions | N192: N/A | O192: N/A | P192: EES ACADEMICO | Q192: AAD-38391FACB | R192: Suscripción mensual con pago anual | S192: 5.37 | T192: 1 | U192: 0 | V192: USD
A193: Catalogo principalEDUCATIVOAAD-38391FACC | B193: AAD-38391FACCEDUCATIVO | D193: Catalogo principal | E193: AAD-38391FACC | F193: EDUCATIVO | G193: Catalogo principal | H193: USD | I193: N/A | J193: Microsoft® M365 A3 Unified Edu Subscription Per User_FacultyLevelC | K193: Unidad | L193: Und | M193: Monthly Subscriptions | N193: N/A | O193: N/A | P193: EES ACADEMICO | Q193: AAD-38391FACC | R193: Suscripción mensual con pago anual | S193: 4.96 | T193: 1 | U193: 0 | V193: USD
A194: Catalogo principalEDUCATIVOAAD-38391FACD | B194: AAD-38391FACDEDUCATIVO | D194: Catalogo principal | E194: AAD-38391FACD | F194: EDUCATIVO | G194: Catalogo principal | H194: USD | I194: N/A | J194: Microsoft® M365 A3 Unified Edu Subscription Per User_FacultyLevelD | K194: Unidad | L194: Und | M194: Monthly Subscriptions | N194: N/A | O194: N/A | P194: EES ACADEMICO | Q194: AAD-38391FACD | R194: Suscripción mensual con pago anual | S194: 4.68 | T194: 1 | U194: 0 | V194: USD
A195: Catalogo principalEDUCATIVOAAD-38391STUA | B195: AAD-38391STUAEDUCATIVO | D195: Catalogo principal | E195: AAD-38391STUA | F195: EDUCATIVO | G195: Catalogo principal | H195: USD | I195: N/A | J195: Microsoft® M365 A3 Unified Edu Subscription Per User_StudentLevelA | K195: Unidad | L195: Und | M195: Monthly Subscriptions | N195: N/A | O195: N/A | P195: EES ACADEMICO | Q195: AAD-38391STUA | R195: Suscripción mensual con pago anual | S195: 4.24 | T195: 1 | U195: 0 | V195: USD
A196: Catalogo principalEDUCATIVOAAD-38391STUB | B196: AAD-38391STUBEDUCATIVO | D196: Catalogo principal | E196: AAD-38391STUB | F196: EDUCATIVO | G196: Catalogo principal | H196: USD | I196: N/A | J196: Microsoft® M365 A3 Unified Edu Subscription Per User_StudentLevelB | K196: Unidad | L196: Und | M196: Monthly Subscriptions | N196: N/A | O196: N/A | P196: EES ACADEMICO | Q196: AAD-38391STUB | R196: Suscripción mensual con pago anual | S196: 3.97 | T196: 1 | U196: 0 | V196: USD
A197: Catalogo principalEDUCATIVOAAD-38391STUC | B197: AAD-38391STUCEDUCATIVO | D197: Catalogo principal | E197: AAD-38391STUC | F197: EDUCATIVO | G197: Catalogo principal | H197: USD | I197: N/A | J197: Microsoft® M365 A3 Unified Edu Subscription Per User_StudentLevelC | K197: Unidad | L197: Und | M197: Monthly Subscriptions | N197: N/A | O197: N/A | P197: EES ACADEMICO | Q197: AAD-38391STUC | R197: Suscripción mensual con pago anual | S197: 3.67 | T197: 1 | U197: 0 | V197: USD
A198: Catalogo principalEDUCATIVOAAD-38391STUD | B198: AAD-38391STUDEDUCATIVO | D198: Catalogo principal | E198: AAD-38391STUD | F198: EDUCATIVO | G198: Catalogo principal | H198: USD | I198: N/A | J198: Microsoft® M365 A3 Unified Edu Subscription Per User_StudentLevelD | K198: Unidad | L198: Und | M198: Monthly Subscriptions | N198: N/A | O198: N/A | P198: EES ACADEMICO | Q198: AAD-38391STUD | R198: Suscripción mensual con pago anual | S198: 3.46 | T198: 1 | U198: 0 | V198: USD
A199: Catalogo principalEDUCATIVOAAD-38392FACA | B199: AAD-38392FACAEDUCATIVO | D199: Catalogo principal | E199: AAD-38392FACA | F199: EDUCATIVO | G199: =D199 -> Catalogo principal | H199: USD | I199: N/A | J199: Microsoft® M365 A3 Unified Edu Subscription for CCAL Per User_FacultyLevelA | K199: Unidad | L199: Und | M199: Monthly Subscriptions | N199: N/A | O199: N/A | P199: EES ACADEMICO | Q199: AAD-38392FACA | R199: Suscripción mensual con pago anual | S199: 4.92 | T199: 1 | U199: 0 | V199: USD
A200: Catalogo principalEDUCATIVOAAD-38392FACB | B200: AAD-38392FACBEDUCATIVO | D200: Catalogo principal | E200: AAD-38392FACB | F200: EDUCATIVO | G200: Catalogo principal | H200: USD | I200: N/A | J200: Microsoft® M365 A3 Unified Edu Subscription for CCAL Per User_FacultyLevelB | K200: Unidad | L200: Und | M200: Monthly Subscriptions | N200: N/A | O200: N/A | P200: EES ACADEMICO | Q200: AAD-38392FACB | R200: Suscripción mensual con pago anual | S200: 4.59 | T200: 1 | U200: 0 | V200: USD
... 4300 more rows

Sheet ProXCat (hidden)
A3: Etiquetas de fila
A4: 1
A5: Controles Empresariales S.A.S.
A6: The Best Experience in Technology S.A
A7: UT Soft-IG
A8: UT Soluciones Microsoft 2017
A9: Total 1
A10: 2
A11: Controles Empresariales S.A.S.
A12: Dell Colombia INC
A13: The Best Experience in Technology S.A
A14: UT Soft-IG
A15: UT Soluciones Microsoft 2017
A16: Total 2
A17: 3
A18: Controles Empresariales S.A.S.
A19: UT Soft-IG
A20: UT Soluciones Microsoft 2017
A21: Total 3
A22: 4
A23: Controles Empresariales S.A.S.
A24: UT Soft-IG
A25: Total 4
A26: 5
A27: Controles Empresariales S.A.S.
A28: UT Soft-IG
A29: Vision Software S.A.S.
A30: Total 5
A31: 6
A32: Controles Empresariales S.A.S.
A33: The Best Experience in Technology S.A
A34: UT Soft-IG
A35: UT Soluciones Microsoft 2017
A36: Total 6
A37: 7
A38: Controles Empresariales S.A.S.
A39: The Best Experience in Technology S.A
A40: UT Soft-IG
A41: UT Soluciones Microsoft 2017
A42: Vision Software S.A.S.
A43: Total 7
A44: Total general

Sheet Cuadro Totales (hidden)
A1: Precio Unitario | B1: Precio Unitario + Gravamen | C1: Subtotal | D1: IVA | E1: Precio Total
D3: Valor Total | E3: =SUM(E2) -> 0
A8: Precio Unitario | B8: Precio Unitario + Gravamen | C8: Descuento adicional | D8: Precio con Descuento | E8: Subtotal | F8: IVA | G8: Vr IVA | H8: Precio Total
G10: Valor Total | H10: =SUM(H9) -> 0
A13: Servicios Azure
A14: Subtotal | B14: IVA | C14: Precio Total

Sheet Listas (hidden)
A1: Categoria | B1: Zona | C1: Marca | D1: ProductoInicial | E1: Producto | F1: Proveedores | G1: UT DELL EMC
A2: EDUCATIVO | D2: W06-01063EAENT | F2: Alfapeople
A3: ENTERPRISE | D3: W06-00022EAENT | F3: Controles Empresariales
A4: ENTERPRISE ENTIDADES NO CUALIFICADAS | D4: W06-00445EAENT | F4: Nimbutech
A5: CANAL | D5: W06-01066EAENT | F5: Servicios fabricante- Microsoft Soporte Premier
A6: Microsoft Soporte Premier | D6: 76A-00010EAENT | F6: UT SOFT IG3
D7: 76A-00028EAENT | F7: UT Softlinebext 20202
D8: 76A-00007EAENT
D9: 76A-00025EAENT
D10: B65-00047EAENT
D11: A07-00041EAENT
D12: 269-12445EAENT
D13: 269-05623EAENT
D14: YEG-00397EAENT
D15: YEG-00631EAENT
D16: YEG-00632EAENT
D17: YEG-00396EAENT
D18: KV3-00356EAENT
D19: KV3-00381EAENT
D20: W06-01063EAENTTUP
D21: W06-00022EAENTTUP
D22: W06-00445EAENTTUP
D23: W06-01066EAENTTUP
D24: 76A-00010EAENTTUP
D25: 76A-00028EAENTTUP
D26: 76A-00007EAENTTUP
D27: 76A-00025EAENTTUP
D28: B65-00047EAENTTUP
D29: A07-00041EAENTTUP
D30: 269-12445EAENTTUP
D31: 269-05623EAENTTUP
D32: YEG-00397EAENTTUP
D33: YEG-00631EAENTTUP
D34: YEG-00632EAENTTUP
D35: YEG-00396EAENTTUP
D36: KV3-00356EAENTTUP
D37: KV3-00381EAENTTUP
D38: W06-01069EAENT
D39: W06-00021EAENT
D40: W06-00446EAENT
D41: W06-01072EAENT
D42: 76A-00016EAENT
D43: 76A-00034EAENT
D44: 76A-00013EAENT
D45: 76A-00031EAENT
D46: B65-00048EAENT
D47: A07-00042EAENT
D48: 269-12442EAENT
D49: 269-05704EAENT
D50: YEG-00399EAENT
D51: YEG-00633EAENT
D52: YEG-00634EAENT
D53: YEG-00398EAENT
D54: KV3-00353EAENT
D55: KV3-00368EAENT
D56: NH3-00119EAAP
D57: NH3-00120EAAP
D58: 125-00110EAAP
D59: 126-00169EAAP
D60: 126-00156EAAP
D61: D75-01979EAAP
D62: HJA-00774EAAP
D63: F52-02144EAAP
D64: 9GA-00006EAAP
D65: 9GS-00128EAAP
D66: 9GA-00308EAAP
D67: 9GS-00495EAAP
D68: EMT-00152EAAP
D69: EMT-00151EAAP
D70: GRK-00005EAAP
D71: GRN-00004EAAP
D72: GRM-00004EAAP
D73: GRL-00005EAAP
D74: ENJ-00151EAAP
D75: ENJ-00152EAAP
D76: EMJ-00152EAAP
D77: EMJ-00151EAAP
D78: 312-02177EAAP
D79: 395-02412EAAP
D80: PGI-00268EAAP
D81: PGI-00267EAAP
D82: 3VU-00043EAAP
D83: 9ST-00091EAAP
D84: PL7-00058EAAP
D85: NK7-00065EAAP
D86: 076-01776EAAP
D87: H21-00419EAAP
D88: H22-00479EAAP
D89: H21-00595EAAP
D90: H30-00237EAAP
D91: 7AH-00282EAAP
D92: 6YH-00575EAAP
D93: 5HU-00215EAAP
D94: 7AH-00281EAAP
D95: YEG-00397EAAP
D96: YEG-00631EAAP
D97: YEG-00632EAAP
D98: YEG-00396EAAP
D99: 76N-02345EAAP
D100: 76N-02427EAAP
D101: H04-00232EAAP
D102: 228-04437EAAP
D103: 359-00960EAAP
D104: 7JQ-00341EAAP
D105: 7NQ-00302EAAP
D106: 359-00765EAAP
D107: 3ZK-00194EAAP
D108: 3ND-00525EAAP
D109: 9TX-00003EAAP
D110: TSC-00976EAAP
D111: 3ND-00524EAAP
D112: 3ZK-00193EAAP
D113: 9TX-00635EAAP
D114: TSC-00379EAAP
D115: 9EP-00201EAAP
D116: 9EP-00037EAAP
D117: 9EN-00494EAAP
D118: 9EN-00193EAAP
D119: D86-01175EAAP
D120: D87-01057EAAP
D121: 6VC-01252EAAP
D122: 6VC-01251EAAP
D123: 6XC-00298EAAP
D124: T98-00796EAAP
D125: T99-00367EAAP
D126: T98-00797EAAP
D127: R39-00374EAAP
D128: 77D-00110EAAP
D129: MX3-00115EAAP
D130: L5D-00161EAAP
D131: QEJ-00001EAAP
D132: QEK-00001EAAP
D133: 9EM-00265EAAP
D134: 9EM-00562EAAP
D135: 9EA-00271EAAP
D136: 9EA-00039EAAP
D137: NH3-00121EAAP
D138: NH3-00122EAAP
D139: 125-00124EAAP
D140: 126-00196EAAP
D141: 126-00183EAAP
D142: D75-01981EAAP
D143: HJA-00775EAAP
D144: F52-02145EAAP
D145: 9GA-00313EAAP
D146: 9GS-00130EAAP
D147: 9GA-00310EAAP
D148: 9GS-00135EAAP
D149: EMT-00156EAAP
D150: EMT-00155EAAP
D151: GRK-00006EAAP
D152: GRN-00005EAAP
D153: GRM-00005EAAP
D154: GRL-00006EAAP
D155: ENJ-00155EAAP
D156: ENJ-00156EAAP
D157: EMJ-00156EAAP
D158: EMJ-00155EAAP
D159: 312-02257EAAP
D160: 395-02504EAAP
D161: PGI-00270EAAP
D162: PGI-00269EAAP
D163: 3VU-00044EAAP
D164: 9ST-00092EAAP
D165: PL7-00059EAAP
D166: NK7-00066EAAP
D167: 076-01912EAAP
D168: H21-00420EAAP
D169: H22-00475EAAP
D170: H21-00591EAAP
D171: H30-00238EAAP
D172: 7AH-00284EAAP
D173: 6YH-00586EAAP
D174: 5HU-00216EAAP
D175: 7AH-00283EAAP
D176: YEG-00399EAAP
D177: YEG-00633EAAP
D178: YEG-00634EAAP
D179: YEG-00398EAAP
D180: 76N-02468EAAP
D181: 76N-02550EAAP
D182: H04-00268EAAP
D183: 228-04433EAAP
D184: 359-00961EAAP
D185: 7JQ-00343EAAP
D186: 7NQ-00292EAAP
D187: 359-00792EAAP
D188: 3ZK-00196EAAP
D189: 3ND-00528EAAP
D190: 9TX-00005EAAP
D191: TSC-00977EAAP
D192: 3ND-00527EAAP
D193: 3ZK-00195EAAP
D194: 9TX-00629EAAP
D195: TSC-00381EAAP
D196: 9EP-00203EAAP
D197: 9EP-00208EAAP
D198: 9EN-00198EAAP
D199: 9EN-00195EAAP
D200: D86-01253EAAP
... 1086 more rows

Sheet minimo (hidden)
C1: categoria | D1: CANAL
C3: Row Labels | D3: Suma de total
C4: UT SOFT IG3 | D4: 78537000
C5: Controles Empresariales | D5: 118921071
C6: UT Softlinebext 20202 | D6: 127333333.3
C7: Nimbutech | D7: 171125000
C8: Alfapeople | D8: 192250000
C9: Grand Total | D9: 688166404.3

Sheet temp (hidden)
A1: LLAVE | B1: TEMP1 | C1: TEMP2 | D1: PROVEEDOR | E1: Código matriz Colombia Compra Eficiente | F1: categoria | G1: PROVEEDOR2 | H1: Moneda | I1: Parametrización de los Servicios | J1: Nombre Producto | K1: Unidad de Medida | L1: Unidad TVEC | M1: Tipo | N1: Zona | O1: Asistencia | P1: Perfil | Q1: Número de parte | R1: Forma de Pago | S1: Precio | T1: Activo | U1: IVA | V1: cant | W1: valor base | X1: valor con gravamenes | Y1: total
A2: =D2&F2&E2 -> Catalogo principalEDUCATIVO125-00110AP | B2: =E2&F2 -> 125-00110APEDUCATIVO | D2: Catalogo principal | E2: 125-00110AP | F2: EDUCATIVO | G2: =D2 -> Catalogo principal | H2: USD | I2: N/A | J2: Microsoft® Azure DevOps Server All Languages License & Software Assurance_Additional Product | K2: Unidad | L2: Und | M2: License/Software Assurance | N2: N/A | O2: N/A | P2: EES ACADEMICO | Q2: 125-00110AP | R2: Suscripción Anual | S2: 41 | T2: 1 | U2: 0 | V2: =SUMIF(ResumenCotizacion!$C:$C,E2,ResumenCotizacion!$P:$P) -> 0 | W2: =IF(H2="USD",S2*SolCotizacion!$J$18,S2) -> 159837.68 | X2: =ROUND(W2/(1-VLOOKUP("Total porcentaje:",ResumenCotizacion!$F:$H,3,0)),2) -> 159837.68 | Y2: =V2*X2 -> 0
A3: Catalogo principalEDUCATIVO126-00156AP | B3: =E3&F3 -> 126-00156APEDUCATIVO | D3: Catalogo principal | E3: 126-00156AP | F3: EDUCATIVO | G3: =D3 -> Catalogo principal | H3: USD | I3: N/A | J3: Microsoft® Azure DevOps Server CAL All Languages License & Software Assurance Device CAL_Additional Product | K3: Unidad | L3: Und | M3: License/Software Assurance | N3: N/A | O3: N/A | P3: EES ACADEMICO | Q3: 126-00156AP | R3: Suscripción Anual | S3: 41 | T3: 1 | U3: 0 | V3: =SUMIF(ResumenCotizacion!$C:$C,E3,ResumenCotizacion!$P:$P) -> 0 | W3: =IF(H3="USD",S3*SolCotizacion!$J$18,S3) -> 159837.68 | X3: =ROUND(W3/(1-VLOOKUP("Total porcentaje:",ResumenCotizacion!$F:$H,3,0)),2) -> 159837.68 | Y3: =V3*X3 -> 0
A4: Catalogo principalEDUCATIVO228-04437AP | B4: 228-04437APEDUCATIVO | D4: Catalogo principal | E4: 228-04437AP | F4: EDUCATIVO | G4: Catalogo principal | H4: USD | I4: N/A | J4: Microsoft® SQL Server Standard All Languages License & Software Assurance_Additional Product | K4: Unidad | L4: Und | M4: License/Software Assurance | N4: N/A | O4: N/A | P4: EES ACADEMICO | Q4: 228-04437AP | R4: Suscripción Anual | S4: 104 | T4: 1 | U4: 0 | V4: =SUMIF(ResumenCotizacion!$C:$C,E4,ResumenCotizacion!$P:$P) -> 0 | W4: =IF(H4="USD",S4*SolCotizacion!$J$18,S4) -> 405441.92 | X4: =ROUND(W4/(1-VLOOKUP("Total porcentaje:",ResumenCotizacion!$F:$H,3,0)),2) -> 405441.92 | Y4: 0
A5: Catalogo principalEDUCATIVO2ER-00003AP | B5: 2ER-00003APEDUCATIVO | D5: Catalogo principal | E5: 2ER-00003AP | F5: EDUCATIVO | G5: Catalogo principal | H5: USD | I5: N/A | J5: Microsoft® Defender Cloud Apps Subscription Per User Education_Additional Product | K5: Unidad | L5: Und | M5: Monthly Subscriptions | N5: N/A | O5: N/A | P5: EES ACADEMICO | Q5: 2ER-00003AP | R5: Suscripción mensual con pago anual | S5: 0.9 | T5: 1 | U5: 0 | V5: =SUMIF(ResumenCotizacion!$C:$C,E5,ResumenCotizacion!$P:$P) -> 0 | W5: =IF(H5="USD",S5*SolCotizacion!$J$18,S5) -> 3508.632 | X5: =ROUND(W5/(1-VLOOKUP("Total porcentaje:",ResumenCotizacion!$F:$H,3,0)),2) -> 3508.63 | Y5: 0
A6: Catalogo principalEDUCATIVO2ER-00003STU | B6: 2ER-00003STUEDUCATIVO | D6: Catalogo principal | E6: 2ER-00003STU | F6: EDUCATIVO | G6: Catalogo principal | H6: USD | I6: N/A | J6: Microsoft® Defender Cloud Apps Subscription Per User Education_Student | K6: Unidad | L6: Und | M6: Monthly Subscriptions | N6: N/A | O6: N/A | P6: EES ACADEMICO | Q6: 2ER-00003STU | R6: Suscripción mensual con pago anual | S6: 0.5 | T6: 1 | U6: 0 | V6: =SUMIF(ResumenCotizacion!$C:$C,E6,ResumenCotizacion!$P:$P) -> 0 | W6: =IF(H6="USD",S6*SolCotizacion!$J$18,S6) -> 1949.24 | X6: =ROUND(W6/(1-VLOOKUP("Total porcentaje:",ResumenCotizacion!$F:$H,3,0)),2) -> 1949.24 | Y6: 0
A7: Catalogo principalEDUCATIVO2ZA-00001SUB | B7: 2ZA-00001SUBEDUCATIVO | D7: Catalogo principal | E7: 2ZA-00001SUB | F7: EDUCATIVO | G7: Catalogo principal | H7: USD | I7: N/A | J7: Microsoft® Minecraft Education (M365 A5) Subscription Student Use Benefit Per User | K7: Unidad | L7: Und | M7: Monthly Subscriptions | N7: N/A | O7: N/A | P7: EES ACADEMICO | Q7: 2ZA-00001SUB | R7: Suscripción mensual con pago anual | S7: 0 | T7: 1 | U7: 0 | V7: =SUMIF(ResumenCotizacion!$C:$C,E7,ResumenCotizacion!$P:$P) -> 0 | W7: =IF(H7="USD",S7*SolCotizacion!$J$18,S7) -> 0 | X7: =ROUND(W7/(1-VLOOKUP("Total porcentaje:",ResumenCotizacion!$F:$H,3,0)),2) -> 0 | Y7: 0
A8: Catalogo principalEDUCATIVO2ZA-00002AP | B8: 2ZA-00002APEDUCATIVO | D8: Catalogo principal | E8: 2ZA-00002AP | F8: EDUCATIVO | G8: Catalogo principal | H8: USD | I8: N/A | J8: Microsoft® Minecraft Education (M365 A5) Subscription Per User_Additional Product | K8: Unidad | L8: Und | M8: Monthly Subscriptions | N8: N/A | O8: N/A | P8: EES ACADEMICO | Q8: 2ZA-00002AP | R8: Suscripción mensual con pago anual | S8: 0.42 | T8: 1 | U8: 0 | V8: =SUMIF(ResumenCotizacion!$C:$C,E8,ResumenCotizacion!$P:$P) -> 0 | W8: =IF(H8="USD",S8*SolCotizacion!$J$18,S8) -> 1637.3616 | X8: =ROUND(W8/(1-VLOOKUP("Total porcentaje:",ResumenCotizacion!$F:$H,3,0)),2) -> 1637.36 | Y8: 0
A9: Catalogo principalEDUCATIVO2ZA-00002FAC | B9: 2ZA-00002FACEDUCATIVO | D9: Catalogo principal | E9: 2ZA-00002FAC | F9: EDUCATIVO | G9: Catalogo principal | H9: USD | I9: N/A | J9: Microsoft® Minecraft Education (M365 A5) Subscription Per User_Faculty | K9: Unidad | L9: Und | M9: Monthly Subscriptions | N9: N/A | O9: N/A | P9: EES ACADEMICO | Q9: 2ZA-00002FAC | R9: Suscripción mensual con pago anual | S9: 1.1 | T9: 1 | U9: 0 | V9: =SUMIF(ResumenCotizacion!$C:$C,E9,ResumenCotizacion!$P:$P) -> 0 | W9: =IF(H9="USD",S9*SolCotizacion!$J$18,S9) -> 4288.328 | X9: =ROUND(W9/(1-VLOOKUP("Total porcentaje:",ResumenCotizacion!$F:$H,3,0)),2) -> 4288.33 | Y9: 0
A10: Catalogo principalEDUCATIVO2ZA-00002STU | B10: 2ZA-00002STUEDUCATIVO | D10: Catalogo principal | E10: 2ZA-00002STU | F10: EDUCATIVO | G10: Catalogo principal | H10: USD | I10: N/A | J10: Microsoft® Minecraft Education (M365 A5) Subscription Per User_Student | K10: Unidad | L10: Und | M10: Monthly Subscriptions | N10: N/A | O10: N/A | P10: EES ACADEMICO | Q10: 2ZA-00002STU | R10: Suscripción mensual con pago anual | S10: 0.42 | T10: 1 | U10: 0 | V10: =SUMIF(ResumenCotizacion!$C:$C,E10,ResumenCotizacion!$P:$P) -> 0 | W10: =IF(H10="USD",S10*SolCotizacion!$J$18,S10) -> 1637.3616 | X10: =ROUND(W10/(1-VLOOKUP("Total porcentaje:",ResumenCotizacion!$F:$H,3,0)),2) -> 1637.36 | Y10: 0
A11: Catalogo principalEDUCATIVO312-02177AP | B11: 312-02177APEDUCATIVO | D11: Catalogo principal | E11: 312-02177AP | F11: EDUCATIVO | G11: Catalogo principal | H11: USD | I11: N/A | J11: Microsoft® Exchange Server Standard All Languages License & Software Assurance_Additional Product | K11: Unidad | L11: Und | M11: License/Software Assurance | N11: N/A | O11: N/A | P11: EES ACADEMICO | Q11: 312-02177AP | R11: Suscripción Anual | S11: 75 | T11: 1 | U11: 0 | V11: =SUMIF(ResumenCotizacion!$C:$C,E11,ResumenCotizacion!$P:$P) -> 0 | W11: =IF(H11="USD",S11*SolCotizacion!$J$18,S11) -> 292386 | X11: =ROUND(W11/(1-VLOOKUP("Total porcentaje:",ResumenCotizacion!$F:$H,3,0)),2) -> 292386 | Y11: 0
A12: Catalogo principalEDUCATIVO32M-00001AP | B12: 32M-00001APEDUCATIVO | D12: Catalogo principal | E12: 32M-00001AP | F12: EDUCATIVO | G12: Catalogo principal | H12: USD | I12: N/A | J12: Microsoft® MyAnalytics Edu Subscription Per User_Additional Product | K12: Unidad | L12: Und | M12: Monthly Subscriptions | N12: N/A | O12: N/A | P12: EES ACADEMICO | Q12: 32M-00001AP | R12: Suscripción mensual con pago anual | S12: 1.5 | T12: 1 | U12: 0 | V12: =SUMIF(ResumenCotizacion!$C:$C,E12,ResumenCotizacion!$P:$P) -> 0 | W12: =IF(H12="USD",S12*SolCotizacion!$J$18,S12) -> 5847.72 | X12: =ROUND(W12/(1-VLOOKUP("Total porcentaje:",ResumenCotizacion!$F:$H,3,0)),2) -> 5847.72 | Y12: 0
A13: Catalogo principalEDUCATIVO32M-00001STU | B13: 32M-00001STUEDUCATIVO | D13: Catalogo principal | E13: 32M-00001STU | F13: EDUCATIVO | G13: Catalogo principal | H13: USD | I13: N/A | J13: Microsoft® MyAnalytics Edu Subscription Per User_Student | K13: Unidad | L13: Und | M13: Monthly Subscriptions | N13: N/A | O13: N/A | P13: EES ACADEMICO | Q13: 32M-00001STU | R13: Suscripción mensual con pago anual | S13: 1.12 | T13: 1 | U13: 0 | V13: =SUMIF(ResumenCotizacion!$C:$C,E13,ResumenCotizacion!$P:$P) -> 0 | W13: =IF(H13="USD",S13*SolCotizacion!$J$18,S13) -> 4366.2976 | X13: =ROUND(W13/(1-VLOOKUP("Total porcentaje:",ResumenCotizacion!$F:$H,3,0)),2) -> 4366.3 | Y13: 0
A14: Catalogo principalEDUCATIVO359-00765AP | B14: 359-00765APEDUCATIVO | D14: Catalogo principal | E14: 359-00765AP | F14: EDUCATIVO | G14: Catalogo principal | H14: USD | I14: N/A | J14: Microsoft® SQL CAL All Languages License & Software Assurance Device CAL_Additional Product | K14: Unidad | L14: Und | M14: License/Software Assurance | N14: N/A | O14: N/A | P14: EES ACADEMICO | Q14: 359-00765AP | R14: Suscripción Anual | S14: 25 | T14: 1 | U14: 0 | V14: =SUMIF(ResumenCotizacion!$C:$C,E14,ResumenCotizacion!$P:$P) -> 0 | W14: =IF(H14="USD",S14*SolCotizacion!$J$18,S14) -> 97462 | X14: =ROUND(W14/(1-VLOOKUP("Total porcentaje:",ResumenCotizacion!$F:$H,3,0)),2) -> 97462 | Y14: 0
A15: Catalogo principalEDUCATIVO359-00765FAC | B15: 359-00765FACEDUCATIVO | D15: Catalogo principal | E15: 359-00765FAC | F15: EDUCATIVO | G15: Catalogo principal | H15: USD | I15: N/A | J15: Microsoft® SQL CAL All Languages License & Software Assurance Device CAL_Faculty | K15: Unidad | L15: Und | M15: License/Software Assurance | N15: N/A | O15: N/A | P15: EES ACADEMICO | Q15: 359-00765FAC | R15: Suscripción Anual | S15: 9 | T15: 1 | U15: 0 | V15: =SUMIF(ResumenCotizacion!$C:$C,E15,ResumenCotizacion!$P:$P) -> 0 | W15: =IF(H15="USD",S15*SolCotizacion!$J$18,S15) -> 35086.32 | X15: =ROUND(W15/(1-VLOOKUP("Total porcentaje:",ResumenCotizacion!$F:$H,3,0)),2) -> 35086.32 | Y15: 0
A16: Catalogo principalEDUCATIVO359-00765STU | B16: 359-00765STUEDUCATIVO | D16: Catalogo principal | E16: 359-00765STU | F16: EDUCATIVO | G16: Catalogo principal | H16: USD | I16: N/A | J16: Microsoft® SQL CAL All Languages License & Software Assurance Device CAL_Student | K16: Unidad | L16: Und | M16: License/Software Assurance | N16: N/A | O16: N/A | P16: EES ACADEMICO | Q16: 359-00765STU | R16: Suscripción Anual | S16: 9 | T16: 1 | U16: 0 | V16: =SUMIF(ResumenCotizacion!$C:$C,E16,ResumenCotizacion!$P:$P) -> 0 | W16: =IF(H16="USD",S16*SolCotizacion!$J$18,S16) -> 35086.32 | X16: =ROUND(W16/(1-VLOOKUP("Total porcentaje:",ResumenCotizacion!$F:$H,3,0)),2) -> 35086.32 | Y16: 0
A17: Catalogo principalEDUCATIVO381-01587FAC | B17: 381-01587FACEDUCATIVO | D17: Catalogo principal | E17: 381-01587FAC | F17: EDUCATIVO | G17: Catalogo principal | H17: USD | I17: N/A | J17: Microsoft® Exchange Standard CAL All Languages License & Software Assurance Device CAL_Faculty | K17: Unidad | L17: Und | M17: License/Software Assurance | N17: N/A | O17: N/A | P17: EES ACADEMICO | Q17: 381-01587FAC | R17: Suscripción Anual | S17: 2.96 | T17: 1 | U17: 0 | V17: =SUMIF(ResumenCotizacion!$C:$C,E17,ResumenCotizacion!$P:$P) -> 0 | W17: =IF(H17="USD",S17*SolCotizacion!$J$18,S17) -> 11539.5008 | X17: =ROUND(W17/(1-VLOOKUP("Total porcentaje:",ResumenCotizacion!$F:$H,3,0)),2) -> 11539.5 | Y17: 0
A18: Catalogo principalEDUCATIVO381-01587STU | B18: 381-01587STUEDUCATIVO | D18: Catalogo principal | E18: 381-01587STU | F18: EDUCATIVO | G18: Catalogo principal | H18: USD | I18: N/A | J18: Microsoft® Exchange Standard CAL All Languages License & Software Assurance Device CAL_Student | K18: Unidad | L18: Und | M18: License/Software Assurance | N18: N/A | O18: N/A | P18: EES ACADEMICO | Q18: 381-01587STU | R18: Suscripción Anual | S18: 0.78 | T18: 1 | U18: 0 | V18: =SUMIF(ResumenCotizacion!$C:$C,E18,ResumenCotizacion!$P:$P) -> 0 | W18: =IF(H18="USD",S18*SolCotizacion!$J$18,S18) -> 3040.8144 | X18: =ROUND(W18/(1-VLOOKUP("Total porcentaje:",ResumenCotizacion!$F:$H,3,0)),2) -> 3040.81 | Y18: 0
A19: Catalogo principalEDUCATIVO395-02412AP | B19: 395-02412APEDUCATIVO | D19: Catalogo principal | E19: 395-02412AP | F19: EDUCATIVO | G19: Catalogo principal | H19: USD | I19: N/A | J19: Microsoft® Exchange Server Enterprise All Languages License & Software Assurance_Additional Product | K19: Unidad | L19: Und | M19: License/Software Assurance | N19: N/A | O19: N/A | P19: EES ACADEMICO | Q19: 395-02412AP | R19: Suscripción Anual | S19: 426 | T19: 1 | U19: 0 | V19: =SUMIF(ResumenCotizacion!$C:$C,E19,ResumenCotizacion!$P:$P) -> 0 | W19: =IF(H19="USD",S19*SolCotizacion!$J$18,S19) -> 1660752.48 | X19: =ROUND(W19/(1-VLOOKUP("Total porcentaje:",ResumenCotizacion!$F:$H,3,0)),2) -> 1660752.48 | Y19: 0
A20: Catalogo principalEDUCATIVO395-03039AP | B20: 395-03039APEDUCATIVO | D20: Catalogo principal | E20: 395-03039AP | F20: EDUCATIVO | G20: Catalogo principal | H20: USD | I20: N/A | J20: Microsoft® Exchange Server Enterprise All Languages SA Step-up Exchg Svr - Std_Additional Product | K20: Unidad | L20: Und | M20: SA Step Up | N20: N/A | O20: N/A | P20: EES ACADEMICO | Q20: 395-03039AP | R20: Suscripción Anual | S20: 352 | T20: 1 | U20: 0 | V20: =SUMIF(ResumenCotizacion!$C:$C,E20,ResumenCotizacion!$P:$P) -> 0 | W20: =IF(H20="USD",S20*SolCotizacion!$J$18,S20) -> 1372264.96 | X20: =ROUND(W20/(1-VLOOKUP("Total porcentaje:",ResumenCotizacion!$F:$H,3,0)),2) -> 1372264.96 | Y20: 0
A21: Catalogo principalEDUCATIVO3ND-00524FAC | B21: 3ND-00524FACEDUCATIVO | D21: Catalogo principal | E21: 3ND-00524FAC | F21: EDUCATIVO | G21: Catalogo principal | H21: USD | I21: N/A | J21: Microsoft® System Center Service Manager All Languages License & Software Assurance Per OSE_Faculty | K21: Unidad | L21: Und | M21: License/Software Assurance | N21: N/A | O21: N/A | P21: EES ACADEMICO | Q21: 3ND-00524FAC | R21: Suscripción Anual | S21: 1.25 | T21: 1 | U21: 0 | V21: =SUMIF(ResumenCotizacion!$C:$C,E21,ResumenCotizacion!$P:$P) -> 0 | W21: =IF(H21="USD",S21*SolCotizacion!$J$18,S21) -> 4873.1 | X21: =ROUND(W21/(1-VLOOKUP("Total porcentaje:",ResumenCotizacion!$F:$H,3,0)),2) -> 4873.1 | Y21: 0
A22: Catalogo principalEDUCATIVO1SC-00005AP | B22: 1SC-00005APEDUCATIVO | D22: Catalogo principal | E22: 1SC-00005AP | F22: EDUCATIVO | G22: Catalogo principal | H22: USD | I22: N/A | J22: Microsoft® D365 Project Operations FSA Edu Subscription Per User From SA From VL/DPL_Additional Product | K22: Unidad | L22: Und | M22: Monthly Subscriptions | N22: N/A | O22: N/A | P22: EES ACADEMICO | Q22: 1SC-00005AP | R22: Suscripción mensual con pago anual | S22: 52.8 | T22: 1 | U22: 0 | V22: =SUMIF(ResumenCotizacion!$C:$C,E22,ResumenCotizacion!$P:$P) -> 0 | W22: =IF(H22="USD",S22*SolCotizacion!$J$18,S22) -> 205839.744 | X22: =ROUND(W22/(1-VLOOKUP("Total porcentaje:",ResumenCotizacion!$F:$H,3,0)),2) -> 205839.74 | Y22: 0
A23: Catalogo principalEDUCATIVO1SC-00005STU | B23: 1SC-00005STUEDUCATIVO | D23: Catalogo principal | E23: 1SC-00005STU | F23: EDUCATIVO | G23: Catalogo principal | H23: USD | I23: N/A | J23: Microsoft® D365 Project Operations FSA Edu Subscription Per User From SA From VL/DPL_Student | K23: Unidad | L23: Und | M23: Monthly Subscriptions | N23: N/A | O23: N/A | P23: EES ACADEMICO | Q23: 1SC-00005STU | R23: Suscripción mensual con pago anual | S23: 38.4 | T23: 1 | U23: 0 | V23: =SUMIF(ResumenCotizacion!$C:$C,E23,ResumenCotizacion!$P:$P) -> 0 | W23: =IF(H23="USD",S23*SolCotizacion!$J$18,S23) -> 149701.632 | X23: =ROUND(W23/(1-VLOOKUP("Total porcentaje:",ResumenCotizacion!$F:$H,3,0)),2) -> 149701.63 | Y23: 0
A24: Catalogo principalEDUCATIVO1SJ-00005AP | B24: 1SJ-00005APEDUCATIVO | D24: Catalogo principal | E24: 1SJ-00005AP | F24: EDUCATIVO | G24: Catalogo principal | H24: USD | I24: N/A | J24: Microsoft® D365 Project Operations Attach FSA Edu Subscription Per User From SA From VL/DPL_Additional Product | K24: Unidad | L24: Und | M24: Monthly Subscriptions | N24: N/A | O24: N/A | P24: EES ACADEMICO | Q24: 1SJ-00005AP | R24: Suscripción mensual con pago anual | S24: 13.2 | T24: 1 | U24: 0 | V24: =SUMIF(ResumenCotizacion!$C:$C,E24,ResumenCotizacion!$P:$P) -> 0 | W24: =IF(H24="USD",S24*SolCotizacion!$J$18,S24) -> 51459.936 | X24: =ROUND(W24/(1-VLOOKUP("Total porcentaje:",ResumenCotizacion!$F:$H,3,0)),2) -> 51459.94 | Y24: 0
A25: Catalogo principalEDUCATIVO1SJ-00005STU | B25: 1SJ-00005STUEDUCATIVO | D25: Catalogo principal | E25: 1SJ-00005STU | F25: EDUCATIVO | G25: Catalogo principal | H25: USD | I25: N/A | J25: Microsoft® D365 Project Operations Attach FSA Edu Subscription Per User From SA From VL/DPL_Student | K25: Unidad | L25: Und | M25: Monthly Subscriptions | N25: N/A | O25: N/A | P25: EES ACADEMICO | Q25: 1SJ-00005STU | R25: Suscripción mensual con pago anual | S25: 9.6 | T25: 1 | U25: 0 | V25: =SUMIF(ResumenCotizacion!$C:$C,E25,ResumenCotizacion!$P:$P) -> 0 | W25: =IF(H25="USD",S25*SolCotizacion!$J$18,S25) -> 37425.408 | X25: =ROUND(W25/(1-VLOOKUP("Total porcentaje:",ResumenCotizacion!$F:$H,3,0)),2) -> 37425.41 | Y25: 0
A26: Catalogo principalEDUCATIVO1SA-00007AP | B26: 1SA-00007APEDUCATIVO | D26: Catalogo principal | E26: 1SA-00007AP | F26: EDUCATIVO | G26: Catalogo principal | H26: USD | I26: N/A | J26: Microsoft® D365 Project Operations Edu Subscription Per User_Additional Product | K26: Unidad | L26: Und | M26: Monthly Subscriptions | N26: N/A | O26: N/A | P26: EES ACADEMICO | Q26: 1SA-00007AP | R26: Suscripción mensual con pago anual | S26: 65.99 | T26: 1 | U26: 0 | V26: =SUMIF(ResumenCotizacion!$C:$C,E26,ResumenCotizacion!$P:$P) -> 0 | W26: =IF(H26="USD",S26*SolCotizacion!$J$18,S26) -> 257260.6952 | X26: =ROUND(W26/(1-VLOOKUP("Total porcentaje:",ResumenCotizacion!$F:$H,3,0)),2) -> 257260.7 | Y26: 0
A27: Catalogo principalEDUCATIVO1SA-00007STU | B27: 1SA-00007STUEDUCATIVO | D27: Catalogo principal | E27: 1SA-00007STU | F27: EDUCATIVO | G27: Catalogo principal | H27: USD | I27: N/A | J27: Microsoft® D365 Project Operations Edu Subscription Per User_Student | K27: Unidad | L27: Und | M27: Monthly Subscriptions | N27: N/A | O27: N/A | P27: EES ACADEMICO | Q27: 1SA-00007STU | R27: Suscripción mensual con pago anual | S27: 47.99 | T27: 1 | U27: 0 | V27: =SUMIF(ResumenCotizacion!$C:$C,E27,ResumenCotizacion!$P:$P) -> 0 | W27: =IF(H27="USD",S27*SolCotizacion!$J$18,S27) -> 187088.0552 | X27: =ROUND(W27/(1-VLOOKUP("Total porcentaje:",ResumenCotizacion!$F:$H,3,0)),2) -> 187088.06 | Y27: 0
A28: Catalogo principalEDUCATIVO1SA-00009AP | B28: 1SA-00009APEDUCATIVO | D28: Catalogo principal | E28: 1SA-00009AP | F28: EDUCATIVO | G28: Catalogo principal | H28: USD | I28: N/A | J28: Microsoft® D365 Project Operations Edu Step-up D365 Operations Activity Per User_Additional Product | K28: Unidad | L28: Und | M28: Step Up | N28: N/A | O28: N/A | P28: EES ACADEMICO | Q28: 1SA-00009AP | R28: Suscripción mensual con pago anual | S28: 43.99 | T28: 1 | U28: 0 | V28: =SUMIF(ResumenCotizacion!$C:$C,E28,ResumenCotizacion!$P:$P) -> 0 | W28: =IF(H28="USD",S28*SolCotizacion!$J$18,S28) -> 171494.1352 | X28: =ROUND(W28/(1-VLOOKUP("Total porcentaje:",ResumenCotizacion!$F:$H,3,0)),2) -> 171494.14 | Y28: 0
A29: Catalogo principalEDUCATIVO1SA-00009STU | B29: 1SA-00009STUEDUCATIVO | D29: Catalogo principal | E29: 1SA-00009STU | F29: EDUCATIVO | G29: Catalogo principal | H29: USD | I29: N/A | J29: Microsoft® D365 Project Operations Edu Step-up D365 Operations Activity Per User_Student | K29: Unidad | L29: Und | M29: Step Up | N29: N/A | O29: N/A | P29: EES ACADEMICO | Q29: 1SA-00009STU | R29: Suscripción mensual con pago anual | S29: 34.24 | T29: 1 | U29: 0 | V29: =SUMIF(ResumenCotizacion!$C:$C,E29,ResumenCotizacion!$P:$P) -> 0 | W29: =IF(H29="USD",S29*SolCotizacion!$J$18,S29) -> 133483.9552 | X29: =ROUND(W29/(1-VLOOKUP("Total porcentaje:",ResumenCotizacion!$F:$H,3,0)),2) -> 133483.96 | Y29: 0
A30: Catalogo principalEDUCATIVO1SA-00010AP | B30: 1SA-00010APEDUCATIVO | D30: Catalogo principal | E30: 1SA-00010AP | F30: EDUCATIVO | G30: Catalogo principal | H30: USD | I30: N/A | J30: Microsoft® D365 Project Operations Edu Step-up D365 Team Members Per User_Additional Product | K30: Unidad | L30: Und | M30: Step Up | N30: N/A | O30: N/A | P30: EES ACADEMICO | Q30: 1SA-00010AP | R30: Suscripción mensual con pago anual | S30: 62.47 | T30: 1 | U30: 0 | V30: =SUMIF(ResumenCotizacion!$C:$C,E30,ResumenCotizacion!$P:$P) -> 0 | W30: =IF(H30="USD",S30*SolCotizacion!$J$18,S30) -> 243538.0456 | X30: =ROUND(W30/(1-VLOOKUP("Total porcentaje:",ResumenCotizacion!$F:$H,3,0)),2) -> 243538.05 | Y30: 0
A31: Catalogo principalEDUCATIVO1SA-00010STU | B31: 1SA-00010STUEDUCATIVO | D31: Catalogo principal | E31: 1SA-00010STU | F31: EDUCATIVO | G31: Catalogo principal | H31: USD | I31: N/A | J31: Microsoft® D365 Project Operations Edu Step-up D365 Team Members Per User_Student | K31: Unidad | L31: Und | M31: Step Up | N31: N/A | O31: N/A | P31: EES ACADEMICO | Q31: 1SA-00010STU | R31: Suscripción mensual con pago anual | S31: 45.79 | T31: 1 | U31: 0 | V31: =SUMIF(ResumenCotizacion!$C:$C,E31,ResumenCotizacion!$P:$P) -> 0 | W31: =IF(H31="USD",S31*SolCotizacion!$J$18,S31) -> 178511.3992 | X31: =ROUND(W31/(1-VLOOKUP("Total porcentaje:",ResumenCotizacion!$F:$H,3,0)),2) -> 178511.4 | Y31: 0
A32: Catalogo principalEDUCATIVO1SA-00011AP | B32: 1SA-00011APEDUCATIVO | D32: Catalogo principal | E32: 1SA-00011AP | F32: EDUCATIVO | G32: Catalogo principal | H32: USD | I32: N/A | J32: Microsoft® D365 Project Operations Edu Step-up D365 Project Operations Attach Per User_Additional Product | K32: Unidad | L32: Und | M32: Step Up | N32: N/A | O32: N/A | P32: EES ACADEMICO | Q32: 1SA-00011AP | R32: Suscripción mensual con pago anual | S32: 49.49 | T32: 1 | U32: 0 | V32: =SUMIF(ResumenCotizacion!$C:$C,E32,ResumenCotizacion!$P:$P) -> 0 | W32: =IF(H32="USD",S32*SolCotizacion!$J$18,S32) -> 192935.7752 | X32: =ROUND(W32/(1-VLOOKUP("Total porcentaje:",ResumenCotizacion!$F:$H,3,0)),2) -> 192935.78 | Y32: 0
A33: Catalogo principalEDUCATIVO1SA-00011STU | B33: 1SA-00011STUEDUCATIVO | D33: Catalogo principal | E33: 1SA-00011STU | F33: EDUCATIVO | G33: Catalogo principal | H33: USD | I33: N/A | J33: Microsoft® D365 Project Operations Edu Step-up D365 Project Operations Attach Per User_Student | K33: Unidad | L33: Und | M33: Step Up | N33: N/A | O33: N/A | P33: EES ACADEMICO | Q33: 1SA-00011STU | R33: Suscripción mensual con pago anual | S33: 35.99 | T33: 1 | U33: 0 | V33: =SUMIF(ResumenCotizacion!$C:$C,E33,ResumenCotizacion!$P:$P) -> 0 | W33: =IF(H33="USD",S33*SolCotizacion!$J$18,S33) -> 140306.2952 | X33: =ROUND(W33/(1-VLOOKUP("Total porcentaje:",ResumenCotizacion!$F:$H,3,0)),2) -> 140306.3 | Y33: 0
A34: Catalogo principalEDUCATIVO1SH-00007AP | B34: 1SH-00007APEDUCATIVO | D34: Catalogo principal | E34: 1SH-00007AP | F34: EDUCATIVO | G34: Catalogo principal | H34: USD | I34: N/A | J34: Microsoft® D365 Project Operations Attach Edu Subscription Per User_Additional Product | K34: Unidad | L34: Und | M34: Monthly Subscriptions | N34: N/A | O34: N/A | P34: EES ACADEMICO | Q34: 1SH-00007AP | R34: Suscripción mensual con pago anual | S34: 16.5 | T34: 1 | U34: 0 | V34: =SUMIF(ResumenCotizacion!$C:$C,E34,ResumenCotizacion!$P:$P) -> 0 | W34: =IF(H34="USD",S34*SolCotizacion!$J$18,S34) -> 64324.92 | X34: =ROUND(W34/(1-VLOOKUP("Total porcentaje:",ResumenCotizacion!$F:$H,3,0)),2) -> 64324.92 | Y34: 0
A35: Catalogo principalEDUCATIVO1SH-00007STU | B35: 1SH-00007STUEDUCATIVO | D35: Catalogo principal | E35: 1SH-00007STU | F35: EDUCATIVO | G35: Catalogo principal | H35: USD | I35: N/A | J35: Microsoft® D365 Project Operations Attach Edu Subscription Per User_Student | K35: Unidad | L35: Und | M35: Monthly Subscriptions | N35: N/A | O35: N/A | P35: EES ACADEMICO | Q35: 1SH-00007STU | R35: Suscripción mensual con pago anual | S35: 12 | T35: 1 | U35: 0 | V35: =SUMIF(ResumenCotizacion!$C:$C,E35,ResumenCotizacion!$P:$P) -> 0 | W35: =IF(H35="USD",S35*SolCotizacion!$J$18,S35) -> 46781.76 | X35: =ROUND(W35/(1-VLOOKUP("Total porcentaje:",ResumenCotizacion!$F:$H,3,0)),2) -> 46781.76 | Y35: 0
A36: Catalogo principalEDUCATIVO1TK-00001AP | B36: 1TK-00001APEDUCATIVO | D36: Catalogo principal | E36: 1TK-00001AP | F36: EDUCATIVO | G36: Catalogo principal | H36: USD | I36: N/A | J36: Microsoft® Viva Topics Edu Subscription Per User_Additional Product | K36: Unidad | L36: Und | M36: Monthly Subscriptions | N36: N/A | O36: N/A | P36: EES ACADEMICO | Q36: 1TK-00001AP | R36: Suscripción mensual con pago anual | S36: 1 | T36: 1 | U36: 0 | V36: =SUMIF(ResumenCotizacion!$C:$C,E36,ResumenCotizacion!$P:$P) -> 0 | W36: =IF(H36="USD",S36*SolCotizacion!$J$18,S36) -> 3898.48 | X36: =ROUND(W36/(1-VLOOKUP("Total porcentaje:",ResumenCotizacion!$F:$H,3,0)),2) -> 3898.48 | Y36: 0
A37: Catalogo principalEDUCATIVO1TK-00001STU | B37: 1TK-00001STUEDUCATIVO | D37: Catalogo principal | E37: 1TK-00001STU | F37: EDUCATIVO | G37: Catalogo principal | H37: USD | I37: N/A | J37: Microsoft® Viva Topics Edu Subscription Per User_Student | K37: Unidad | L37: Und | M37: Monthly Subscriptions | N37: N/A | O37: N/A | P37: EES ACADEMICO | Q37: 1TK-00001STU | R37: Suscripción mensual con pago anual | S37: 0.75 | T37: 1 | U37: 0 | V37: =SUMIF(ResumenCotizacion!$C:$C,E37,ResumenCotizacion!$P:$P) -> 0 | W37: =IF(H37="USD",S37*SolCotizacion!$J$18,S37) -> 2923.86 | X37: =ROUND(W37/(1-VLOOKUP("Total porcentaje:",ResumenCotizacion!$F:$H,3,0)),2) -> 2923.86 | Y37: 0
A38: Catalogo principalEDUCATIVO1TL-00007AP | B38: 1TL-00007APEDUCATIVO | D38: Catalogo principal | E38: 1TL-00007AP | F38: EDUCATIVO | G38: Catalogo principal | H38: USD | I38: N/A | J38: Microsoft® Extra Graph Connector Capacity Edu Subscription Add-on_Additional Product | K38: Unidad | L38: Und | M38: Monthly Subscriptions | N38: N/A | O38: N/A | P38: EES ACADEMICO | Q38: 1TL-00007AP | R38: Suscripción mensual con pago anual | S38: 200 | T38: 1 | U38: 0 | V38: =SUMIF(ResumenCotizacion!$C:$C,E38,ResumenCotizacion!$P:$P) -> 0 | W38: =IF(H38="USD",S38*SolCotizacion!$J$18,S38) -> 779696 | X38: =ROUND(W38/(1-VLOOKUP("Total porcentaje:",ResumenCotizacion!$F:$H,3,0)),2) -> 779696 | Y38: 0
A39: Catalogo principalEDUCATIVO1TL-00007STU | B39: 1TL-00007STUEDUCATIVO | D39: Catalogo principal | E39: 1TL-00007STU | F39: EDUCATIVO | G39: Catalogo principal | H39: USD | I39: N/A | J39: Microsoft® Extra Graph Connector Capacity Edu Subscription Add-on_Student | K39: Unidad | L39: Und | M39: Monthly Subscriptions | N39: N/A | O39: N/A | P39: EES ACADEMICO | Q39: 1TL-00007STU | R39: Suscripción mensual con pago anual | S39: 200 | T39: 1 | U39: 0 | V39: =SUMIF(ResumenCotizacion!$C:$C,E39,ResumenCotizacion!$P:$P) -> 0 | W39: =IF(H39="USD",S39*SolCotizacion!$J$18,S39) -> 779696 | X39: =ROUND(W39/(1-VLOOKUP("Total porcentaje:",ResumenCotizacion!$F:$H,3,0)),2) -> 779696 | Y39: 0
A40: Catalogo principalEDUCATIVO5Z1-00009AP | B40: 5Z1-00009APEDUCATIVO | D40: Catalogo principal | E40: 5Z1-00009AP | F40: EDUCATIVO | G40: Catalogo principal | H40: USD | I40: N/A | J40: Microsoft® SharePoint Syntex Edu Subscription Add-on_Additional Product | K40: Unidad | L40: Und | M40: Monthly Subscriptions | N40: N/A | O40: N/A | P40: EES ACADEMICO | Q40: 5Z1-00009AP | R40: Suscripción mensual con pago anual | S40: 1 | T40: 1 | U40: 0 | V40: =SUMIF(ResumenCotizacion!$C:$C,E40,ResumenCotizacion!$P:$P) -> 0 | W40: =IF(H40="USD",S40*SolCotizacion!$J$18,S40) -> 3898.48 | X40: =ROUND(W40/(1-VLOOKUP("Total porcentaje:",ResumenCotizacion!$F:$H,3,0)),2) -> 3898.48 | Y40: 0
A41: Catalogo principalEDUCATIVO5Z1-00009STU | B41: 5Z1-00009STUEDUCATIVO | D41: Catalogo principal | E41: 5Z1-00009STU | F41: EDUCATIVO | G41: Catalogo principal | H41: USD | I41: N/A | J41: Microsoft® SharePoint Syntex Edu Subscription Add-on_Student | K41: Unidad | L41: Und | M41: Monthly Subscriptions | N41: N/A | O41: N/A | P41: EES ACADEMICO | Q41: 5Z1-00009STU | R41: Suscripción mensual con pago anual | S41: 0.75 | T41: 1 | U41: 0 | V41: =SUMIF(ResumenCotizacion!$C:$C,E41,ResumenCotizacion!$P:$P) -> 0 | W41: =IF(H41="USD",S41*SolCotizacion!$J$18,S41) -> 2923.86 | X41: =ROUND(W41/(1-VLOOKUP("Total porcentaje:",ResumenCotizacion!$F:$H,3,0)),2) -> 2923.86 | Y41: 0
A42: Catalogo principalEDUCATIVO61F-00003AP | B42: 61F-00003APEDUCATIVO | D42: Catalogo principal | E42: 61F-00003AP | F42: EDUCATIVO | G42: Catalogo principal | H42: USD | I42: N/A | J42: Microsoft® MS Cloud Healthcare EMR CAP AO Edu Subscription_Additional Product | K42: Unidad | L42: Und | M42: Monthly Subscriptions | N42: N/A | O42: N/A | P42: EES ACADEMICO | Q42: 61F-00003AP | R42: Suscripción mensual con pago anual | S42: 500 | T42: 1 | U42: 0 | V42: =SUMIF(ResumenCotizacion!$C:$C,E42,ResumenCotizacion!$P:$P) -> 0 | W42: =IF(H42="USD",S42*SolCotizacion!$J$18,S42) -> 1949240 | X42: =ROUND(W42/(1-VLOOKUP("Total porcentaje:",ResumenCotizacion!$F:$H,3,0)),2) -> 1949240 | Y42: 0
A43: Catalogo principalEDUCATIVO61F-00003STU | B43: 61F-00003STUEDUCATIVO | D43: Catalogo principal | E43: 61F-00003STU | F43: EDUCATIVO | G43: Catalogo principal | H43: USD | I43: N/A | J43: Microsoft® MS Cloud Healthcare EMR CAP AO Edu Subscription_Student | K43: Unidad | L43: Und | M43: Monthly Subscriptions | N43: N/A | O43: N/A | P43: EES ACADEMICO | Q43: 61F-00003STU | R43: Suscripción mensual con pago anual | S43: 500 | T43: 1 | U43: 0 | V43: =SUMIF(ResumenCotizacion!$C:$C,E43,ResumenCotizacion!$P:$P) -> 0 | W43: =IF(H43="USD",S43*SolCotizacion!$J$18,S43) -> 1949240 | X43: =ROUND(W43/(1-VLOOKUP("Total porcentaje:",ResumenCotizacion!$F:$H,3,0)),2) -> 1949240 | Y43: 0
A44: Catalogo principalEDUCATIVOG3U-00004FAC | B44: G3U-00004FACEDUCATIVO | D44: Catalogo principal | E44: G3U-00004FAC | F44: EDUCATIVO | G44: Catalogo principal | H44: USD | I44: N/A | J44: Microsoft Azure Rights Management Services Academicemic Subscription for O365 Edu Per User_Faculty | K44: Unidad | L44: Und | M44: Producto | N44: N/A | O44: N/A | P44: EES ACADEMICO | Q44: =E44 -> G3U-00004FAC | R44: Suscripción mensual con pago anual | S44: 0 | T44: 1 | U44: 0 | V44: =SUMIF(ResumenCotizacion!$C:$C,E44,ResumenCotizacion!$P:$P) -> 0 | W44: =IF(H44="USD",S44*SolCotizacion!$J$18,S44) -> 0 | X44: =ROUND(W44/(1-VLOOKUP("Total porcentaje:",ResumenCotizacion!$F:$H,3,0)),2) -> 0 | Y44: 0
A45: Catalogo principalEDUCATIVOG3U-00004STU | B45: G3U-00004STUEDUCATIVO | D45: Catalogo principal | E45: G3U-00004STU | F45: EDUCATIVO | G45: Catalogo principal | H45: USD | I45: N/A | J45: Microsoft Azure Rights Management Services Academicemic Subscription for O365 Edu Per User_Student | K45: Unidad | L45: Und | M45: Producto | N45: N/A | O45: N/A | P45: EES ACADEMICO | Q45: G3U-00004STU | R45: Suscripción mensual con pago anual | S45: 0 | T45: 1 | U45: 0 | V45: =SUMIF(ResumenCotizacion!$C:$C,E45,ResumenCotizacion!$P:$P) -> 0 | W45: =IF(H45="USD",S45*SolCotizacion!$J$18,S45) -> 0 | X45: =ROUND(W45/(1-VLOOKUP("Total porcentaje:",ResumenCotizacion!$F:$H,3,0)),2) -> 0 | Y45: 0
A46: Catalogo principalEDUCATIVOAAJ-57460AP | B46: AAJ-57460APEDUCATIVO | D46: Catalogo principal | E46: AAJ-57460AP | F46: EDUCATIVO | G46: Catalogo principal | H46: USD | I46: N/A | J46: Microsoft® Win Svr STDCORE Ext Scrty Alng 2 Year3 of EOS (Jan 2022-Jan 2023)_Additional Product | K46: Unidad | L46: Und | M46: Extended Coverage | N46: N/A | O46: N/A | P46: EES ACADEMICO | Q46: AAJ-57460AP | R46: Licencia | S46: 23 | T46: 1 | U46: 0 | V46: =SUMIF(ResumenCotizacion!$C:$C,E46,ResumenCotizacion!$P:$P) -> 0 | W46: =IF(H46="USD",S46*SolCotizacion!$J$18,S46) -> 89665.04 | X46: =ROUND(W46/(1-VLOOKUP("Total porcentaje:",ResumenCotizacion!$F:$H,3,0)),2) -> 89665.04 | Y46: 0
A47: Catalogo principalEDUCATIVOAAJ-57461AP | B47: AAJ-57461APEDUCATIVO | D47: Catalogo principal | E47: AAJ-57461AP | F47: EDUCATIVO | G47: Catalogo principal | H47: USD | I47: N/A | J47: Microsoft® Win Svr STDCORE Ext Scrty Alng 16 Year3 of EOS (Jan 2022-Jan 2023)_Additional Product | K47: Unidad | L47: Und | M47: Extended Coverage | N47: N/A | O47: N/A | P47: EES ACADEMICO | Q47: AAJ-57461AP | R47: Licencia | S47: 176 | T47: 1 | U47: 0 | V47: =SUMIF(ResumenCotizacion!$C:$C,E47,ResumenCotizacion!$P:$P) -> 0 | W47: =IF(H47="USD",S47*SolCotizacion!$J$18,S47) -> 686132.48 | X47: =ROUND(W47/(1-VLOOKUP("Total porcentaje:",ResumenCotizacion!$F:$H,3,0)),2) -> 686132.48 | Y47: 0
A48: Catalogo principalEDUCATIVOAAJ-57462AP | B48: AAJ-57462APEDUCATIVO | D48: Catalogo principal | E48: AAJ-57462AP | F48: EDUCATIVO | G48: Catalogo principal | H48: USD | I48: N/A | J48: Microsoft® Win Svr DC CORE Ext Scrty Alng 2 Year3 of EOS (Jan 2022-Jan 2023_Additional Product | K48: Unidad | L48: Und | M48: Extended Coverage | N48: N/A | O48: N/A | P48: EES ACADEMICO | Q48: AAJ-57462AP | R48: Licencia | S48: 139 | T48: 1 | U48: 0 | V48: =SUMIF(ResumenCotizacion!$C:$C,E48,ResumenCotizacion!$P:$P) -> 0 | W48: =IF(H48="USD",S48*SolCotizacion!$J$18,S48) -> 541888.72 | X48: =ROUND(W48/(1-VLOOKUP("Total porcentaje:",ResumenCotizacion!$F:$H,3,0)),2) -> 541888.72 | Y48: 0
A49: Catalogo principalEDUCATIVOAAJ-57464AP | B49: AAJ-57464APEDUCATIVO | D49: Catalogo principal | E49: AAJ-57464AP | F49: EDUCATIVO | G49: Catalogo principal | H49: USD | I49: N/A | J49: Microsoft® Win Svr DC CORE Ext Scrty Alng 16 Year3 of EOS (Jan 2022-Jan 2023)_Additional Product | K49: Unidad | L49: Und | M49: Extended Coverage | N49: N/A | O49: N/A | P49: EES ACADEMICO | Q49: AAJ-57464AP | R49: Licencia | S49: 1110 | T49: 1 | U49: 0 | V49: =SUMIF(ResumenCotizacion!$C:$C,E49,ResumenCotizacion!$P:$P) -> 0 | W49: =IF(H49="USD",S49*SolCotizacion!$J$18,S49) -> 4327312.8 | X49: =ROUND(W49/(1-VLOOKUP("Total porcentaje:",ResumenCotizacion!$F:$H,3,0)),2) -> 4327312.8 | Y49: 0
A50: Catalogo principalEDUCATIVOAAD-44064AP | B50: AAD-44064APEDUCATIVO | D50: Catalogo principal | E50: AAD-44064AP | F50: EDUCATIVO | G50: Catalogo principal | H50: USD | I50: N/A | J50: Extended Security Updates for SQL 2012 Standard 2 Core pack 1st year of EOS (July 2019-July 2020)_Additional Product | K50: Unidad | L50: Und | M50: Extended Coverage | N50: N/A | O50: N/A | P50: EES ACADEMICO | Q50: AAD-44064AP | R50: Licencia | S50: 647 | T50: 1 | U50: 0 | V50: =SUMIF(ResumenCotizacion!$C:$C,E50,ResumenCotizacion!$P:$P) -> 0 | W50: =IF(H50="USD",S50*SolCotizacion!$J$18,S50) -> 2522316.56 | X50: =ROUND(W50/(1-VLOOKUP("Total porcentaje:",ResumenCotizacion!$F:$H,3,0)),2) -> 2522316.56 | Y50: 0
A51: Catalogo principalEDUCATIVOAAD-44066AP | B51: AAD-44066APEDUCATIVO | D51: Catalogo principal | E51: AAD-44066AP | F51: EDUCATIVO | G51: Catalogo principal | H51: USD | I51: N/A | J51: Extended Security Updates for SQL 2012 Standard Per Server 1st year of EOS (July 2019-July 2020)_Additional Product | K51: Unidad | L51: Und | M51: Extended Coverage | N51: N/A | O51: N/A | P51: EES ACADEMICO | Q51: AAD-44066AP | R51: Licencia | S51: 162 | T51: 1 | U51: 0 | V51: =SUMIF(ResumenCotizacion!$C:$C,E51,ResumenCotizacion!$P:$P) -> 0 | W51: =IF(H51="USD",S51*SolCotizacion!$J$18,S51) -> 631553.76 | X51: =ROUND(W51/(1-VLOOKUP("Total porcentaje:",ResumenCotizacion!$F:$H,3,0)),2) -> 631553.76 | Y51: 0
A52: Catalogo principalEDUCATIVOAAD-44067AP | B52: AAD-44067APEDUCATIVO | D52: Catalogo principal | E52: AAD-44067AP | F52: EDUCATIVO | G52: Catalogo principal | H52: USD | I52: N/A | J52: Extended Security Updates for SQL Enterprise Edition 2 Core pack 1st year of EOS (July 2019-July 2020)_Additional Product | K52: Unidad | L52: Und | M52: Extended Coverage | N52: N/A | O52: N/A | P52: EES ACADEMICO | Q52: AAD-44067AP | R52: Licencia | S52: 2479 | T52: 1 | U52: 0 | V52: =SUMIF(ResumenCotizacion!$C:$C,E52,ResumenCotizacion!$P:$P) -> 0 | W52: =IF(H52="USD",S52*SolCotizacion!$J$18,S52) -> 9664331.92 | X52: =ROUND(W52/(1-VLOOKUP("Total porcentaje:",ResumenCotizacion!$F:$H,3,0)),2) -> 9664331.92 | Y52: 0
A53: Catalogo principalEDUCATIVOAAD-44069AP | B53: AAD-44069APEDUCATIVO | D53: Catalogo principal | E53: AAD-44069AP | F53: EDUCATIVO | G53: Catalogo principal | H53: USD | I53: N/A | J53: Extended Security Updates for SQL Enterprise Edition Per Server for 1st year of EOS (July 2019-July 2020)_Additional Product | K53: Unidad | L53: Und | M53: Extended Coverage | N53: N/A | O53: N/A | P53: EES ACADEMICO | Q53: AAD-44069AP | R53: Licencia | S53: 1549 | T53: 1 | U53: 0 | V53: =SUMIF(ResumenCotizacion!$C:$C,E53,ResumenCotizacion!$P:$P) -> 0 | W53: =IF(H53="USD",S53*SolCotizacion!$J$18,S53) -> 6038745.52 | X53: =ROUND(W53/(1-VLOOKUP("Total porcentaje:",ResumenCotizacion!$F:$H,3,0)),2) -> 6038745.52 | Y53: 0
A54: Catalogo principalEDUCATIVOH5T-00003AP | B54: H5T-00003APEDUCATIVO | D54: Catalogo principal | E54: H5T-00003AP | F54: EDUCATIVO | G54: Catalogo principal | H54: USD | I54: N/A | J54: Microsoft® Certification in Academic VL Fee Fund-MCP Cert Pack 30_Additional Product | K54: Unidad | L54: Und | M54: Fee | N54: N/A | O54: N/A | P54: EES ACADEMICO | Q54: H5T-00003AP | R54: Licencia | S54: 1583 | T54: 1 | U54: 0 | V54: =SUMIF(ResumenCotizacion!$C:$C,E54,ResumenCotizacion!$P:$P) -> 0 | W54: =IF(H54="USD",S54*SolCotizacion!$J$18,S54) -> 6171293.84 | X54: =ROUND(W54/(1-VLOOKUP("Total porcentaje:",ResumenCotizacion!$F:$H,3,0)),2) -> 6171293.84 | Y54: 0
A55: Catalogo principalEDUCATIVOH5T-00014AP | B55: H5T-00014APEDUCATIVO | D55: Catalogo principal | E55: H5T-00014AP | F55: EDUCATIVO | G55: Catalogo principal | H55: USD | I55: N/A | J55: Microsoft® Certification in Academic VL Fee MOS-MCE Cert Site Lic Combo 125_Additional Product | K55: Unidad | L55: Und | M55: Fee | N55: N/A | O55: N/A | P55: EES ACADEMICO | Q55: H5T-00014AP | R55: Licencia | S55: 3098 | T55: 1 | U55: 0 | V55: =SUMIF(ResumenCotizacion!$C:$C,E55,ResumenCotizacion!$P:$P) -> 0 | W55: =IF(H55="USD",S55*SolCotizacion!$J$18,S55) -> 12077491.04 | X55: =ROUND(W55/(1-VLOOKUP("Total porcentaje:",ResumenCotizacion!$F:$H,3,0)),2) -> 12077491.04 | Y55: 0
A56: Catalogo principalEDUCATIVOH5T-00017AP | B56: H5T-00017APEDUCATIVO | D56: Catalogo principal | E56: H5T-00017AP | F56: EDUCATIVO | G56: Catalogo principal | H56: USD | I56: N/A | J56: Microsoft® Certification in Academic VL Fee Fund-MOS-MCE Cert Site Lic Combo 500_Additional Product | K56: Unidad | L56: Und | M56: Fee | N56: N/A | O56: N/A | P56: EES ACADEMICO | Q56: H5T-00017AP | R56: Licencia | S56: 4274 | T56: 1 | U56: 0 | V56: =SUMIF(ResumenCotizacion!$C:$C,E56,ResumenCotizacion!$P:$P) -> 0 | W56: =IF(H56="USD",S56*SolCotizacion!$J$18,S56) -> 16662103.52 | X56: =ROUND(W56/(1-VLOOKUP("Total porcentaje:",ResumenCotizacion!$F:$H,3,0)),2) -> 16662103.52 | Y56: 0
A57: Catalogo principalEDUCATIVOH5T-00020AP | B57: H5T-00020APEDUCATIVO | D57: Catalogo principal | E57: H5T-00020AP | F57: EDUCATIVO | G57: Catalogo principal | H57: USD | I57: N/A | J57: Microsoft® Certification in Academic VL Fee Fund-MCE Cert Site Lic Combo 125_Additional Product | K57: Unidad | L57: Und | M57: Fee | N57: N/A | O57: N/A | P57: EES ACADEMICO | Q57: H5T-00020AP | R57: Licencia | S57: 3098 | T57: 1 | U57: 0 | V57: =SUMIF(ResumenCotizacion!$C:$C,E57,ResumenCotizacion!$P:$P) -> 0 | W57: =IF(H57="USD",S57*SolCotizacion!$J$18,S57) -> 12077491.04 | X57: =ROUND(W57/(1-VLOOKUP("Total porcentaje:",ResumenCotizacion!$F:$H,3,0)),2) -> 12077491.04 | Y57: 0
A58: Catalogo principalEDUCATIVONJ6-00002AP | B58: NJ6-00002APEDUCATIVO | D58: Catalogo principal | E58: NJ6-00002AP | F58: EDUCATIVO | G58: Catalogo principal | H58: USD | I58: N/A | J58: Microsoft Import Service O365 Edu Fee Per GB_Additional Product | K58: Unidad | L58: Und | M58: Producto | N58: N/A | O58: N/A | P58: EES ACADEMICO | Q58: NJ6-00002AP | R58: Licencia | S58: 1.8 | T58: 1 | U58: 0 | V58: =SUMIF(ResumenCotizacion!$C:$C,E58,ResumenCotizacion!$P:$P) -> 0 | W58: =IF(H58="USD",S58*SolCotizacion!$J$18,S58) -> 7017.264 | X58: =ROUND(W58/(1-VLOOKUP("Total porcentaje:",ResumenCotizacion!$F:$H,3,0)),2) -> 7017.26 | Y58: 0
A59: Catalogo principalEDUCATIVO3ND-00524STU | B59: 3ND-00524STUEDUCATIVO | D59: Catalogo principal | E59: 3ND-00524STU | F59: EDUCATIVO | G59: Catalogo principal | H59: USD | I59: N/A | J59: Microsoft® System Center Service Manager All Languages License & Software Assurance Per OSE_Student | K59: Unidad | L59: Und | M59: License/Software Assurance | N59: N/A | O59: N/A | P59: EES ACADEMICO | Q59: 3ND-00524STU | R59: Suscripción Anual | S59: 0.94 | T59: 1 | U59: 0 | V59: =SUMIF(ResumenCotizacion!$C:$C,E59,ResumenCotizacion!$P:$P) -> 0 | W59: =IF(H59="USD",S59*SolCotizacion!$J$18,S59) -> 3664.5712 | X59: =ROUND(W59/(1-VLOOKUP("Total porcentaje:",ResumenCotizacion!$F:$H,3,0)),2) -> 3664.57 | Y59: 0
A60: Catalogo principalEDUCATIVO3R3-00001AP | B60: 3R3-00001APEDUCATIVO | D60: Catalogo principal | E60: 3R3-00001AP | F60: EDUCATIVO | G60: Catalogo principal | H60: USD | I60: N/A | J60: Microsoft® Azure Active Directory Premium P1 A Subscription Per User_Additional Product | K60: Unidad | L60: Und | M60: Monthly Subscriptions | N60: N/A | O60: N/A | P60: EES ACADEMICO | Q60: 3R3-00001AP | R60: Suscripción mensual con pago anual | S60: 0.55 | T60: 1 | U60: 0 | V60: =SUMIF(ResumenCotizacion!$C:$C,E60,ResumenCotizacion!$P:$P) -> 0 | W60: =IF(H60="USD",S60*SolCotizacion!$J$18,S60) -> 2144.164 | X60: =ROUND(W60/(1-VLOOKUP("Total porcentaje:",ResumenCotizacion!$F:$H,3,0)),2) -> 2144.16 | Y60: 0
A61: Catalogo principalEDUCATIVO3R3-00001STU | B61: 3R3-00001STUEDUCATIVO | D61: Catalogo principal | E61: 3R3-00001STU | F61: EDUCATIVO | G61: Catalogo principal | H61: USD | I61: N/A | J61: Microsoft® Azure Active Directory Premium P1 A Subscription Per User_Student | K61: Unidad | L61: Und | M61: Monthly Subscriptions | N61: N/A | O61: N/A | P61: EES ACADEMICO | Q61: 3R3-00001STU | R61: Suscripción mensual con pago anual | S61: 0.22 | T61: 1 | U61: 0 | V61: =SUMIF(ResumenCotizacion!$C:$C,E61,ResumenCotizacion!$P:$P) -> 0 | W61: =IF(H61="USD",S61*SolCotizacion!$J$18,S61) -> 857.6656 | X61: =ROUND(W61/(1-VLOOKUP("Total porcentaje:",ResumenCotizacion!$F:$H,3,0)),2) -> 857.67 | Y61: 0
A62: Catalogo principalEDUCATIVO3R3-00004SUB | B62: 3R3-00004SUBEDUCATIVO | D62: Catalogo principal | E62: 3R3-00004SUB | F62: EDUCATIVO | G62: Catalogo principal | H62: USD | I62: N/A | J62: Microsoft® Azure Active Directory Premium P1 A Subscription Per User Student Use Benefit | K62: Unidad | L62: Und | M62: Monthly Subscriptions | N62: N/A | O62: N/A | P62: EES ACADEMICO | Q62: 3R3-00004SUB | R62: Suscripción mensual con pago anual | S62: 0 | T62: 1 | U62: 0 | V62: =SUMIF(ResumenCotizacion!$C:$C,E62,ResumenCotizacion!$P:$P) -> 0 | W62: =IF(H62="USD",S62*SolCotizacion!$J$18,S62) -> 0 | X62: =ROUND(W62/(1-VLOOKUP("Total porcentaje:",ResumenCotizacion!$F:$H,3,0)),2) -> 0 | Y62: 0
A63: Catalogo principalEDUCATIVO3VU-00043AP | B63: 3VU-00043APEDUCATIVO | D63: Catalogo principal | E63: 3VU-00043AP | F63: EDUCATIVO | G63: Catalogo principal | H63: USD | I63: N/A | J63: Microsoft® MSDN Platforms All Languages License & Software Assurance_Additional Product | K63: Unidad | L63: Und | M63: License/Software Assurance | N63: N/A | O63: N/A | P63: EES ACADEMICO | Q63: 3VU-00043AP | R63: Suscripción Anual | S63: 156 | T63: 1 | U63: 0 | V63: =SUMIF(ResumenCotizacion!$C:$C,E63,ResumenCotizacion!$P:$P) -> 0 | W63: =IF(H63="USD",S63*SolCotizacion!$J$18,S63) -> 608162.88 | X63: =ROUND(W63/(1-VLOOKUP("Total porcentaje:",ResumenCotizacion!$F:$H,3,0)),2) -> 608162.88 | Y63: 0
A64: Catalogo principalEDUCATIVO3ZK-00193FAC | B64: 3ZK-00193FACEDUCATIVO | D64: Catalogo principal | E64: 3ZK-00193FAC | F64: EDUCATIVO | G64: Catalogo principal | H64: USD | I64: N/A | J64: Microsoft® System Center Orchestrator All Languages License & Software Assurance Per OSE_Faculty | K64: Unidad | L64: Und | M64: License/Software Assurance | N64: N/A | O64: N/A | P64: EES ACADEMICO | Q64: 3ZK-00193FAC | R64: Suscripción Anual | S64: 1.25 | T64: 1 | U64: 0 | V64: =SUMIF(ResumenCotizacion!$C:$C,E64,ResumenCotizacion!$P:$P) -> 0 | W64: =IF(H64="USD",S64*SolCotizacion!$J$18,S64) -> 4873.1 | X64: =ROUND(W64/(1-VLOOKUP("Total porcentaje:",ResumenCotizacion!$F:$H,3,0)),2) -> 4873.1 | Y64: 0
A65: Catalogo principalEDUCATIVO3ZK-00193STU | B65: 3ZK-00193STUEDUCATIVO | D65: Catalogo principal | E65: 3ZK-00193STU | F65: EDUCATIVO | G65: Catalogo principal | H65: USD | I65: N/A | J65: Microsoft® System Center Orchestrator All Languages License & Software Assurance Per OSE_Student | K65: Unidad | L65: Und | M65: License/Software Assurance | N65: N/A | O65: N/A | P65: EES ACADEMICO | Q65: 3ZK-00193STU | R65: Suscripción Anual | S65: 0.94 | T65: 1 | U65: 0 | V65: =SUMIF(ResumenCotizacion!$C:$C,E65,ResumenCotizacion!$P:$P) -> 0 | W65: =IF(H65="USD",S65*SolCotizacion!$J$18,S65) -> 3664.5712 | X65: =ROUND(W65/(1-VLOOKUP("Total porcentaje:",ResumenCotizacion!$F:$H,3,0)),2) -> 3664.57 | Y65: 0
A66: =D66&F66&E66 -> Catalogo principalEDUCATIVO4ZF-00019AP | B66: 4ZF-00019APEDUCATIVO | D66: Catalogo principal | E66: 4ZF-00019AP | F66: EDUCATIVO | G66: Catalogo principal | H66: USD | I66: N/A | J66: Microsoft® Win VDA Device All Languages Subscription Per Device_Additional Product | K66: Unidad | L66: Und | M66: Monthly Subscriptions | N66: N/A | O66: N/A | P66: EES ACADEMICO | Q66: 4ZF-00019AP | R66: Suscripción mensual con pago anual | S66: 3.34 | T66: 1 | U66: 0 | V66: =SUMIF(ResumenCotizacion!$C:$C,E66,ResumenCotizacion!$P:$P) -> 0 | W66: =IF(H66="USD",S66*SolCotizacion!$J$18,S66) -> 13020.9232 | X66: =ROUND(W66/(1-VLOOKUP("Total porcentaje:",ResumenCotizacion!$F:$H,3,0)),2) -> 13020.92 | Y66: 0
A67: Catalogo principalEDUCATIVO5HU-00215AP | B67: =E67&F67 -> 5HU-00215APEDUCATIVO | D67: Catalogo principal | E67: 5HU-00215AP | F67: EDUCATIVO | G67: =D67 -> Catalogo principal | H67: USD | I67: N/A | J67: Microsoft® SfB Server All Languages License & Software Assurance_Additional Product | K67: Unidad | L67: Und | M67: License/Software Assurance | N67: N/A | O67: N/A | P67: EES ACADEMICO | Q67: 5HU-00215AP | R67: Suscripción Anual | S67: 384 | T67: 1 | U67: 0 | V67: =SUMIF(ResumenCotizacion!$C:$C,E67,ResumenCotizacion!$P:$P) -> 0 | W67: =IF(H67="USD",S67*SolCotizacion!$J$18,S67) -> 1497016.32 | X67: =ROUND(W67/(1-VLOOKUP("Total porcentaje:",ResumenCotizacion!$F:$H,3,0)),2) -> 1497016.32 | Y67: =V67*X67 -> 0
A68: Catalogo principalEDUCATIVO5RS-00002AP | B68: 5RS-00002APEDUCATIVO | D68: Catalogo principal | E68: 5RS-00002AP | F68: EDUCATIVO | G68: Catalogo principal | H68: USD | I68: N/A | J68: Microsoft® Exchange Online P1 Edu Subscription Per User Alumni_Additional Product | K68: Unidad | L68: Und | M68: Monthly Subscriptions | N68: N/A | O68: N/A | P68: EES ACADEMICO | Q68: 5RS-00002AP | R68: Suscripción mensual con pago anual | S68: 0 | T68: 1 | U68: 0 | V68: =SUMIF(ResumenCotizacion!$C:$C,E68,ResumenCotizacion!$P:$P) -> 0 | W68: =IF(H68="USD",S68*SolCotizacion!$J$18,S68) -> 0 | X68: =ROUND(W68/(1-VLOOKUP("Total porcentaje:",ResumenCotizacion!$F:$H,3,0)),2) -> 0 | Y68: 0
A69: Catalogo principalEDUCATIVO5WS-00001AP | B69: 5WS-00001APEDUCATIVO | D69: Catalogo principal | E69: 5WS-00001AP | F69: EDUCATIVO | G69: Catalogo principal | H69: USD | I69: N/A | J69: Microsoft® EOA Exchange Online Edu Subscription Per User_Additional Product | K69: Unidad | L69: Und | M69: Monthly Subscriptions | N69: N/A | O69: N/A | P69: EES ACADEMICO | Q69: 5WS-00001AP | R69: Suscripción mensual con pago anual | S69: 1 | T69: 1 | U69: 0 | V69: =SUMIF(ResumenCotizacion!$C:$C,E69,ResumenCotizacion!$P:$P) -> 0 | W69: =IF(H69="USD",S69*SolCotizacion!$J$18,S69) -> 3898.48 | X69: =ROUND(W69/(1-VLOOKUP("Total porcentaje:",ResumenCotizacion!$F:$H,3,0)),2) -> 3898.48 | Y69: 0
A70: Catalogo principalEDUCATIVO5WS-00001STU | B70: 5WS-00001STUEDUCATIVO | D70: Catalogo principal | E70: 5WS-00001STU | F70: EDUCATIVO | G70: Catalogo principal | H70: USD | I70: N/A | J70: Microsoft® EOA Exchange Online Edu Subscription Per User_Student | K70: Unidad | L70: Und | M70: Monthly Subscriptions | N70: N/A | O70: N/A | P70: EES ACADEMICO | Q70: 5WS-00001STU | R70: Suscripción mensual con pago anual | S70: 1 | T70: 1 | U70: 0 | V70: =SUMIF(ResumenCotizacion!$C:$C,E70,ResumenCotizacion!$P:$P) -> 0 | W70: =IF(H70="USD",S70*SolCotizacion!$J$18,S70) -> 3898.48 | X70: =ROUND(W70/(1-VLOOKUP("Total porcentaje:",ResumenCotizacion!$F:$H,3,0)),2) -> 3898.48 | Y70: 0
A71: Catalogo principalEDUCATIVO5XS-00001FACA | B71: 5XS-00001FACAEDUCATIVO | D71: Catalogo principal | E71: 5XS-00001FACA | F71: EDUCATIVO | G71: Catalogo principal | H71: USD | I71: N/A | J71: Microsoft® M365 Apps Enterprise Edu Subscription Per User_FacultyLevelA | K71: Unidad | L71: Und | M71: Monthly Subscriptions | N71: N/A | O71: N/A | P71: EES ACADEMICO | Q71: 5XS-00001FACA | R71: Suscripción mensual con pago anual | S71: 2.25 | T71: 1 | U71: 0 | V71: =SUMIF(ResumenCotizacion!$C:$C,E71,ResumenCotizacion!$P:$P) -> 0 | W71: =IF(H71="USD",S71*SolCotizacion!$J$18,S71) -> 8771.58 | X71: =ROUND(W71/(1-VLOOKUP("Total porcentaje:",ResumenCotizacion!$F:$H,3,0)),2) -> 8771.58 | Y71: 0
A72: Catalogo principalEDUCATIVO5XS-00001FACB | B72: 5XS-00001FACBEDUCATIVO | D72: Catalogo principal | E72: 5XS-00001FACB | F72: EDUCATIVO | G72: Catalogo principal | H72: USD | I72: N/A | J72: Microsoft® M365 Apps Enterprise Edu Subscription Per User_FacultyLevelB | K72: Unidad | L72: Und | M72: Monthly Subscriptions | N72: N/A | O72: N/A | P72: EES ACADEMICO | Q72: 5XS-00001FACB | R72: Suscripción mensual con pago anual | S72: 2.1 | T72: 1 | U72: 0 | V72: =SUMIF(ResumenCotizacion!$C:$C,E72,ResumenCotizacion!$P:$P) -> 0 | W72: =IF(H72="USD",S72*SolCotizacion!$J$18,S72) -> 8186.808 | X72: =ROUND(W72/(1-VLOOKUP("Total porcentaje:",ResumenCotizacion!$F:$H,3,0)),2) -> 8186.81 | Y72: 0
A73: Catalogo principalEDUCATIVO5XS-00001FACC | B73: 5XS-00001FACCEDUCATIVO | D73: Catalogo principal | E73: 5XS-00001FACC | F73: EDUCATIVO | G73: Catalogo principal | H73: USD | I73: N/A | J73: Microsoft® M365 Apps Enterprise Edu Subscription Per User_FacultyLevelC | K73: Unidad | L73: Und | M73: Monthly Subscriptions | N73: N/A | O73: N/A | P73: EES ACADEMICO | Q73: 5XS-00001FACC | R73: Suscripción mensual con pago anual | S73: 1.94 | T73: 1 | U73: 0 | V73: =SUMIF(ResumenCotizacion!$C:$C,E73,ResumenCotizacion!$P:$P) -> 0 | W73: =IF(H73="USD",S73*SolCotizacion!$J$18,S73) -> 7563.0512 | X73: =ROUND(W73/(1-VLOOKUP("Total porcentaje:",ResumenCotizacion!$F:$H,3,0)),2) -> 7563.05 | Y73: 0
A74: Catalogo principalEDUCATIVO5XS-00001FACD | B74: 5XS-00001FACDEDUCATIVO | D74: Catalogo principal | E74: 5XS-00001FACD | F74: EDUCATIVO | G74: Catalogo principal | H74: USD | I74: N/A | J74: Microsoft® M365 Apps Enterprise Edu Subscription Per User_FacultyLevelD | K74: Unidad | L74: Und | M74: Monthly Subscriptions | N74: N/A | O74: N/A | P74: EES ACADEMICO | Q74: 5XS-00001FACD | R74: Suscripción mensual con pago anual | S74: 1.82 | T74: 1 | U74: 0 | V74: =SUMIF(ResumenCotizacion!$C:$C,E74,ResumenCotizacion!$P:$P) -> 0 | W74: =IF(H74="USD",S74*SolCotizacion!$J$18,S74) -> 7095.2336 | X74: =ROUND(W74/(1-VLOOKUP("Total porcentaje:",ResumenCotizacion!$F:$H,3,0)),2) -> 7095.23 | Y74: 0
A75: Catalogo principalEDUCATIVO5XS-00001STUA | B75: 5XS-00001STUAEDUCATIVO | D75: Catalogo principal | E75: 5XS-00001STUA | F75: EDUCATIVO | G75: Catalogo principal | H75: USD | I75: N/A | J75: Microsoft® M365 Apps Enterprise Edu Subscription Per User_StudentLevelA | K75: Unidad | L75: Und | M75: Monthly Subscriptions | N75: N/A | O75: N/A | P75: EES ACADEMICO | Q75: 5XS-00001STUA | R75: Suscripción mensual con pago anual | S75: 1.75 | T75: 1 | U75: 0 | V75: =SUMIF(ResumenCotizacion!$C:$C,E75,ResumenCotizacion!$P:$P) -> 0 | W75: =IF(H75="USD",S75*SolCotizacion!$J$18,S75) -> 6822.34 | X75: =ROUND(W75/(1-VLOOKUP("Total porcentaje:",ResumenCotizacion!$F:$H,3,0)),2) -> 6822.34 | Y75: 0
A76: Catalogo principalEDUCATIVO5XS-00001STUB | B76: 5XS-00001STUBEDUCATIVO | D76: Catalogo principal | E76: 5XS-00001STUB | F76: EDUCATIVO | G76: Catalogo principal | H76: USD | I76: N/A | J76: Microsoft® M365 Apps Enterprise Edu Subscription Per User_StudentLevelB | K76: Unidad | L76: Und | M76: Monthly Subscriptions | N76: N/A | O76: N/A | P76: EES ACADEMICO | Q76: 5XS-00001STUB | R76: Suscripción mensual con pago anual | S76: 1.63 | T76: 1 | U76: 0 | V76: =SUMIF(ResumenCotizacion!$C:$C,E76,ResumenCotizacion!$P:$P) -> 0 | W76: =IF(H76="USD",S76*SolCotizacion!$J$18,S76) -> 6354.5224 | X76: =ROUND(W76/(1-VLOOKUP("Total porcentaje:",ResumenCotizacion!$F:$H,3,0)),2) -> 6354.52 | Y76: 0
A77: Catalogo principalEDUCATIVO5XS-00001STUC | B77: 5XS-00001STUCEDUCATIVO | D77: Catalogo principal | E77: 5XS-00001STUC | F77: EDUCATIVO | G77: Catalogo principal | H77: USD | I77: N/A | J77: Microsoft® M365 Apps Enterprise Edu Subscription Per User_StudentLevelC | K77: Unidad | L77: Und | M77: Monthly Subscriptions | N77: N/A | O77: N/A | P77: EES ACADEMICO | Q77: 5XS-00001STUC | R77: Suscripción mensual con pago anual | S77: 1.51 | T77: 1 | U77: 0 | V77: =SUMIF(ResumenCotizacion!$C:$C,E77,ResumenCotizacion!$P:$P) -> 0 | W77: =IF(H77="USD",S77*SolCotizacion!$J$18,S77) -> 5886.7048 | X77: =ROUND(W77/(1-VLOOKUP("Total porcentaje:",ResumenCotizacion!$F:$H,3,0)),2) -> 5886.7 | Y77: 0
A78: Catalogo principalEDUCATIVO5XS-00001STUD | B78: 5XS-00001STUDEDUCATIVO | D78: Catalogo principal | E78: 5XS-00001STUD | F78: EDUCATIVO | G78: Catalogo principal | H78: USD | I78: N/A | J78: Microsoft® M365 Apps Enterprise Edu Subscription Per User_StudentLevelD | K78: Unidad | L78: Und | M78: Monthly Subscriptions | N78: N/A | O78: N/A | P78: EES ACADEMICO | Q78: 5XS-00001STUD | R78: Suscripción mensual con pago anual | S78: 1.41 | T78: 1 | U78: 0 | V78: =SUMIF(ResumenCotizacion!$C:$C,E78,ResumenCotizacion!$P:$P) -> 0 | W78: =IF(H78="USD",S78*SolCotizacion!$J$18,S78) -> 5496.8568 | X78: =ROUND(W78/(1-VLOOKUP("Total porcentaje:",ResumenCotizacion!$F:$H,3,0)),2) -> 5496.86 | Y78: 0
A79: Catalogo principalEDUCATIVO5XS-00002SUB | B79: 5XS-00002SUBEDUCATIVO | D79: Catalogo principal | E79: 5XS-00002SUB | F79: EDUCATIVO | G79: Catalogo principal | H79: USD | I79: N/A | J79: Microsoft® M365 Apps Enterprise Edu Subscription Student Use Benefit Per User | K79: Unidad | L79: Und | M79: Monthly Subscriptions | N79: N/A | O79: N/A | P79: EES ACADEMICO | Q79: 5XS-00002SUB | R79: Suscripción mensual con pago anual | S79: 0 | T79: 1 | U79: 0 | V79: =SUMIF(ResumenCotizacion!$C:$C,E79,ResumenCotizacion!$P:$P) -> 0 | W79: =IF(H79="USD",S79*SolCotizacion!$J$18,S79) -> 0 | X79: =ROUND(W79/(1-VLOOKUP("Total porcentaje:",ResumenCotizacion!$F:$H,3,0)),2) -> 0 | Y79: 0
A80: Catalogo principalEDUCATIVO5XS-00003AP | B80: 5XS-00003APEDUCATIVO | D80: Catalogo principal | E80: 5XS-00003AP | F80: EDUCATIVO | G80: Catalogo principal | H80: USD | I80: N/A | J80: Microsoft® M365 Apps Enterprise Edu Subscription Add-on Office Pro Plus_Additional Product | K80: Unidad | L80: Und | M80: Monthly Subscriptions | N80: N/A | O80: N/A | P80: EES ACADEMICO | Q80: 5XS-00003AP | R80: Suscripción mensual con pago anual | S80: 0 | T80: 1 | U80: 0 | V80: =SUMIF(ResumenCotizacion!$C:$C,E80,ResumenCotizacion!$P:$P) -> 0 | W80: =IF(H80="USD",S80*SolCotizacion!$J$18,S80) -> 0 | X80: =ROUND(W80/(1-VLOOKUP("Total porcentaje:",ResumenCotizacion!$F:$H,3,0)),2) -> 0 | Y80: 0
A81: Catalogo principalEDUCATIVO5XS-00003STU | B81: 5XS-00003STUEDUCATIVO | D81: Catalogo principal | E81: 5XS-00003STU | F81: EDUCATIVO | G81: Catalogo principal | H81: USD | I81: N/A | J81: Microsoft® M365 Apps Enterprise Edu Subscription Add-on Office Pro Plus_Student | K81: Unidad | L81: Und | M81: Monthly Subscriptions | N81: N/A | O81: N/A | P81: EES ACADEMICO | Q81: 5XS-00003STU | R81: Suscripción mensual con pago anual | S81: 0 | T81: 1 | U81: 0 | V81: =SUMIF(ResumenCotizacion!$C:$C,E81,ResumenCotizacion!$P:$P) -> 0 | W81: =IF(H81="USD",S81*SolCotizacion!$J$18,S81) -> 0 | X81: =ROUND(W81/(1-VLOOKUP("Total porcentaje:",ResumenCotizacion!$F:$H,3,0)),2) -> 0 | Y81: 0
A82: Catalogo principalEDUCATIVO6E9-00001AP | B82: 6E9-00001APEDUCATIVO | D82: Catalogo principal | E82: 6E9-00001AP | F82: EDUCATIVO | G82: Catalogo principal | H82: USD | I82: N/A | J82: Microsoft® Azure Active Directory Premium P2 A Subscription Per User_Additional Product | K82: Unidad | L82: Und | M82: Monthly Subscriptions | N82: N/A | O82: N/A | P82: EES ACADEMICO | Q82: 6E9-00001AP | R82: Suscripción mensual con pago anual | S82: 1.1 | T82: 1 | U82: 0 | V82: =SUMIF(ResumenCotizacion!$C:$C,E82,ResumenCotizacion!$P:$P) -> 0 | W82: =IF(H82="USD",S82*SolCotizacion!$J$18,S82) -> 4288.328 | X82: =ROUND(W82/(1-VLOOKUP("Total porcentaje:",ResumenCotizacion!$F:$H,3,0)),2) -> 4288.33 | Y82: 0
A83: Catalogo principalEDUCATIVO6E9-00001STU | B83: 6E9-00001STUEDUCATIVO | D83: Catalogo principal | E83: 6E9-00001STU | F83: EDUCATIVO | G83: Catalogo principal | H83: USD | I83: N/A | J83: Microsoft® Azure Active Directory Premium P2 A Subscription Per User_Student | K83: Unidad | L83: Und | M83: Monthly Subscriptions | N83: N/A | O83: N/A | P83: EES ACADEMICO | Q83: 6E9-00001STU | R83: Suscripción mensual con pago anual | S83: 0.83 | T83: 1 | U83: 0 | V83: =SUMIF(ResumenCotizacion!$C:$C,E83,ResumenCotizacion!$P:$P) -> 0 | W83: =IF(H83="USD",S83*SolCotizacion!$J$18,S83) -> 3235.7384 | X83: =ROUND(W83/(1-VLOOKUP("Total porcentaje:",ResumenCotizacion!$F:$H,3,0)),2) -> 3235.74 | Y83: 0
A84: Catalogo principalEDUCATIVO6E9-00002AP | B84: 6E9-00002APEDUCATIVO | D84: Catalogo principal | E84: 6E9-00002AP | F84: EDUCATIVO | G84: Catalogo principal | H84: USD | I84: N/A | J84: Microsoft® Azure Active Directory Premium P2 A Step-up Azure Active Directory Premium P1 A_Additional Product | K84: Unidad | L84: Und | M84: Step Up | N84: N/A | O84: N/A | P84: EES ACADEMICO | Q84: 6E9-00002AP | R84: Suscripción mensual con pago anual | S84: 0.55 | T84: 1 | U84: 0 | V84: =SUMIF(ResumenCotizacion!$C:$C,E84,ResumenCotizacion!$P:$P) -> 0 | W84: =IF(H84="USD",S84*SolCotizacion!$J$18,S84) -> 2144.164 | X84: =ROUND(W84/(1-VLOOKUP("Total porcentaje:",ResumenCotizacion!$F:$H,3,0)),2) -> 2144.16 | Y84: 0
A85: Catalogo principalEDUCATIVO6E9-00002STU | B85: 6E9-00002STUEDUCATIVO | D85: Catalogo principal | E85: 6E9-00002STU | F85: EDUCATIVO | G85: Catalogo principal | H85: USD | I85: N/A | J85: Microsoft® Azure Active Directory Premium P2 A Step-up Azure Active Directory Premium P1 A_Student | K85: Unidad | L85: Und | M85: Step Up | N85: N/A | O85: N/A | P85: EES ACADEMICO | Q85: 6E9-00002STU | R85: Suscripción mensual con pago anual | S85: 0.61 | T85: 1 | U85: 0 | V85: =SUMIF(ResumenCotizacion!$C:$C,E85,ResumenCotizacion!$P:$P) -> 0 | W85: =IF(H85="USD",S85*SolCotizacion!$J$18,S85) -> 2378.0728 | X85: =ROUND(W85/(1-VLOOKUP("Total porcentaje:",ResumenCotizacion!$F:$H,3,0)),2) -> 2378.07 | Y85: 0
A86: Catalogo principalEDUCATIVO6E9-00004SUB | B86: 6E9-00004SUBEDUCATIVO | D86: Catalogo principal | E86: 6E9-00004SUB | F86: EDUCATIVO | G86: Catalogo principal | H86: USD | I86: N/A | J86: Microsoft® Azure Active Directory Premium P2 A Subscription Per User Student Use Benefit | K86: Unidad | L86: Und | M86: Monthly Subscriptions | N86: N/A | O86: N/A | P86: EES ACADEMICO | Q86: 6E9-00004SUB | R86: Suscripción mensual con pago anual | S86: 0 | T86: 1 | U86: 0 | V86: =SUMIF(ResumenCotizacion!$C:$C,E86,ResumenCotizacion!$P:$P) -> 0 | W86: =IF(H86="USD",S86*SolCotizacion!$J$18,S86) -> 0 | X86: =ROUND(W86/(1-VLOOKUP("Total porcentaje:",ResumenCotizacion!$F:$H,3,0)),2) -> 0 | Y86: 0
A87: Catalogo principalEDUCATIVO6MV-00003AP | B87: 6MV-00003APEDUCATIVO | D87: Catalogo principal | E87: 6MV-00003AP | F87: EDUCATIVO | G87: Catalogo principal | H87: USD | I87: N/A | J87: Microsoft® Exchange Enterprise CAL Service Edu All Languages Subscription Per User_Additional Product | K87: Unidad | L87: Und | M87: Monthly Subscriptions | N87: N/A | O87: N/A | P87: EES ACADEMICO | Q87: 6MV-00003AP | R87: Suscripción mensual con pago anual | S87: 0 | T87: 1 | U87: 0 | V87: =SUMIF(ResumenCotizacion!$C:$C,E87,ResumenCotizacion!$P:$P) -> 0 | W87: =IF(H87="USD",S87*SolCotizacion!$J$18,S87) -> 0 | X87: =ROUND(W87/(1-VLOOKUP("Total porcentaje:",ResumenCotizacion!$F:$H,3,0)),2) -> 0 | Y87: 0
A88: Catalogo principalEDUCATIVO6MV-00003STU | B88: 6MV-00003STUEDUCATIVO | D88: Catalogo principal | E88: 6MV-00003STU | F88: EDUCATIVO | G88: Catalogo principal | H88: USD | I88: N/A | J88: Microsoft® Exchange Enterprise CAL Service Edu All Languages Subscription Per User_Student | K88: Unidad | L88: Und | M88: Monthly Subscriptions | N88: N/A | O88: N/A | P88: EES ACADEMICO | Q88: 6MV-00003STU | R88: Suscripción mensual con pago anual | S88: 0 | T88: 1 | U88: 0 | V88: =SUMIF(ResumenCotizacion!$C:$C,E88,ResumenCotizacion!$P:$P) -> 0 | W88: =IF(H88="USD",S88*SolCotizacion!$J$18,S88) -> 0 | X88: =ROUND(W88/(1-VLOOKUP("Total porcentaje:",ResumenCotizacion!$F:$H,3,0)),2) -> 0 | Y88: 0
A89: Catalogo principalEDUCATIVO6QV-00003AP | B89: 6QV-00003APEDUCATIVO | D89: Catalogo principal | E89: 6QV-00003AP | F89: EDUCATIVO | G89: Catalogo principal | H89: USD | I89: N/A | J89: Microsoft® Enterprise CAL Services Edu All Languages Subscription Per User_Additional Product | K89: Unidad | L89: Und | M89: Monthly Subscriptions | N89: N/A | O89: N/A | P89: EES ACADEMICO | Q89: 6QV-00003AP | R89: Suscripción mensual con pago anual | S89: 0 | T89: 1 | U89: 0 | V89: =SUMIF(ResumenCotizacion!$C:$C,E89,ResumenCotizacion!$P:$P) -> 0 | W89: =IF(H89="USD",S89*SolCotizacion!$J$18,S89) -> 0 | X89: =ROUND(W89/(1-VLOOKUP("Total porcentaje:",ResumenCotizacion!$F:$H,3,0)),2) -> 0 | Y89: 0
A90: Catalogo principalEDUCATIVO6QV-00003STU | B90: 6QV-00003STUEDUCATIVO | D90: Catalogo principal | E90: 6QV-00003STU | F90: EDUCATIVO | G90: Catalogo principal | H90: USD | I90: N/A | J90: Microsoft® Enterprise CAL Services Edu All Languages Subscription Per User_Student | K90: Unidad | L90: Und | M90: Monthly Subscriptions | N90: N/A | O90: N/A | P90: EES ACADEMICO | Q90: 6QV-00003STU | R90: Suscripción mensual con pago anual | S90: 0 | T90: 1 | U90: 0 | V90: =SUMIF(ResumenCotizacion!$C:$C,E90,ResumenCotizacion!$P:$P) -> 0 | W90: =IF(H90="USD",S90*SolCotizacion!$J$18,S90) -> 0 | X90: =ROUND(W90/(1-VLOOKUP("Total porcentaje:",ResumenCotizacion!$F:$H,3,0)),2) -> 0 | Y90: 0
A91: Catalogo principalEDUCATIVO6VC-01251AP | B91: 6VC-01251APEDUCATIVO | D91: Catalogo principal | E91: 6VC-01251AP | F91: EDUCATIVO | G91: Catalogo principal | H91: USD | I91: N/A | J91: Microsoft® Win Remote Desktop Services CAL All Languages License & Software Assurance Device CAL_Additional Product | K91: Unidad | L91: Und | M91: License/Software Assurance | N91: N/A | O91: N/A | P91: EES ACADEMICO | Q91: 6VC-01251AP | R91: Suscripción Anual | S91: 12 | T91: 1 | U91: 0 | V91: =SUMIF(ResumenCotizacion!$C:$C,E91,ResumenCotizacion!$P:$P) -> 0 | W91: =IF(H91="USD",S91*SolCotizacion!$J$18,S91) -> 46781.76 | X91: =ROUND(W91/(1-VLOOKUP("Total porcentaje:",ResumenCotizacion!$F:$H,3,0)),2) -> 46781.76 | Y91: 0
A92: Catalogo principalEDUCATIVO6VC-01251FAC | B92: 6VC-01251FACEDUCATIVO | D92: Catalogo principal | E92: 6VC-01251FAC | F92: EDUCATIVO | G92: Catalogo principal | H92: USD | I92: N/A | J92: Microsoft® Win Remote Desktop Services CAL All Languages License & Software Assurance Device CAL_Faculty | K92: Unidad | L92: Und | M92: License/Software Assurance | N92: N/A | O92: N/A | P92: EES ACADEMICO | Q92: 6VC-01251FAC | R92: Suscripción Anual | S92: 9 | T92: 1 | U92: 0 | V92: =SUMIF(ResumenCotizacion!$C:$C,E92,ResumenCotizacion!$P:$P) -> 0 | W92: =IF(H92="USD",S92*SolCotizacion!$J$18,S92) -> 35086.32 | X92: =ROUND(W92/(1-VLOOKUP("Total porcentaje:",ResumenCotizacion!$F:$H,3,0)),2) -> 35086.32 | Y92: 0
A93: Catalogo principalEDUCATIVO6VC-01251STU | B93: 6VC-01251STUEDUCATIVO | D93: Catalogo principal | E93: 6VC-01251STU | F93: EDUCATIVO | G93: Catalogo principal | H93: USD | I93: N/A | J93: Microsoft® Win Remote Desktop Services CAL All Languages License & Software Assurance Device CAL_Student | K93: Unidad | L93: Und | M93: License/Software Assurance | N93: N/A | O93: N/A | P93: EES ACADEMICO | Q93: 6VC-01251STU | R93: Suscripción Anual | S93: 4.84 | T93: 1 | U93: 0 | V93: =SUMIF(ResumenCotizacion!$C:$C,E93,ResumenCotizacion!$P:$P) -> 0 | W93: =IF(H93="USD",S93*SolCotizacion!$J$18,S93) -> 18868.6432 | X93: =ROUND(W93/(1-VLOOKUP("Total porcentaje:",ResumenCotizacion!$F:$H,3,0)),2) -> 18868.64 | Y93: 0
A94: Catalogo principalEDUCATIVO6XC-00298AP | B94: 6XC-00298APEDUCATIVO | D94: Catalogo principal | E94: 6XC-00298AP | F94: EDUCATIVO | G94: Catalogo principal | H94: USD | I94: N/A | J94: Microsoft® Win Remote Desktop Services External Connector All Languages License & Software Assurance_Additional Product | K94: Unidad | L94: Und | M94: License/Software Assurance | N94: N/A | O94: N/A | P94: EES ACADEMICO | Q94: 6XC-00298AP | R94: Suscripción Anual | S94: 1178 | T94: 1 | U94: 0 | V94: =SUMIF(ResumenCotizacion!$C:$C,E94,ResumenCotizacion!$P:$P) -> 0 | W94: =IF(H94="USD",S94*SolCotizacion!$J$18,S94) -> 4592409.44 | X94: =ROUND(W94/(1-VLOOKUP("Total porcentaje:",ResumenCotizacion!$F:$H,3,0)),2) -> 4592409.44 | Y94: 0
A95: Catalogo principalEDUCATIVO6YH-00575AP | B95: 6YH-00575APEDUCATIVO | D95: Catalogo principal | E95: 6YH-00575AP | F95: EDUCATIVO | G95: Catalogo principal | H95: USD | I95: N/A | J95: Microsoft® SfB All Languages License & Software Assurance_Additional Product | K95: Unidad | L95: Und | M95: License/Software Assurance | N95: N/A | O95: N/A | P95: EES ACADEMICO | Q95: 6YH-00575AP | R95: Suscripción Anual | S95: 2.34 | T95: 1 | U95: 0 | V95: =SUMIF(ResumenCotizacion!$C:$C,E95,ResumenCotizacion!$P:$P) -> 0 | W95: =IF(H95="USD",S95*SolCotizacion!$J$18,S95) -> 9122.4432 | X95: =ROUND(W95/(1-VLOOKUP("Total porcentaje:",ResumenCotizacion!$F:$H,3,0)),2) -> 9122.44 | Y95: 0
A96: Catalogo principalEDUCATIVO6YH-00575STU | B96: 6YH-00575STUEDUCATIVO | D96: Catalogo principal | E96: 6YH-00575STU | F96: EDUCATIVO | G96: Catalogo principal | H96: USD | I96: N/A | J96: Microsoft® SfB All Languages License & Software Assurance_Student | K96: Unidad | L96: Und | M96: License/Software Assurance | N96: N/A | O96: N/A | P96: EES ACADEMICO | Q96: 6YH-00575STU | R96: Suscripción Anual | S96: 1.4 | T96: 1 | U96: 0 | V96: =SUMIF(ResumenCotizacion!$C:$C,E96,ResumenCotizacion!$P:$P) -> 0 | W96: =IF(H96="USD",S96*SolCotizacion!$J$18,S96) -> 5457.872 | X96: =ROUND(W96/(1-VLOOKUP("Total porcentaje:",ResumenCotizacion!$F:$H,3,0)),2) -> 5457.87 | Y96: 0
A97: Catalogo principalEDUCATIVO6ZH-00395FAC | B97: 6ZH-00395FACEDUCATIVO | D97: Catalogo principal | E97: 6ZH-00395FAC | F97: EDUCATIVO | G97: Catalogo principal | H97: USD | I97: N/A | J97: Microsoft® SfB Server Standard CAL All Languages License & Software Assurance Device CAL_Faculty | K97: Unidad | L97: Und | M97: License/Software Assurance | N97: N/A | O97: N/A | P97: EES ACADEMICO | Q97: 6ZH-00395FAC | R97: Suscripción Anual | S97: 3.28 | T97: 1 | U97: 0 | V97: =SUMIF(ResumenCotizacion!$C:$C,E97,ResumenCotizacion!$P:$P) -> 0 | W97: =IF(H97="USD",S97*SolCotizacion!$J$18,S97) -> 12787.0144 | X97: =ROUND(W97/(1-VLOOKUP("Total porcentaje:",ResumenCotizacion!$F:$H,3,0)),2) -> 12787.01 | Y97: 0
A98: Catalogo principalEDUCATIVO6ZH-00395STU | B98: 6ZH-00395STUEDUCATIVO | D98: Catalogo principal | E98: 6ZH-00395STU | F98: EDUCATIVO | G98: Catalogo principal | H98: USD | I98: N/A | J98: Microsoft® SfB Server Standard CAL All Languages License & Software Assurance Device CAL_Student | K98: Unidad | L98: Und | M98: License/Software Assurance | N98: N/A | O98: N/A | P98: EES ACADEMICO | Q98: 6ZH-00395STU | R98: Suscripción Anual | S98: 2.18 | T98: 1 | U98: 0 | V98: =SUMIF(ResumenCotizacion!$C:$C,E98,ResumenCotizacion!$P:$P) -> 0 | W98: =IF(H98="USD",S98*SolCotizacion!$J$18,S98) -> 8498.6864 | X98: =ROUND(W98/(1-VLOOKUP("Total porcentaje:",ResumenCotizacion!$F:$H,3,0)),2) -> 8498.69 | Y98: 0
A99: Catalogo principalEDUCATIVO76A-00025FACA | B99: 76A-00025FACAEDUCATIVO | D99: Catalogo principal | E99: 76A-00025FACA | F99: EDUCATIVO | G99: Catalogo principal | H99: USD | I99: N/A | J99: Microsoft® ECAL All Languages License & Software Assurance Device CAL with Services_FacultyLevelA | K99: Unidad | L99: Und | M99: License/Software Assurance | N99: N/A | O99: N/A | P99: EES ACADEMICO | Q99: 76A-00025FACA | R99: Suscripción Anual | S99: 26 | T99: 1 | U99: 0 | V99: =SUMIF(ResumenCotizacion!$C:$C,E99,ResumenCotizacion!$P:$P) -> 0 | W99: =IF(H99="USD",S99*SolCotizacion!$J$18,S99) -> 101360.48 | X99: =ROUND(W99/(1-VLOOKUP("Total porcentaje:",ResumenCotizacion!$F:$H,3,0)),2) -> 101360.48 | Y99: 0
A100: Catalogo principalEDUCATIVO76A-00025FACB | B100: 76A-00025FACBEDUCATIVO | D100: Catalogo principal | E100: 76A-00025FACB | F100: EDUCATIVO | G100: Catalogo principal | H100: USD | I100: N/A | J100: Microsoft® ECAL All Languages License & Software Assurance Device CAL with Services_FacultyLevelB | K100: Unidad | L100: Und | M100: License/Software Assurance | N100: N/A | O100: N/A | P100: EES ACADEMICO | Q100: 76A-00025FACB | R100: Suscripción Anual | S100: 24 | T100: 1 | U100: 0 | V100: =SUMIF(ResumenCotizacion!$C:$C,E100,ResumenCotizacion!$P:$P) -> 0 | W100: =IF(H100="USD",S100*SolCotizacion!$J$18,S100) -> 93563.52 | X100: =ROUND(W100/(1-VLOOKUP("Total porcentaje:",ResumenCotizacion!$F:$H,3,0)),2) -> 93563.52 | Y100: 0
A101: Catalogo principalEDUCATIVO76A-00025FACC | B101: 76A-00025FACCEDUCATIVO | D101: Catalogo principal | E101: 76A-00025FACC | F101: EDUCATIVO | G101: Catalogo principal | H101: USD | I101: N/A | J101: Microsoft® ECAL All Languages License & Software Assurance Device CAL with Services_FacultyLevelC | K101: Unidad | L101: Und | M101: License/Software Assurance | N101: N/A | O101: N/A | P101: EES ACADEMICO | Q101: 76A-00025FACC | R101: Suscripción Anual | S101: 22 | T101: 1 | U101: 0 | V101: =SUMIF(ResumenCotizacion!$C:$C,E101,ResumenCotizacion!$P:$P) -> 0 | W101: =IF(H101="USD",S101*SolCotizacion!$J$18,S101) -> 85766.56 | X101: =ROUND(W101/(1-VLOOKUP("Total porcentaje:",ResumenCotizacion!$F:$H,3,0)),2) -> 85766.56 | Y101: 0
A102: Catalogo principalEDUCATIVO76A-00025FACD | B102: 76A-00025FACDEDUCATIVO | D102: Catalogo principal | E102: 76A-00025FACD | F102: EDUCATIVO | G102: Catalogo principal | H102: USD | I102: N/A | J102: Microsoft® ECAL All Languages License & Software Assurance Device CAL with Services_FacultyLevelD | K102: Unidad | L102: Und | M102: License/Software Assurance | N102: N/A | O102: N/A | P102: EES ACADEMICO | Q102: 76A-00025FACD | R102: Suscripción Anual | S102: 21 | T102: 1 | U102: 0 | V102: =SUMIF(ResumenCotizacion!$C:$C,E102,ResumenCotizacion!$P:$P) -> 0 | W102: =IF(H102="USD",S102*SolCotizacion!$J$18,S102) -> 81868.08 | X102: =ROUND(W102/(1-VLOOKUP("Total porcentaje:",ResumenCotizacion!$F:$H,3,0)),2) -> 81868.08 | Y102: 0
A103: Catalogo principalEDUCATIVO76A-00025STUA | B103: 76A-00025STUAEDUCATIVO | D103: Catalogo principal | E103: 76A-00025STUA | F103: EDUCATIVO | G103: Catalogo principal | H103: USD | I103: N/A | J103: Microsoft® ECAL All Languages License & Software Assurance Device CAL with Services_StudentLevelA | K103: Unidad | L103: Und | M103: License/Software Assurance | N103: N/A | O103: N/A | P103: EES ACADEMICO | Q103: 76A-00025STUA | R103: Suscripción Anual | S103: 16 | T103: 1 | U103: 0 | V103: =SUMIF(ResumenCotizacion!$C:$C,E103,ResumenCotizacion!$P:$P) -> 0 | W103: =IF(H103="USD",S103*SolCotizacion!$J$18,S103) -> 62375.68 | X103: =ROUND(W103/(1-VLOOKUP("Total porcentaje:",ResumenCotizacion!$F:$H,3,0)),2) -> 62375.68 | Y103: 0
A104: Catalogo principalEDUCATIVO76A-00025STUB | B104: 76A-00025STUBEDUCATIVO | D104: Catalogo principal | E104: 76A-00025STUB | F104: EDUCATIVO | G104: Catalogo principal | H104: USD | I104: N/A | J104: Microsoft® ECAL All Languages License & Software Assurance Device CAL with Services_StudentLevelB | K104: Unidad | L104: Und | M104: License/Software Assurance | N104: N/A | O104: N/A | P104: EES ACADEMICO | Q104: 76A-00025STUB | R104: Suscripción Anual | S104: 15 | T104: 1 | U104: 0 | V104: =SUMIF(ResumenCotizacion!$C:$C,E104,ResumenCotizacion!$P:$P) -> 0 | W104: =IF(H104="USD",S104*SolCotizacion!$J$18,S104) -> 58477.2 | X104: =ROUND(W104/(1-VLOOKUP("Total porcentaje:",ResumenCotizacion!$F:$H,3,0)),2) -> 58477.2 | Y104: 0
A105: Catalogo principalEDUCATIVO76A-00025STUC | B105: 76A-00025STUCEDUCATIVO | D105: Catalogo principal | E105: 76A-00025STUC | F105: EDUCATIVO | G105: Catalogo principal | H105: USD | I105: N/A | J105: Microsoft® ECAL All Languages License & Software Assurance Device CAL with Services_StudentLevelC | K105: Unidad | L105: Und | M105: License/Software Assurance | N105: N/A | O105: N/A | P105: EES ACADEMICO | Q105: 76A-00025STUC | R105: Suscripción Anual | S105: 14 | T105: 1 | U105: 0 | V105: =SUMIF(ResumenCotizacion!$C:$C,E105,ResumenCotizacion!$P:$P) -> 0 | W105: =IF(H105="USD",S105*SolCotizacion!$J$18,S105) -> 54578.72 | X105: =ROUND(W105/(1-VLOOKUP("Total porcentaje:",ResumenCotizacion!$F:$H,3,0)),2) -> 54578.72 | Y105: 0
A106: Catalogo principalEDUCATIVO76A-00025STUD | B106: 76A-00025STUDEDUCATIVO | D106: Catalogo principal | E106: 76A-00025STUD | F106: EDUCATIVO | G106: Catalogo principal | H106: USD | I106: N/A | J106: Microsoft® ECAL All Languages License & Software Assurance Device CAL with Services_StudentLevelD | K106: Unidad | L106: Und | M106: License/Software Assurance | N106: N/A | O106: N/A | P106: EES ACADEMICO | Q106: 76A-00025STUD | R106: Suscripción Anual | S106: 13 | T106: 1 | U106: 0 | V106: =SUMIF(ResumenCotizacion!$C:$C,E106,ResumenCotizacion!$P:$P) -> 0 | W106: =IF(H106="USD",S106*SolCotizacion!$J$18,S106) -> 50680.24 | X106: =ROUND(W106/(1-VLOOKUP("Total porcentaje:",ResumenCotizacion!$F:$H,3,0)),2) -> 50680.24 | Y106: 0
A107: Catalogo principalEDUCATIVO76A-00043FACA | B107: 76A-00043FACAEDUCATIVO | D107: Catalogo principal | E107: 76A-00043FACA | F107: EDUCATIVO | G107: Catalogo principal | H107: USD | I107: N/A | J107: Microsoft® ECAL All Languages SA Step-up CCAL Device CAL with Services_FacultyLevelA | K107: Unidad | L107: Und | M107: SA Step Up | N107: N/A | O107: N/A | P107: EES ACADEMICO | Q107: 76A-00043FACA | R107: Suscripción Anual | S107: 13 | T107: 1 | U107: 0 | V107: =SUMIF(ResumenCotizacion!$C:$C,E107,ResumenCotizacion!$P:$P) -> 0 | W107: =IF(H107="USD",S107*SolCotizacion!$J$18,S107) -> 50680.24 | X107: =ROUND(W107/(1-VLOOKUP("Total porcentaje:",ResumenCotizacion!$F:$H,3,0)),2) -> 50680.24 | Y107: 0
A108: Catalogo principalEDUCATIVO76A-00043FACB | B108: 76A-00043FACBEDUCATIVO | D108: Catalogo principal | E108: 76A-00043FACB | F108: EDUCATIVO | G108: Catalogo principal | H108: USD | I108: N/A | J108: Microsoft® ECAL All Languages SA Step-up CCAL Device CAL with Services_FacultyLevelB | K108: Unidad | L108: Und | M108: SA Step Up | N108: N/A | O108: N/A | P108: EES ACADEMICO | Q108: 76A-00043FACB | R108: Suscripción Anual | S108: 12 | T108: 1 | U108: 0 | V108: =SUMIF(ResumenCotizacion!$C:$C,E108,ResumenCotizacion!$P:$P) -> 0 | W108: =IF(H108="USD",S108*SolCotizacion!$J$18,S108) -> 46781.76 | X108: =ROUND(W108/(1-VLOOKUP("Total porcentaje:",ResumenCotizacion!$F:$H,3,0)),2) -> 46781.76 | Y108: 0
A109: Catalogo principalEDUCATIVO76A-00043FACC | B109: 76A-00043FACCEDUCATIVO | D109: Catalogo principal | E109: 76A-00043FACC | F109: EDUCATIVO | G109: Catalogo principal | H109: USD | I109: N/A | J109: Microsoft® ECAL All Languages SA Step-up CCAL Device CAL with Services_FacultyLevelC | K109: Unidad | L109: Und | M109: SA Step Up | N109: N/A | O109: N/A | P109: EES ACADEMICO | Q109: 76A-00043FACC | R109: Suscripción Anual | S109: 11 | T109: 1 | U109: 0 | V109: =SUMIF(ResumenCotizacion!$C:$C,E109,ResumenCotizacion!$P:$P) -> 0 | W109: =IF(H109="USD",S109*SolCotizacion!$J$18,S109) -> 42883.28 | X109: =ROUND(W109/(1-VLOOKUP("Total porcentaje:",ResumenCotizacion!$F:$H,3,0)),2) -> 42883.28 | Y109: 0
A110: Catalogo principalEDUCATIVO76A-00043FACD | B110: 76A-00043FACDEDUCATIVO | D110: Catalogo principal | E110: 76A-00043FACD | F110: EDUCATIVO | G110: Catalogo principal | H110: USD | I110: N/A | J110: Microsoft® ECAL All Languages SA Step-up CCAL Device CAL with Services_FacultyLevelD | K110: Unidad | L110: Und | M110: SA Step Up | N110: N/A | O110: N/A | P110: EES ACADEMICO | Q110: 76A-00043FACD | R110: Suscripción Anual | S110: 10 | T110: 1 | U110: 0 | V110: =SUMIF(ResumenCotizacion!$C:$C,E110,ResumenCotizacion!$P:$P) -> 0 | W110: =IF(H110="USD",S110*SolCotizacion!$J$18,S110) -> 38984.8 | X110: =ROUND(W110/(1-VLOOKUP("Total porcentaje:",ResumenCotizacion!$F:$H,3,0)),2) -> 38984.8 | Y110: 0
A111: Catalogo principalEDUCATIVO76A-00043STUA | B111: 76A-00043STUAEDUCATIVO | D111: Catalogo principal | E111: 76A-00043STUA | F111: EDUCATIVO | G111: Catalogo principal | H111: USD | I111: N/A | J111: Microsoft® ECAL All Languages SA Step-up CCAL Device CAL with Services_StudentLevelA | K111: Unidad | L111: Und | M111: SA Step Up | N111: N/A | O111: N/A | P111: EES ACADEMICO | Q111: 76A-00043STUA | R111: Suscripción Anual | S111: 13 | T111: 1 | U111: 0 | V111: =SUMIF(ResumenCotizacion!$C:$C,E111,ResumenCotizacion!$P:$P) -> 0 | W111: =IF(H111="USD",S111*SolCotizacion!$J$18,S111) -> 50680.24 | X111: =ROUND(W111/(1-VLOOKUP("Total porcentaje:",ResumenCotizacion!$F:$H,3,0)),2) -> 50680.24 | Y111: 0
A112: Catalogo principalEDUCATIVO76A-00043STUB | B112: 76A-00043STUBEDUCATIVO | D112: Catalogo principal | E112: 76A-00043STUB | F112: EDUCATIVO | G112: Catalogo principal | H112: USD | I112: N/A | J112: Microsoft® ECAL All Languages SA Step-up CCAL Device CAL with Services_StudentLevelB | K112: Unidad | L112: Und | M112: SA Step Up | N112: N/A | O112: N/A | P112: EES ACADEMICO | Q112: 76A-00043STUB | R112: Suscripción Anual | S112: 13 | T112: 1 | U112: 0 | V112: =SUMIF(ResumenCotizacion!$C:$C,E112,ResumenCotizacion!$P:$P) -> 0 | W112: =IF(H112="USD",S112*SolCotizacion!$J$18,S112) -> 50680.24 | X112: =ROUND(W112/(1-VLOOKUP("Total porcentaje:",ResumenCotizacion!$F:$H,3,0)),2) -> 50680.24 | Y112: 0
A113: Catalogo principalEDUCATIVO76A-00043STUC | B113: 76A-00043STUCEDUCATIVO | D113: Catalogo principal | E113: 76A-00043STUC | F113: EDUCATIVO | G113: Catalogo principal | H113: USD | I113: N/A | J113: Microsoft® ECAL All Languages SA Step-up CCAL Device CAL with Services_StudentLevelC | K113: Unidad | L113: Und | M113: SA Step Up | N113: N/A | O113: N/A | P113: EES ACADEMICO | Q113: 76A-00043STUC | R113: Suscripción Anual | S113: 12 | T113: 1 | U113: 0 | V113: =SUMIF(ResumenCotizacion!$C:$C,E113,ResumenCotizacion!$P:$P) -> 0 | W113: =IF(H113="USD",S113*SolCotizacion!$J$18,S113) -> 46781.76 | X113: =ROUND(W113/(1-VLOOKUP("Total porcentaje:",ResumenCotizacion!$F:$H,3,0)),2) -> 46781.76 | Y113: 0
A114: Catalogo principalEDUCATIVO76A-00043STUD | B114: 76A-00043STUDEDUCATIVO | D114: Catalogo principal | E114: 76A-00043STUD | F114: EDUCATIVO | G114: Catalogo principal | H114: USD | I114: N/A | J114: Microsoft® ECAL All Languages SA Step-up CCAL Device CAL with Services_StudentLevelD | K114: Unidad | L114: Und | M114: SA Step Up | N114: N/A | O114: N/A | P114: EES ACADEMICO | Q114: 76A-00043STUD | R114: Suscripción Anual | S114: 11 | T114: 1 | U114: 0 | V114: =SUMIF(ResumenCotizacion!$C:$C,E114,ResumenCotizacion!$P:$P) -> 0 | W114: =IF(H114="USD",S114*SolCotizacion!$J$18,S114) -> 42883.28 | X114: =ROUND(W114/(1-VLOOKUP("Total porcentaje:",ResumenCotizacion!$F:$H,3,0)),2) -> 42883.28 | Y114: 0
A115: Catalogo principalEDUCATIVO76N-02345FAC | B115: 76N-02345FACEDUCATIVO | D115: Catalogo principal | E115: 76N-02345FAC | F115: EDUCATIVO | G115: Catalogo principal | H115: USD | I115: N/A | J115: Microsoft® SharePoint Enterprise CAL All Languages License & Software Assurance Device CAL_Faculty | K115: Unidad | L115: Und | M115: License/Software Assurance | N115: N/A | O115: N/A | P115: EES ACADEMICO | Q115: 76N-02345FAC | R115: Suscripción Anual | S115: 9 | T115: 1 | U115: 0 | V115: =SUMIF(ResumenCotizacion!$C:$C,E115,ResumenCotizacion!$P:$P) -> 0 | W115: =IF(H115="USD",S115*SolCotizacion!$J$18,S115) -> 35086.32 | X115: =ROUND(W115/(1-VLOOKUP("Total porcentaje:",ResumenCotizacion!$F:$H,3,0)),2) -> 35086.32 | Y115: 0
A116: Catalogo principalEDUCATIVO76N-02345STU | B116: 76N-02345STUEDUCATIVO | D116: Catalogo principal | E116: 76N-02345STU | F116: EDUCATIVO | G116: Catalogo principal | H116: USD | I116: N/A | J116: Microsoft® SharePoint Enterprise CAL All Languages License & Software Assurance Device CAL_Student | K116: Unidad | L116: Und | M116: License/Software Assurance | N116: N/A | O116: N/A | P116: EES ACADEMICO | Q116: 76N-02345STU | R116: Suscripción Anual | S116: 6 | T116: 1 | U116: 0 | V116: =SUMIF(ResumenCotizacion!$C:$C,E116,ResumenCotizacion!$P:$P) -> 0 | W116: =IF(H116="USD",S116*SolCotizacion!$J$18,S116) -> 23390.88 | X116: =ROUND(W116/(1-VLOOKUP("Total porcentaje:",ResumenCotizacion!$F:$H,3,0)),2) -> 23390.88 | Y116: 0
A117: Catalogo principalEDUCATIVO77D-00110AP | B117: 77D-00110APEDUCATIVO | D117: Catalogo principal | E117: 77D-00110AP | F117: EDUCATIVO | G117: Catalogo principal | H117: USD | I117: N/A | J117: Microsoft® Visual Studio Professional MSDN All Languages License & Software Assurance_Additional Product | K117: Unidad | L117: Und | M117: License/Software Assurance | N117: N/A | O117: N/A | P117: EES ACADEMICO | Q117: 77D-00110AP | R117: Suscripción Anual | S117: 69 | T117: 1 | U117: 0 | V117: =SUMIF(ResumenCotizacion!$C:$C,E117,ResumenCotizacion!$P:$P) -> 0 | W117: =IF(H117="USD",S117*SolCotizacion!$J$18,S117) -> 268995.12 | X117: =ROUND(W117/(1-VLOOKUP("Total porcentaje:",ResumenCotizacion!$F:$H,3,0)),2) -> 268995.12 | Y117: 0
A118: Catalogo principalEDUCATIVO7AH-00281FAC | B118: 7AH-00281FACEDUCATIVO | D118: Catalogo principal | E118: 7AH-00281FAC | F118: EDUCATIVO | G118: Catalogo principal | H118: USD | I118: N/A | J118: Microsoft® SfB Server Enterprise CAL All Languages License & Software Assurance Device CAL_Faculty | K118: Unidad | L118: Und | M118: License/Software Assurance | N118: N/A | O118: N/A | P118: EES ACADEMICO | Q118: 7AH-00281FAC | R118: Suscripción Anual | S118: 12 | T118: 1 | U118: 0 | V118: =SUMIF(ResumenCotizacion!$C:$C,E118,ResumenCotizacion!$P:$P) -> 0 | W118: =IF(H118="USD",S118*SolCotizacion!$J$18,S118) -> 46781.76 | X118: =ROUND(W118/(1-VLOOKUP("Total porcentaje:",ResumenCotizacion!$F:$H,3,0)),2) -> 46781.76 | Y118: 0
A119: Catalogo principalEDUCATIVO7AH-00281STU | B119: 7AH-00281STUEDUCATIVO | D119: Catalogo principal | E119: 7AH-00281STU | F119: EDUCATIVO | G119: Catalogo principal | H119: USD | I119: N/A | J119: Microsoft® SfB Server Enterprise CAL All Languages License & Software Assurance Device CAL_Student | K119: Unidad | L119: Und | M119: License/Software Assurance | N119: N/A | O119: N/A | P119: EES ACADEMICO | Q119: 7AH-00281STU | R119: Suscripción Anual | S119: 8 | T119: 1 | U119: 0 | V119: =SUMIF(ResumenCotizacion!$C:$C,E119,ResumenCotizacion!$P:$P) -> 0 | W119: =IF(H119="USD",S119*SolCotizacion!$J$18,S119) -> 31187.84 | X119: =ROUND(W119/(1-VLOOKUP("Total porcentaje:",ResumenCotizacion!$F:$H,3,0)),2) -> 31187.84 | Y119: 0
A120: Catalogo principalEDUCATIVO7HS-00001AP | B120: 7HS-00001APEDUCATIVO | D120: Catalogo principal | E120: 7HS-00001AP | F120: EDUCATIVO | G120: Catalogo principal | H120: USD | I120: N/A | J120: Microsoft® Project Online Essentials Edu Subscription Per User_Additional Product | K120: Unidad | L120: Und | M120: Monthly Subscriptions | N120: N/A | O120: N/A | P120: EES ACADEMICO | Q120: 7HS-00001AP | R120: Suscripción mensual con pago anual | S120: 0 | T120: 1 | U120: 0 | V120: =SUMIF(ResumenCotizacion!$C:$C,E120,ResumenCotizacion!$P:$P) -> 0 | W120: =IF(H120="USD",S120*SolCotizacion!$J$18,S120) -> 0 | X120: =ROUND(W120/(1-VLOOKUP("Total porcentaje:",ResumenCotizacion!$F:$H,3,0)),2) -> 0 | Y120: 0
A121: Catalogo principalEDUCATIVO7HS-00001STU | B121: 7HS-00001STUEDUCATIVO | D121: Catalogo principal | E121: 7HS-00001STU | F121: EDUCATIVO | G121: Catalogo principal | H121: USD | I121: N/A | J121: Microsoft® Project Online Essentials Edu Subscription Per User_Student | K121: Unidad | L121: Und | M121: Monthly Subscriptions | N121: N/A | O121: N/A | P121: EES ACADEMICO | Q121: 7HS-00001STU | R121: Suscripción mensual con pago anual | S121: 0 | T121: 1 | U121: 0 | V121: =SUMIF(ResumenCotizacion!$C:$C,E121,ResumenCotizacion!$P:$P) -> 0 | W121: =IF(H121="USD",S121*SolCotizacion!$J$18,S121) -> 0 | X121: =ROUND(W121/(1-VLOOKUP("Total porcentaje:",ResumenCotizacion!$F:$H,3,0)),2) -> 0 | Y121: 0
A122: Catalogo principalEDUCATIVO7JQ-00341AP | B122: 7JQ-00341APEDUCATIVO | D122: Catalogo principal | E122: 7JQ-00341AP | F122: EDUCATIVO | G122: Catalogo principal | H122: USD | I122: N/A | J122: Microsoft® SQL Server Enterprise Core All Languages License & Software Assurance 2 Licenses_Additional Product | K122: Unidad | L122: Und | M122: License/Software Assurance | N122: N/A | O122: N/A | P122: EES ACADEMICO | Q122: 7JQ-00341AP | R122: Suscripción Anual | S122: 1591 | T122: 1 | U122: 0 | V122: =SUMIF(ResumenCotizacion!$C:$C,E122,ResumenCotizacion!$P:$P) -> 0 | W122: =IF(H122="USD",S122*SolCotizacion!$J$18,S122) -> 6202481.68 | X122: =ROUND(W122/(1-VLOOKUP("Total porcentaje:",ResumenCotizacion!$F:$H,3,0)),2) -> 6202481.68 | Y122: 0
A123: Catalogo principalEDUCATIVO7JQ-00448AP | B123: 7JQ-00448APEDUCATIVO | D123: Catalogo principal | E123: 7JQ-00448AP | F123: EDUCATIVO | G123: Catalogo principal | H123: USD | I123: N/A | J123: Microsoft® SQL Server Enterprise Core All Languages SA Step-up 2 Licenses SQL Svr Standard Core_Additional Product | K123: Unidad | L123: Und | M123: SA Step Up | N123: N/A | O123: N/A | P123: EES ACADEMICO | Q123: 7JQ-00448AP | R123: Suscripción Anual | S123: 1176 | T123: 1 | U123: 0 | V123: =SUMIF(ResumenCotizacion!$C:$C,E123,ResumenCotizacion!$P:$P) -> 0 | W123: =IF(H123="USD",S123*SolCotizacion!$J$18,S123) -> 4584612.48 | X123: =ROUND(W123/(1-VLOOKUP("Total porcentaje:",ResumenCotizacion!$F:$H,3,0)),2) -> 4584612.48 | Y123: 0
A124: Catalogo principalEDUCATIVO7MA-00001AP | B124: 7MA-00001APEDUCATIVO | D124: Catalogo principal | E124: 7MA-00001AP | F124: EDUCATIVO | G124: Catalogo principal | H124: USD | I124: N/A | J124: Microsoft® Project P3 Edu Subscription Per User_Additional Product | K124: Unidad | L124: Und | M124: Monthly Subscriptions | N124: N/A | O124: N/A | P124: EES ACADEMICO | Q124: 7MA-00001AP | R124: Suscripción mensual con pago anual | S124: 6 | T124: 1 | U124: 0 | V124: =SUMIF(ResumenCotizacion!$C:$C,E124,ResumenCotizacion!$P:$P) -> 0 | W124: =IF(H124="USD",S124*SolCotizacion!$J$18,S124) -> 23390.88 | X124: =ROUND(W124/(1-VLOOKUP("Total porcentaje:",ResumenCotizacion!$F:$H,3,0)),2) -> 23390.88 | Y124: 0
A125: Catalogo principalEDUCATIVO7MA-00001STU | B125: 7MA-00001STUEDUCATIVO | D125: Catalogo principal | E125: 7MA-00001STU | F125: EDUCATIVO | G125: Catalogo principal | H125: USD | I125: N/A | J125: Microsoft® Project P3 Edu Subscription Per User_Student | K125: Unidad | L125: Und | M125: Monthly Subscriptions | N125: N/A | O125: N/A | P125: EES ACADEMICO | Q125: 7MA-00001STU | R125: Suscripción mensual con pago anual | S125: 4.21 | T125: 1 | U125: 0 | V125: =SUMIF(ResumenCotizacion!$C:$C,E125,ResumenCotizacion!$P:$P) -> 0 | W125: =IF(H125="USD",S125*SolCotizacion!$J$18,S125) -> 16412.6008 | X125: =ROUND(W125/(1-VLOOKUP("Total porcentaje:",ResumenCotizacion!$F:$H,3,0)),2) -> 16412.6 | Y125: 0
A126: Catalogo principalEDUCATIVO7MA-00002AP | B126: 7MA-00002APEDUCATIVO | D126: Catalogo principal | E126: 7MA-00002AP | F126: EDUCATIVO | G126: Catalogo principal | H126: USD | I126: N/A | J126: Microsoft® Project P3 Edu Step-up Project for O365 Per User_Additional Product | K126: Unidad | L126: Und | M126: Step Up | N126: N/A | O126: N/A | P126: EES ACADEMICO | Q126: 7MA-00002AP | R126: Suscripción mensual con pago anual | S126: 3.41 | T126: 1 | U126: 0 | V126: =SUMIF(ResumenCotizacion!$C:$C,E126,ResumenCotizacion!$P:$P) -> 0 | W126: =IF(H126="USD",S126*SolCotizacion!$J$18,S126) -> 13293.8168 | X126: =ROUND(W126/(1-VLOOKUP("Total porcentaje:",ResumenCotizacion!$F:$H,3,0)),2) -> 13293.82 | Y126: 0
A127: Catalogo principalEDUCATIVO7MA-00002STU | B127: 7MA-00002STUEDUCATIVO | D127: Catalogo principal | E127: 7MA-00002STU | F127: EDUCATIVO | G127: Catalogo principal | H127: USD | I127: N/A | J127: Microsoft® Project P3 Edu Step-up Project for O365 Per User_Student | K127: Unidad | L127: Und | M127: Step Up | N127: N/A | O127: N/A | P127: EES ACADEMICO | Q127: 7MA-00002STU | R127: Suscripción mensual con pago anual | S127: 3.11 | T127: 1 | U127: 0 | V127: =SUMIF(ResumenCotizacion!$C:$C,E127,ResumenCotizacion!$P:$P) -> 0 | W127: =IF(H127="USD",S127*SolCotizacion!$J$18,S127) -> 12124.2728 | X127: =ROUND(W127/(1-VLOOKUP("Total porcentaje:",ResumenCotizacion!$F:$H,3,0)),2) -> 12124.27 | Y127: 0
A128: Catalogo principalEDUCATIVO7MA-00003AP | B128: 7MA-00003APEDUCATIVO | D128: Catalogo principal | E128: 7MA-00003AP | F128: EDUCATIVO | G128: Catalogo principal | H128: USD | I128: N/A | J128: Microsoft® Project P3 Edu Step-up Proj Online Essentials for EDU Per User_Additional Product | K128: Unidad | L128: Und | M128: Step Up | N128: N/A | O128: N/A | P128: EES ACADEMICO | Q128: 7MA-00003AP | R128: Suscripción mensual con pago anual | S128: 6 | T128: 1 | U128: 0 | V128: =SUMIF(ResumenCotizacion!$C:$C,E128,ResumenCotizacion!$P:$P) -> 0 | W128: =IF(H128="USD",S128*SolCotizacion!$J$18,S128) -> 23390.88 | X128: =ROUND(W128/(1-VLOOKUP("Total porcentaje:",ResumenCotizacion!$F:$H,3,0)),2) -> 23390.88 | Y128: 0
A129: Catalogo principalEDUCATIVO7MA-00003STU | B129: 7MA-00003STUEDUCATIVO | D129: Catalogo principal | E129: 7MA-00003STU | F129: EDUCATIVO | G129: Catalogo principal | H129: USD | I129: N/A | J129: Microsoft® Project P3 Edu Step-up Proj Online Essentials for EDU Per User_Student | K129: Unidad | L129: Und | M129: Step Up | N129: N/A | O129: N/A | P129: EES ACADEMICO | Q129: 7MA-00003STU | R129: Suscripción mensual con pago anual | S129: 4.21 | T129: 1 | U129: 0 | V129: =SUMIF(ResumenCotizacion!$C:$C,E129,ResumenCotizacion!$P:$P) -> 0 | W129: =IF(H129="USD",S129*SolCotizacion!$J$18,S129) -> 16412.6008 | X129: =ROUND(W129/(1-VLOOKUP("Total porcentaje:",ResumenCotizacion!$F:$H,3,0)),2) -> 16412.6 | Y129: 0
A130: =D130&F130&E130 -> Catalogo principalEDUCATIVO7NQ-00302AP | B130: 7NQ-00302APEDUCATIVO | D130: Catalogo principal | E130: 7NQ-00302AP | F130: EDUCATIVO | G130: Catalogo principal | H130: USD | I130: N/A | J130: Microsoft® SQL Server Standard Core All Languages License & Software Assurance 2 Licenses_Additional Product | K130: Unidad | L130: Und | M130: License/Software Assurance | N130: N/A | O130: N/A | P130: EES ACADEMICO | Q130: 7NQ-00302AP | R130: Suscripción Anual | S130: 415 | T130: 1 | U130: 0 | V130: =SUMIF(ResumenCotizacion!$C:$C,E130,ResumenCotizacion!$P:$P) -> 0 | W130: =IF(H130="USD",S130*SolCotizacion!$J$18,S130) -> 1617869.2 | X130: =ROUND(W130/(1-VLOOKUP("Total porcentaje:",ResumenCotizacion!$F:$H,3,0)),2) -> 1617869.2 | Y130: 0
A131: Catalogo principalEDUCATIVO7TR-00001AP | B131: =E131&F131 -> 7TR-00001APEDUCATIVO | D131: Catalogo principal | E131: 7TR-00001AP | F131: EDUCATIVO | G131: =D131 -> Catalogo principal | H131: USD | I131: N/A | J131: Microsoft® Project P5 Edu Subscription Per User_Additional Product | K131: Unidad | L131: Und | M131: Monthly Subscriptions | N131: N/A | O131: N/A | P131: EES ACADEMICO | Q131: 7TR-00001AP | R131: Suscripción mensual con pago anual | S131: 11 | T131: 1 | U131: 0 | V131: =SUMIF(ResumenCotizacion!$C:$C,E131,ResumenCotizacion!$P:$P) -> 0 | W131: =IF(H131="USD",S131*SolCotizacion!$J$18,S131) -> 42883.28 | X131: =ROUND(W131/(1-VLOOKUP("Total porcentaje:",ResumenCotizacion!$F:$H,3,0)),2) -> 42883.28 | Y131: =V131*X131 -> 0
A132: Catalogo principalEDUCATIVO7TR-00001STU | B132: 7TR-00001STUEDUCATIVO | D132: Catalogo principal | E132: 7TR-00001STU | F132: EDUCATIVO | G132: Catalogo principal | H132: USD | I132: N/A | J132: Microsoft® Project P5 Edu Subscription Per User_Student | K132: Unidad | L132: Und | M132: Monthly Subscriptions | N132: N/A | O132: N/A | P132: EES ACADEMICO | Q132: 7TR-00001STU | R132: Suscripción mensual con pago anual | S132: 8 | T132: 1 | U132: 0 | V132: =SUMIF(ResumenCotizacion!$C:$C,E132,ResumenCotizacion!$P:$P) -> 0 | W132: =IF(H132="USD",S132*SolCotizacion!$J$18,S132) -> 31187.84 | X132: =ROUND(W132/(1-VLOOKUP("Total porcentaje:",ResumenCotizacion!$F:$H,3,0)),2) -> 31187.84 | Y132: 0
A133: Catalogo principalEDUCATIVO7TR-00002AP | B133: 7TR-00002APEDUCATIVO | D133: Catalogo principal | E133: 7TR-00002AP | F133: EDUCATIVO | G133: Catalogo principal | H133: USD | I133: N/A | J133: Microsoft® Project P5 Edu Step-up Project P5 w/o Client Per User_Additional Product | K133: Unidad | L133: Und | M133: Step Up | N133: N/A | O133: N/A | P133: EES ACADEMICO | Q133: 7TR-00002AP | R133: Suscripción mensual con pago anual | S133: 11 | T133: 1 | U133: 0 | V133: =SUMIF(ResumenCotizacion!$C:$C,E133,ResumenCotizacion!$P:$P) -> 0 | W133: =IF(H133="USD",S133*SolCotizacion!$J$18,S133) -> 42883.28 | X133: =ROUND(W133/(1-VLOOKUP("Total porcentaje:",ResumenCotizacion!$F:$H,3,0)),2) -> 42883.28 | Y133: 0
A134: Catalogo principalEDUCATIVO7TR-00002STU | B134: 7TR-00002STUEDUCATIVO | D134: Catalogo principal | E134: 7TR-00002STU | F134: EDUCATIVO | G134: Catalogo principal | H134: USD | I134: N/A | J134: Microsoft® Project P5 Edu Step-up Project P5 w/o Client Per User_Student | K134: Unidad | L134: Und | M134: Step Up | N134: N/A | O134: N/A | P134: EES ACADEMICO | Q134: 7TR-00002STU | R134: Suscripción mensual con pago anual | S134: 8 | T134: 1 | U134: 0 | V134: =SUMIF(ResumenCotizacion!$C:$C,E134,ResumenCotizacion!$P:$P) -> 0 | W134: =IF(H134="USD",S134*SolCotizacion!$J$18,S134) -> 31187.84 | X134: =ROUND(W134/(1-VLOOKUP("Total porcentaje:",ResumenCotizacion!$F:$H,3,0)),2) -> 31187.84 | Y134: 0
A135: Catalogo principalEDUCATIVO7TR-00003AP | B135: 7TR-00003APEDUCATIVO | D135: Catalogo principal | E135: 7TR-00003AP | F135: EDUCATIVO | G135: Catalogo principal | H135: USD | I135: N/A | J135: Microsoft® Project P5 Edu Step-up Project P3 Per User_Additional Product | K135: Unidad | L135: Und | M135: Step Up | N135: N/A | O135: N/A | P135: EES ACADEMICO | Q135: 7TR-00003AP | R135: Suscripción mensual con pago anual | S135: 4.68 | T135: 1 | U135: 0 | V135: =SUMIF(ResumenCotizacion!$C:$C,E135,ResumenCotizacion!$P:$P) -> 0 | W135: =IF(H135="USD",S135*SolCotizacion!$J$18,S135) -> 18244.8864 | X135: =ROUND(W135/(1-VLOOKUP("Total porcentaje:",ResumenCotizacion!$F:$H,3,0)),2) -> 18244.89 | Y135: 0
A136: Catalogo principalEDUCATIVO7TR-00003STU | B136: 7TR-00003STUEDUCATIVO | D136: Catalogo principal | E136: 7TR-00003STU | F136: EDUCATIVO | G136: Catalogo principal | H136: USD | I136: N/A | J136: Microsoft® Project P5 Edu Step-up Project P3 Per User_Student | K136: Unidad | L136: Und | M136: Step Up | N136: N/A | O136: N/A | P136: EES ACADEMICO | Q136: 7TR-00003STU | R136: Suscripción mensual con pago anual | S136: 3.74 | T136: 1 | U136: 0 | V136: =SUMIF(ResumenCotizacion!$C:$C,E136,ResumenCotizacion!$P:$P) -> 0 | W136: =IF(H136="USD",S136*SolCotizacion!$J$18,S136) -> 14580.3152 | X136: =ROUND(W136/(1-VLOOKUP("Total porcentaje:",ResumenCotizacion!$F:$H,3,0)),2) -> 14580.32 | Y136: 0
A137: Catalogo principalEDUCATIVO7VC-00137AP | B137: 7VC-00137APEDUCATIVO | D137: Catalogo principal | E137: 7VC-00137AP | F137: EDUCATIVO | G137: Catalogo principal | H137: USD | I137: N/A | J137: Microsoft® Forefront Identity Manager All Languages License & Software Assurance Live Edition_Additional Product | K137: Unidad | L137: Und | M137: License/Software Assurance | N137: N/A | O137: N/A | P137: EES ACADEMICO | Q137: 7VC-00137AP | R137: Suscripción Anual | S137: 212 | T137: 1 | U137: 0 | V137: =SUMIF(ResumenCotizacion!$C:$C,E137,ResumenCotizacion!$P:$P) -> 0 | W137: =IF(H137="USD",S137*SolCotizacion!$J$18,S137) -> 826477.76 | X137: =ROUND(W137/(1-VLOOKUP("Total porcentaje:",ResumenCotizacion!$F:$H,3,0)),2) -> 826477.76 | Y137: 0
A138: Catalogo principalEDUCATIVO965-00002AP | B138: 965-00002APEDUCATIVO | D138: Catalogo principal | E138: 965-00002AP | F138: EDUCATIVO | G138: Catalogo principal | H138: USD | I138: N/A | J138: Microsoft® Azure Active Directory Basic Subscription Per User_Additional Product | K138: Unidad | L138: Und | M138: Monthly Subscriptions | N138: N/A | O138: N/A | P138: EES ACADEMICO | Q138: 965-00002AP | R138: Suscripción mensual con pago anual | S138: 0 | T138: 1 | U138: 0 | V138: =SUMIF(ResumenCotizacion!$C:$C,E138,ResumenCotizacion!$P:$P) -> 0 | W138: =IF(H138="USD",S138*SolCotizacion!$J$18,S138) -> 0 | X138: =ROUND(W138/(1-VLOOKUP("Total porcentaje:",ResumenCotizacion!$F:$H,3,0)),2) -> 0 | Y138: 0
A139: Catalogo principalEDUCATIVO965-00002STU | B139: 965-00002STUEDUCATIVO | D139: Catalogo principal | E139: 965-00002STU | F139: EDUCATIVO | G139: Catalogo principal | H139: USD | I139: N/A | J139: Microsoft® Azure Active Directory Basic Subscription Per User_Student | K139: Unidad | L139: Und | M139: Monthly Subscriptions | N139: N/A | O139: N/A | P139: EES ACADEMICO | Q139: 965-00002STU | R139: Suscripción mensual con pago anual | S139: 0 | T139: 1 | U139: 0 | V139: =SUMIF(ResumenCotizacion!$C:$C,E139,ResumenCotizacion!$P:$P) -> 0 | W139: =IF(H139="USD",S139*SolCotizacion!$J$18,S139) -> 0 | X139: =ROUND(W139/(1-VLOOKUP("Total porcentaje:",ResumenCotizacion!$F:$H,3,0)),2) -> 0 | Y139: 0
A140: Catalogo principalEDUCATIVO9EA-00039AP | B140: 9EA-00039APEDUCATIVO | D140: Catalogo principal | E140: 9EA-00039AP | F140: EDUCATIVO | G140: Catalogo principal | H140: USD | I140: N/A | J140: Microsoft® Win Server Datacenter Core All Languages License & Software Assurance 2 Licenses_Additional Product | K140: Unidad | L140: Und | M140: License/Software Assurance | N140: N/A | O140: N/A | P140: EES ACADEMICO | Q140: 9EA-00039AP | R140: Suscripción Anual | S140: 49 | T140: 1 | U140: 0 | V140: =SUMIF(ResumenCotizacion!$C:$C,E140,ResumenCotizacion!$P:$P) -> 0 | W140: =IF(H140="USD",S140*SolCotizacion!$J$18,S140) -> 191025.52 | X140: =ROUND(W140/(1-VLOOKUP("Total porcentaje:",ResumenCotizacion!$F:$H,3,0)),2) -> 191025.52 | Y140: 0
A141: Catalogo principalEDUCATIVO9EA-00271AP | B141: 9EA-00271APEDUCATIVO | D141: Catalogo principal | E141: 9EA-00271AP | F141: EDUCATIVO | G141: Catalogo principal | H141: USD | I141: N/A | J141: Microsoft® Win Server Datacenter Core All Languages License & Software Assurance 16 Licenses_Additional Product | K141: Unidad | L141: Und | M141: License/Software Assurance | N141: N/A | O141: N/A | P141: EES ACADEMICO | Q141: 9EA-00271AP | R141: Suscripción Anual | S141: 389 | T141: 1 | U141: 0 | V141: =SUMIF(ResumenCotizacion!$C:$C,E141,ResumenCotizacion!$P:$P) -> 0 | W141: =IF(H141="USD",S141*SolCotizacion!$J$18,S141) -> 1516508.72 | X141: =ROUND(W141/(1-VLOOKUP("Total porcentaje:",ResumenCotizacion!$F:$H,3,0)),2) -> 1516508.72 | Y141: 0
A142: Catalogo principalEDUCATIVO9EA-00274AP | B142: 9EA-00274APEDUCATIVO | D142: Catalogo principal | E142: 9EA-00274AP | F142: EDUCATIVO | G142: Catalogo principal | H142: USD | I142: N/A | J142: Microsoft® Win Server Datacenter Core All Languages SA Step-up 16 Licenses Win Server Std_Additional Product | K142: Unidad | L142: Und | M142: SA Step Up | N142: N/A | O142: N/A | P142: EES ACADEMICO | Q142: 9EA-00274AP | R142: Suscripción Anual | S142: 328 | T142: 1 | U142: 0 | V142: =SUMIF(ResumenCotizacion!$C:$C,E142,ResumenCotizacion!$P:$P) -> 0 | W142: =IF(H142="USD",S142*SolCotizacion!$J$18,S142) -> 1278701.44 | X142: =ROUND(W142/(1-VLOOKUP("Total porcentaje:",ResumenCotizacion!$F:$H,3,0)),2) -> 1278701.44 | Y142: 0
A143: Catalogo principalEDUCATIVO9EA-00279AP | B143: 9EA-00279APEDUCATIVO | D143: Catalogo principal | E143: 9EA-00279AP | F143: EDUCATIVO | G143: Catalogo principal | H143: USD | I143: N/A | J143: Microsoft® Win Server Datacenter Core All Languages SA Step-up 2 Licenses Win Server Std_Additional Product | K143: Unidad | L143: Und | M143: SA Step Up | N143: N/A | O143: N/A | P143: EES ACADEMICO | Q143: 9EA-00279AP | R143: Suscripción Anual | S143: 41 | T143: 1 | U143: 0 | V143: =SUMIF(ResumenCotizacion!$C:$C,E143,ResumenCotizacion!$P:$P) -> 0 | W143: =IF(H143="USD",S143*SolCotizacion!$J$18,S143) -> 159837.68 | X143: =ROUND(W143/(1-VLOOKUP("Total porcentaje:",ResumenCotizacion!$F:$H,3,0)),2) -> 159837.68 | Y143: 0
A144: Catalogo principalEDUCATIVO9EM-00265AP | B144: 9EM-00265APEDUCATIVO | D144: Catalogo principal | E144: 9EM-00265AP | F144: EDUCATIVO | G144: Catalogo principal | H144: USD | I144: N/A | J144: Microsoft® Win Server Standard Core All Languages License & Software Assurance 16 Licenses_Additional Product | K144: Unidad | L144: Und | M144: License/Software Assurance | N144: N/A | O144: N/A | P144: EES ACADEMICO | Q144: 9EM-00265AP | R144: Suscripción Anual | S144: 61 | T144: 1 | U144: 0 | V144: =SUMIF(ResumenCotizacion!$C:$C,E144,ResumenCotizacion!$P:$P) -> 0 | W144: =IF(H144="USD",S144*SolCotizacion!$J$18,S144) -> 237807.28 | X144: =ROUND(W144/(1-VLOOKUP("Total porcentaje:",ResumenCotizacion!$F:$H,3,0)),2) -> 237807.28 | Y144: 0
A145: Catalogo principalEDUCATIVO9EM-00562AP | B145: 9EM-00562APEDUCATIVO | D145: Catalogo principal | E145: 9EM-00562AP | F145: EDUCATIVO | G145: Catalogo principal | H145: USD | I145: N/A | J145: Microsoft® Win Server Standard Core All Languages License & Software Assurance 2 Licenses_Additional Product | K145: Unidad | L145: Und | M145: License/Software Assurance | N145: N/A | O145: N/A | P145: EES ACADEMICO | Q145: 9EM-00562AP | R145: Suscripción Anual | S145: 8 | T145: 1 | U145: 0 | V145: =SUMIF(ResumenCotizacion!$C:$C,E145,ResumenCotizacion!$P:$P) -> 0 | W145: =IF(H145="USD",S145*SolCotizacion!$J$18,S145) -> 31187.84 | X145: =ROUND(W145/(1-VLOOKUP("Total porcentaje:",ResumenCotizacion!$F:$H,3,0)),2) -> 31187.84 | Y145: 0
A146: Catalogo principalEDUCATIVO9EN-00193AP | B146: 9EN-00193APEDUCATIVO | D146: Catalogo principal | E146: 9EN-00193AP | F146: EDUCATIVO | G146: Catalogo principal | H146: USD | I146: N/A | J146: Microsoft® System Center Standard Core All Languages License & Software Assurance 16 Licenses_Additional Product | K146: Unidad | L146: Und | M146: License/Software Assurance | N146: N/A | O146: N/A | P146: EES ACADEMICO | Q146: 9EN-00193AP | R146: Suscripción Anual | S146: 93 | T146: 1 | U146: 0 | V146: =SUMIF(ResumenCotizacion!$C:$C,E146,ResumenCotizacion!$P:$P) -> 0 | W146: =IF(H146="USD",S146*SolCotizacion!$J$18,S146) -> 362558.64 | X146: =ROUND(W146/(1-VLOOKUP("Total porcentaje:",ResumenCotizacion!$F:$H,3,0)),2) -> 362558.64 | Y146: 0
A147: Catalogo principalEDUCATIVO9EN-00494AP | B147: 9EN-00494APEDUCATIVO | D147: Catalogo principal | E147: 9EN-00494AP | F147: EDUCATIVO | G147: Catalogo principal | H147: USD | I147: N/A | J147: Microsoft® System Center Standard Core All Languages License & Software Assurance 2 Licenses_Additional Product | K147: Unidad | L147: Und | M147: License/Software Assurance | N147: N/A | O147: N/A | P147: EES ACADEMICO | Q147: 9EN-00494AP | R147: Suscripción Anual | S147: 12 | T147: 1 | U147: 0 | V147: =SUMIF(ResumenCotizacion!$C:$C,E147,ResumenCotizacion!$P:$P) -> 0 | W147: =IF(H147="USD",S147*SolCotizacion!$J$18,S147) -> 46781.76 | X147: =ROUND(W147/(1-VLOOKUP("Total porcentaje:",ResumenCotizacion!$F:$H,3,0)),2) -> 46781.76 | Y147: 0
A148: Catalogo principalEDUCATIVO9EP-00037AP | B148: 9EP-00037APEDUCATIVO | D148: Catalogo principal | E148: 9EP-00037AP | F148: EDUCATIVO | G148: Catalogo principal | H148: USD | I148: N/A | J148: Microsoft® System Center Datacenter Core All Languages License & Software Assurance 2 Licenses_Additional Product | K148: Unidad | L148: Und | M148: License/Software Assurance | N148: N/A | O148: N/A | P148: EES ACADEMICO | Q148: 9EP-00037AP | R148: Suscripción Anual | S148: 32 | T148: 1 | U148: 0 | V148: =SUMIF(ResumenCotizacion!$C:$C,E148,ResumenCotizacion!$P:$P) -> 0 | W148: =IF(H148="USD",S148*SolCotizacion!$J$18,S148) -> 124751.36 | X148: =ROUND(W148/(1-VLOOKUP("Total porcentaje:",ResumenCotizacion!$F:$H,3,0)),2) -> 124751.36 | Y148: 0
A149: Catalogo principalEDUCATIVO9EP-00201AP | B149: 9EP-00201APEDUCATIVO | D149: Catalogo principal | E149: 9EP-00201AP | F149: EDUCATIVO | G149: Catalogo principal | H149: USD | I149: N/A | J149: Microsoft® System Center Datacenter Core All Languages License & Software Assurance 16 Licenses_Additional Product | K149: Unidad | L149: Und | M149: License/Software Assurance | N149: N/A | O149: N/A | P149: EES ACADEMICO | Q149: 9EP-00201AP | R149: Suscripción Anual | S149: 253 | T149: 1 | U149: 0 | V149: =SUMIF(ResumenCotizacion!$C:$C,E149,ResumenCotizacion!$P:$P) -> 0 | W149: =IF(H149="USD",S149*SolCotizacion!$J$18,S149) -> 986315.44 | X149: =ROUND(W149/(1-VLOOKUP("Total porcentaje:",ResumenCotizacion!$F:$H,3,0)),2) -> 986315.44 | Y149: 0
A150: Catalogo principalEDUCATIVO9EP-00204AP | B150: 9EP-00204APEDUCATIVO | D150: Catalogo principal | E150: 9EP-00204AP | F150: EDUCATIVO | G150: Catalogo principal | H150: USD | I150: N/A | J150: Microsoft® System Center Datacenter Core All Languages SA Step-up 16 Licenses Sys Ctr Std_Additional Product | K150: Unidad | L150: Und | M150: SA Step Up | N150: N/A | O150: N/A | P150: EES ACADEMICO | Q150: 9EP-00204AP | R150: Suscripción Anual | S150: 161 | T150: 1 | U150: 0 | V150: =SUMIF(ResumenCotizacion!$C:$C,E150,ResumenCotizacion!$P:$P) -> 0 | W150: =IF(H150="USD",S150*SolCotizacion!$J$18,S150) -> 627655.28 | X150: =ROUND(W150/(1-VLOOKUP("Total porcentaje:",ResumenCotizacion!$F:$H,3,0)),2) -> 627655.28 | Y150: 0
A151: Catalogo principalEDUCATIVO9EP-00209AP | B151: 9EP-00209APEDUCATIVO | D151: Catalogo principal | E151: 9EP-00209AP | F151: EDUCATIVO | G151: Catalogo principal | H151: USD | I151: N/A | J151: Microsoft® System Center Datacenter Core All Languages SA Step-up 2 Licenses Sys Ctr Std_Additional Product | K151: Unidad | L151: Und | M151: SA Step Up | N151: N/A | O151: N/A | P151: EES ACADEMICO | Q151: 9EP-00209AP | R151: Suscripción Anual | S151: 21 | T151: 1 | U151: 0 | V151: =SUMIF(ResumenCotizacion!$C:$C,E151,ResumenCotizacion!$P:$P) -> 0 | W151: =IF(H151="USD",S151*SolCotizacion!$J$18,S151) -> 81868.08 | X151: =ROUND(W151/(1-VLOOKUP("Total porcentaje:",ResumenCotizacion!$F:$H,3,0)),2) -> 81868.08 | Y151: 0
A152: Catalogo principalEDUCATIVO9GA-00006AP | B152: 9GA-00006APEDUCATIVO | D152: Catalogo principal | E152: 9GA-00006AP | F152: EDUCATIVO | G152: Catalogo principal | H152: USD | I152: N/A | J152: Microsoft® CIS Suite Standard Core All Languages License & Software Assurance 2 Licenses_Additional Product | K152: Unidad | L152: Und | M152: License/Software Assurance | N152: N/A | O152: N/A | P152: EES ACADEMICO | Q152: 9GA-00006AP | R152: Suscripción Anual | S152: 19 | T152: 1 | U152: 0 | V152: =SUMIF(ResumenCotizacion!$C:$C,E152,ResumenCotizacion!$P:$P) -> 0 | W152: =IF(H152="USD",S152*SolCotizacion!$J$18,S152) -> 74071.12 | X152: =ROUND(W152/(1-VLOOKUP("Total porcentaje:",ResumenCotizacion!$F:$H,3,0)),2) -> 74071.12 | Y152: 0
A153: Catalogo principalEDUCATIVO9GA-00308AP | B153: 9GA-00308APEDUCATIVO | D153: Catalogo principal | E153: 9GA-00308AP | F153: EDUCATIVO | G153: Catalogo principal | H153: USD | I153: N/A | J153: Microsoft® CIS Suite Standard Core All Languages License & Software Assurance 16 Licenses_Additional Product | K153: Unidad | L153: Und | M153: License/Software Assurance | N153: N/A | O153: N/A | P153: EES ACADEMICO | Q153: 9GA-00308AP | R153: Suscripción Anual | S153: 147 | T153: 1 | U153: 0 | V153: =SUMIF(ResumenCotizacion!$C:$C,E153,ResumenCotizacion!$P:$P) -> 0 | W153: =IF(H153="USD",S153*SolCotizacion!$J$18,S153) -> 573076.56 | X153: =ROUND(W153/(1-VLOOKUP("Total porcentaje:",ResumenCotizacion!$F:$H,3,0)),2) -> 573076.56 | Y153: 0
A154: Catalogo principalEDUCATIVO9GS-00128AP | B154: 9GS-00128APEDUCATIVO | D154: Catalogo principal | E154: 9GS-00128AP | F154: EDUCATIVO | G154: Catalogo principal | H154: USD | I154: N/A | J154: Microsoft® CIS Suite Datacenter Core All Languages License & Software Assurance 16 Licenses_Additional Product | K154: Unidad | L154: Und | M154: License/Software Assurance | N154: N/A | O154: N/A | P154: EES ACADEMICO | Q154: 9GS-00128AP | R154: Suscripción Anual | S154: 610 | T154: 1 | U154: 0 | V154: =SUMIF(ResumenCotizacion!$C:$C,E154,ResumenCotizacion!$P:$P) -> 0 | W154: =IF(H154="USD",S154*SolCotizacion!$J$18,S154) -> 2378072.8 | X154: =ROUND(W154/(1-VLOOKUP("Total porcentaje:",ResumenCotizacion!$F:$H,3,0)),2) -> 2378072.8 | Y154: 0
A155: Catalogo principalEDUCATIVO9GS-00131AP | B155: 9GS-00131APEDUCATIVO | D155: Catalogo principal | E155: 9GS-00131AP | F155: EDUCATIVO | G155: Catalogo principal | H155: USD | I155: N/A | J155: Microsoft® CIS Suite Datacenter Core All Languages SA Step-up 16 Licenses CIS Standard Core_Additional Product | K155: Unidad | L155: Und | M155: SA Step Up | N155: N/A | O155: N/A | P155: EES ACADEMICO | Q155: 9GS-00131AP | R155: Suscripción Anual | S155: 463 | T155: 1 | U155: 0 | V155: =SUMIF(ResumenCotizacion!$C:$C,E155,ResumenCotizacion!$P:$P) -> 0 | W155: =IF(H155="USD",S155*SolCotizacion!$J$18,S155) -> 1804996.24 | X155: =ROUND(W155/(1-VLOOKUP("Total porcentaje:",ResumenCotizacion!$F:$H,3,0)),2) -> 1804996.24 | Y155: 0
A156: Catalogo principalEDUCATIVO9GS-00136AP | B156: 9GS-00136APEDUCATIVO | D156: Catalogo principal | E156: 9GS-00136AP | F156: EDUCATIVO | G156: Catalogo principal | H156: USD | I156: N/A | J156: Microsoft® CIS Suite Datacenter Core All Languages SA Step-up 2 Licenses CIS Standard Core_Additional Product | K156: Unidad | L156: Und | M156: SA Step Up | N156: N/A | O156: N/A | P156: EES ACADEMICO | Q156: 9GS-00136AP | R156: Suscripción Anual | S156: 58 | T156: 1 | U156: 0 | V156: =SUMIF(ResumenCotizacion!$C:$C,E156,ResumenCotizacion!$P:$P) -> 0 | W156: =IF(H156="USD",S156*SolCotizacion!$J$18,S156) -> 226111.84 | X156: =ROUND(W156/(1-VLOOKUP("Total porcentaje:",ResumenCotizacion!$F:$H,3,0)),2) -> 226111.84 | Y156: 0
A157: Catalogo principalEDUCATIVO9GS-00495AP | B157: 9GS-00495APEDUCATIVO | D157: Catalogo principal | E157: 9GS-00495AP | F157: EDUCATIVO | G157: Catalogo principal | H157: USD | I157: N/A | J157: Microsoft® CIS Suite Datacenter Core All Languages License & Software Assurance 2 Licenses_Additional Product | K157: Unidad | L157: Und | M157: License/Software Assurance | N157: N/A | O157: N/A | P157: EES ACADEMICO | Q157: 9GS-00495AP | R157: Suscripción Anual | S157: 77 | T157: 1 | U157: 0 | V157: =SUMIF(ResumenCotizacion!$C:$C,E157,ResumenCotizacion!$P:$P) -> 0 | W157: =IF(H157="USD",S157*SolCotizacion!$J$18,S157) -> 300182.96 | X157: =ROUND(W157/(1-VLOOKUP("Total porcentaje:",ResumenCotizacion!$F:$H,3,0)),2) -> 300182.96 | Y157: 0
A158: Catalogo principalEDUCATIVO9JS-00001AP | B158: 9JS-00001APEDUCATIVO | D158: Catalogo principal | E158: 9JS-00001AP | F158: EDUCATIVO | G158: Catalogo principal | H158: USD | I158: N/A | J158: Microsoft® O365 Extra File Storage Edu Subscription Add-on Extra Storage 1GB_Additional Product | K158: Unidad | L158: Und | M158: Monthly Subscriptions | N158: N/A | O158: N/A | P158: EES ACADEMICO | Q158: 9JS-00001AP | R158: Suscripción mensual con pago anual | S158: 0.22 | T158: 1 | U158: 0 | V158: =SUMIF(ResumenCotizacion!$C:$C,E158,ResumenCotizacion!$P:$P) -> 0 | W158: =IF(H158="USD",S158*SolCotizacion!$J$18,S158) -> 857.6656 | X158: =ROUND(W158/(1-VLOOKUP("Total porcentaje:",ResumenCotizacion!$F:$H,3,0)),2) -> 857.67 | Y158: 0
A159: Catalogo principalEDUCATIVO9KS-00001AP | B159: 9KS-00001APEDUCATIVO | D159: Catalogo principal | E159: 9KS-00001AP | F159: EDUCATIVO | G159: Catalogo principal | H159: USD | I159: N/A | J159: Microsoft® EOA Exchange Server Edu Subscription Per User_Additional Product | K159: Unidad | L159: Und | M159: Monthly Subscriptions | N159: N/A | O159: N/A | P159: EES ACADEMICO | Q159: 9KS-00001AP | R159: Suscripción mensual con pago anual | S159: 1 | T159: 1 | U159: 0 | V159: =SUMIF(ResumenCotizacion!$C:$C,E159,ResumenCotizacion!$P:$P) -> 0 | W159: =IF(H159="USD",S159*SolCotizacion!$J$18,S159) -> 3898.48 | X159: =ROUND(W159/(1-VLOOKUP("Total porcentaje:",ResumenCotizacion!$F:$H,3,0)),2) -> 3898.48 | Y159: 0
A160: Catalogo principalEDUCATIVO9KS-00001STU | B160: 9KS-00001STUEDUCATIVO | D160: Catalogo principal | E160: 9KS-00001STU | F160: EDUCATIVO | G160: Catalogo principal | H160: USD | I160: N/A | J160: Microsoft® EOA Exchange Server Edu Subscription Per User_Student | K160: Unidad | L160: Und | M160: Monthly Subscriptions | N160: N/A | O160: N/A | P160: EES ACADEMICO | Q160: 9KS-00001STU | R160: Suscripción mensual con pago anual | S160: 1 | T160: 1 | U160: 0 | V160: =SUMIF(ResumenCotizacion!$C:$C,E160,ResumenCotizacion!$P:$P) -> 0 | W160: =IF(H160="USD",S160*SolCotizacion!$J$18,S160) -> 3898.48 | X160: =ROUND(W160/(1-VLOOKUP("Total porcentaje:",ResumenCotizacion!$F:$H,3,0)),2) -> 3898.48 | Y160: 0
A161: Catalogo principalEDUCATIVO9ST-00091AP | B161: 9ST-00091APEDUCATIVO | D161: Catalogo principal | E161: 9ST-00091AP | F161: EDUCATIVO | G161: Catalogo principal | H161: USD | I161: N/A | J161: Microsoft® Office Audit & Control Management All Languages License & Software Assurance_Additional Product | K161: Unidad | L161: Und | M161: License/Software Assurance | N161: N/A | O161: N/A | P161: EES ACADEMICO | Q161: 9ST-00091AP | R161: Suscripción Anual | S161: 285 | T161: 1 | U161: 0 | V161: =SUMIF(ResumenCotizacion!$C:$C,E161,ResumenCotizacion!$P:$P) -> 0 | W161: =IF(H161="USD",S161*SolCotizacion!$J$18,S161) -> 1111066.8 | X161: =ROUND(W161/(1-VLOOKUP("Total porcentaje:",ResumenCotizacion!$F:$H,3,0)),2) -> 1111066.8 | Y161: 0
A162: Catalogo principalEDUCATIVO9TX-00635FAC | B162: 9TX-00635FACEDUCATIVO | D162: Catalogo principal | E162: 9TX-00635FAC | F162: EDUCATIVO | G162: Catalogo principal | H162: USD | I162: N/A | J162: Microsoft® System Center Operations Manager All Languages License & Software Assurance Per OSE_Faculty | K162: Unidad | L162: Und | M162: License/Software Assurance | N162: N/A | O162: N/A | P162: EES ACADEMICO | Q162: 9TX-00635FAC | R162: Suscripción Anual | S162: 1.25 | T162: 1 | U162: 0 | V162: =SUMIF(ResumenCotizacion!$C:$C,E162,ResumenCotizacion!$P:$P) -> 0 | W162: =IF(H162="USD",S162*SolCotizacion!$J$18,S162) -> 4873.1 | X162: =ROUND(W162/(1-VLOOKUP("Total porcentaje:",ResumenCotizacion!$F:$H,3,0)),2) -> 4873.1 | Y162: 0
A163: Catalogo principalEDUCATIVO9TX-00635STU | B163: 9TX-00635STUEDUCATIVO | D163: Catalogo principal | E163: 9TX-00635STU | F163: EDUCATIVO | G163: Catalogo principal | H163: USD | I163: N/A | J163: Microsoft® System Center Operations Manager All Languages License & Software Assurance Per OSE_Student | K163: Unidad | L163: Und | M163: License/Software Assurance | N163: N/A | O163: N/A | P163: EES ACADEMICO | Q163: 9TX-00635STU | R163: Suscripción Anual | S163: 0.94 | T163: 1 | U163: 0 | V163: =SUMIF(ResumenCotizacion!$C:$C,E163,ResumenCotizacion!$P:$P) -> 0 | W163: =IF(H163="USD",S163*SolCotizacion!$J$18,S163) -> 3664.5712 | X163: =ROUND(W163/(1-VLOOKUP("Total porcentaje:",ResumenCotizacion!$F:$H,3,0)),2) -> 3664.57 | Y163: 0
A164: Catalogo principalEDUCATIVOAAA-43267AP | B164: AAA-43267APEDUCATIVO | D164: Catalogo principal | E164: AAA-43267AP | F164: EDUCATIVO | G164: Catalogo principal | H164: USD | I164: N/A | J164: Microsoft® Win E3 VDA Step-up Win VDA All Language_Additional Product | K164: Unidad | L164: Und | M164: Monthly Subscriptions | N164: N/A | O164: N/A | P164: EES ACADEMICO | Q164: AAA-43267AP | R164: Suscripción mensual con pago anual | S164: 0.64 | T164: 1 | U164: 0 | V164: =SUMIF(ResumenCotizacion!$C:$C,E164,ResumenCotizacion!$P:$P) -> 0 | W164: =IF(H164="USD",S164*SolCotizacion!$J$18,S164) -> 2495.0272 | X164: =ROUND(W164/(1-VLOOKUP("Total porcentaje:",ResumenCotizacion!$F:$H,3,0)),2) -> 2495.03 | Y164: 0
A165: Catalogo principalEDUCATIVOAAA-72987FACA | B165: AAA-72987FACAEDUCATIVO | D165: Catalogo principal | E165: AAA-72987FACA | F165: EDUCATIVO | G165: Catalogo principal | H165: USD | I165: N/A | J165: Microsoft® Win A3 Edu Subscription Per User_FacultyLevelA | K165: Unidad | L165: Und | M165: Monthly Subscriptions | N165: N/A | O165: N/A | P165: EES ACADEMICO | Q165: AAA-72987FACA | R165: Suscripción mensual con pago anual | S165: 2.21 | T165: 1 | U165: 0 | V165: =SUMIF(ResumenCotizacion!$C:$C,E165,ResumenCotizacion!$P:$P) -> 0 | W165: =IF(H165="USD",S165*SolCotizacion!$J$18,S165) -> 8615.6408 | X165: =ROUND(W165/(1-VLOOKUP("Total porcentaje:",ResumenCotizacion!$F:$H,3,0)),2) -> 8615.64 | Y165: 0
A166: Catalogo principalEDUCATIVOAAA-72987FACB | B166: AAA-72987FACBEDUCATIVO | D166: Catalogo principal | E166: AAA-72987FACB | F166: EDUCATIVO | G166: Catalogo principal | H166: USD | I166: N/A | J166: Microsoft® Win A3 Edu Subscription Per User_FacultyLevelB | K166: Unidad | L166: Und | M166: Monthly Subscriptions | N166: N/A | O166: N/A | P166: EES ACADEMICO | Q166: AAA-72987FACB | R166: Suscripción mensual con pago anual | S166: 2.11 | T166: 1 | U166: 0 | V166: =SUMIF(ResumenCotizacion!$C:$C,E166,ResumenCotizacion!$P:$P) -> 0 | W166: =IF(H166="USD",S166*SolCotizacion!$J$18,S166) -> 8225.7928 | X166: =ROUND(W166/(1-VLOOKUP("Total porcentaje:",ResumenCotizacion!$F:$H,3,0)),2) -> 8225.79 | Y166: 0
A167: Catalogo principalEDUCATIVOAAA-72987FACC | B167: AAA-72987FACCEDUCATIVO | D167: Catalogo principal | E167: AAA-72987FACC | F167: EDUCATIVO | G167: Catalogo principal | H167: USD | I167: N/A | J167: Microsoft® Win A3 Edu Subscription Per User_FacultyLevelC | K167: Unidad | L167: Und | M167: Monthly Subscriptions | N167: N/A | O167: N/A | P167: EES ACADEMICO | Q167: AAA-72987FACC | R167: Suscripción mensual con pago anual | S167: 2 | T167: 1 | U167: 0 | V167: =SUMIF(ResumenCotizacion!$C:$C,E167,ResumenCotizacion!$P:$P) -> 0 | W167: =IF(H167="USD",S167*SolCotizacion!$J$18,S167) -> 7796.96 | X167: =ROUND(W167/(1-VLOOKUP("Total porcentaje:",ResumenCotizacion!$F:$H,3,0)),2) -> 7796.96 | Y167: 0
A168: Catalogo principalEDUCATIVOAAA-72987FACD | B168: AAA-72987FACDEDUCATIVO | D168: Catalogo principal | E168: AAA-72987FACD | F168: EDUCATIVO | G168: Catalogo principal | H168: USD | I168: N/A | J168: Microsoft® Win A3 Edu Subscription Per User_FacultyLevelD | K168: Unidad | L168: Und | M168: Monthly Subscriptions | N168: N/A | O168: N/A | P168: EES ACADEMICO | Q168: AAA-72987FACD | R168: Suscripción mensual con pago anual | S168: 1.91 | T168: 1 | U168: 0 | V168: =SUMIF(ResumenCotizacion!$C:$C,E168,ResumenCotizacion!$P:$P) -> 0 | W168: =IF(H168="USD",S168*SolCotizacion!$J$18,S168) -> 7446.0968 | X168: =ROUND(W168/(1-VLOOKUP("Total porcentaje:",ResumenCotizacion!$F:$H,3,0)),2) -> 7446.1 | Y168: 0
A169: Catalogo principalEDUCATIVOAAA-72987STUA | B169: AAA-72987STUAEDUCATIVO | D169: Catalogo principal | E169: AAA-72987STUA | F169: EDUCATIVO | G169: Catalogo principal | H169: USD | I169: N/A | J169: Microsoft® Win A3 Edu Subscription Per User_StudentLevelA | K169: Unidad | L169: Und | M169: Monthly Subscriptions | N169: N/A | O169: N/A | P169: EES ACADEMICO | Q169: AAA-72987STUA | R169: Suscripción mensual con pago anual | S169: 1.62 | T169: 1 | U169: 0 | V169: =SUMIF(ResumenCotizacion!$C:$C,E169,ResumenCotizacion!$P:$P) -> 0 | W169: =IF(H169="USD",S169*SolCotizacion!$J$18,S169) -> 6315.5376 | X169: =ROUND(W169/(1-VLOOKUP("Total porcentaje:",ResumenCotizacion!$F:$H,3,0)),2) -> 6315.54 | Y169: 0
A170: Catalogo principalEDUCATIVOAAA-72987STUB | B170: AAA-72987STUBEDUCATIVO | D170: Catalogo principal | E170: AAA-72987STUB | F170: EDUCATIVO | G170: Catalogo principal | H170: USD | I170: N/A | J170: Microsoft® Win A3 Edu Subscription Per User_StudentLevelB | K170: Unidad | L170: Und | M170: Monthly Subscriptions | N170: N/A | O170: N/A | P170: EES ACADEMICO | Q170: AAA-72987STUB | R170: Suscripción mensual con pago anual | S170: 1.55 | T170: 1 | U170: 0 | V170: =SUMIF(ResumenCotizacion!$C:$C,E170,ResumenCotizacion!$P:$P) -> 0 | W170: =IF(H170="USD",S170*SolCotizacion!$J$18,S170) -> 6042.644 | X170: =ROUND(W170/(1-VLOOKUP("Total porcentaje:",ResumenCotizacion!$F:$H,3,0)),2) -> 6042.64 | Y170: 0
A171: Catalogo principalEDUCATIVOAAA-72987STUC | B171: AAA-72987STUCEDUCATIVO | D171: Catalogo principal | E171: AAA-72987STUC | F171: EDUCATIVO | G171: Catalogo principal | H171: USD | I171: N/A | J171: Microsoft® Win A3 Edu Subscription Per User_StudentLevelC | K171: Unidad | L171: Und | M171: Monthly Subscriptions | N171: N/A | O171: N/A | P171: EES ACADEMICO | Q171: AAA-72987STUC | R171: Suscripción mensual con pago anual | S171: 1.47 | T171: 1 | U171: 0 | V171: =SUMIF(ResumenCotizacion!$C:$C,E171,ResumenCotizacion!$P:$P) -> 0 | W171: =IF(H171="USD",S171*SolCotizacion!$J$18,S171) -> 5730.7656 | X171: =ROUND(W171/(1-VLOOKUP("Total porcentaje:",ResumenCotizacion!$F:$H,3,0)),2) -> 5730.77 | Y171: 0
A172: Catalogo principalEDUCATIVOAAA-72987STUD | B172: AAA-72987STUDEDUCATIVO | D172: Catalogo principal | E172: AAA-72987STUD | F172: EDUCATIVO | G172: Catalogo principal | H172: USD | I172: N/A | J172: Microsoft® Win A3 Edu Subscription Per User_StudentLevelD | K172: Unidad | L172: Und | M172: Monthly Subscriptions | N172: N/A | O172: N/A | P172: EES ACADEMICO | Q172: AAA-72987STUD | R172: Suscripción mensual con pago anual | S172: 1.41 | T172: 1 | U172: 0 | V172: =SUMIF(ResumenCotizacion!$C:$C,E172,ResumenCotizacion!$P:$P) -> 0 | W172: =IF(H172="USD",S172*SolCotizacion!$J$18,S172) -> 5496.8568 | X172: =ROUND(W172/(1-VLOOKUP("Total porcentaje:",ResumenCotizacion!$F:$H,3,0)),2) -> 5496.86 | Y172: 0
A173: Catalogo principalEDUCATIVOAAA-72988FACA | B173: AAA-72988FACAEDUCATIVO | D173: Catalogo principal | E173: AAA-72988FACA | F173: EDUCATIVO | G173: Catalogo principal | H173: USD | I173: N/A | J173: Microsoft® Win A5 Edu Subscription Per User_FacultyLevelA | K173: Unidad | L173: Und | M173: Monthly Subscriptions | N173: N/A | O173: N/A | P173: EES ACADEMICO | Q173: AAA-72988FACA | R173: Suscripción mensual con pago anual | S173: 4.69 | T173: 1 | U173: 0 | V173: =SUMIF(ResumenCotizacion!$C:$C,E173,ResumenCotizacion!$P:$P) -> 0 | W173: =IF(H173="USD",S173*SolCotizacion!$J$18,S173) -> 18283.8712 | X173: =ROUND(W173/(1-VLOOKUP("Total porcentaje:",ResumenCotizacion!$F:$H,3,0)),2) -> 18283.87 | Y173: 0
A174: Catalogo principalEDUCATIVOAAA-72988FACB | B174: AAA-72988FACBEDUCATIVO | D174: Catalogo principal | E174: AAA-72988FACB | F174: EDUCATIVO | G174: Catalogo principal | H174: USD | I174: N/A | J174: Microsoft® Win A5 Edu Subscription Per User_FacultyLevelB | K174: Unidad | L174: Und | M174: Monthly Subscriptions | N174: N/A | O174: N/A | P174: EES ACADEMICO | Q174: AAA-72988FACB | R174: Suscripción mensual con pago anual | S174: 4.6 | T174: 1 | U174: 0 | V174: =SUMIF(ResumenCotizacion!$C:$C,E174,ResumenCotizacion!$P:$P) -> 0 | W174: =IF(H174="USD",S174*SolCotizacion!$J$18,S174) -> 17933.008 | X174: =ROUND(W174/(1-VLOOKUP("Total porcentaje:",ResumenCotizacion!$F:$H,3,0)),2) -> 17933.01 | Y174: 0
A175: Catalogo principalEDUCATIVOAAA-72988FACC | B175: AAA-72988FACCEDUCATIVO | D175: Catalogo principal | E175: AAA-72988FACC | F175: EDUCATIVO | G175: Catalogo principal | H175: USD | I175: N/A | J175: Microsoft® Win A5 Edu Subscription Per User_FacultyLevelC | K175: Unidad | L175: Und | M175: Monthly Subscriptions | N175: N/A | O175: N/A | P175: EES ACADEMICO | Q175: AAA-72988FACC | R175: Suscripción mensual con pago anual | S175: 4.49 | T175: 1 | U175: 0 | V175: =SUMIF(ResumenCotizacion!$C:$C,E175,ResumenCotizacion!$P:$P) -> 0 | W175: =IF(H175="USD",S175*SolCotizacion!$J$18,S175) -> 17504.1752 | X175: =ROUND(W175/(1-VLOOKUP("Total porcentaje:",ResumenCotizacion!$F:$H,3,0)),2) -> 17504.18 | Y175: 0
A176: Catalogo principalEDUCATIVOAAA-72988FACD | B176: AAA-72988FACDEDUCATIVO | D176: Catalogo principal | E176: AAA-72988FACD | F176: EDUCATIVO | G176: Catalogo principal | H176: USD | I176: N/A | J176: Microsoft® Win A5 Edu Subscription Per User_FacultyLevelD | K176: Unidad | L176: Und | M176: Monthly Subscriptions | N176: N/A | O176: N/A | P176: EES ACADEMICO | Q176: AAA-72988FACD | R176: Suscripción mensual con pago anual | S176: 4.41 | T176: 1 | U176: 0 | V176: =SUMIF(ResumenCotizacion!$C:$C,E176,ResumenCotizacion!$P:$P) -> 0 | W176: =IF(H176="USD",S176*SolCotizacion!$J$18,S176) -> 17192.2968 | X176: =ROUND(W176/(1-VLOOKUP("Total porcentaje:",ResumenCotizacion!$F:$H,3,0)),2) -> 17192.3 | Y176: 0
A177: Catalogo principalEDUCATIVOAAA-72988STUA | B177: AAA-72988STUAEDUCATIVO | D177: Catalogo principal | E177: AAA-72988STUA | F177: EDUCATIVO | G177: Catalogo principal | H177: USD | I177: N/A | J177: Microsoft® Win A5 Edu Subscription Per User_StudentLevelA | K177: Unidad | L177: Und | M177: Monthly Subscriptions | N177: N/A | O177: N/A | P177: EES ACADEMICO | Q177: AAA-72988STUA | R177: Suscripción mensual con pago anual | S177: 4.68 | T177: 1 | U177: 0 | V177: =SUMIF(ResumenCotizacion!$C:$C,E177,ResumenCotizacion!$P:$P) -> 0 | W177: =IF(H177="USD",S177*SolCotizacion!$J$18,S177) -> 18244.8864 | X177: =ROUND(W177/(1-VLOOKUP("Total porcentaje:",ResumenCotizacion!$F:$H,3,0)),2) -> 18244.89 | Y177: 0
A178: Catalogo principalEDUCATIVOAAA-72988STUB | B178: AAA-72988STUBEDUCATIVO | D178: Catalogo principal | E178: AAA-72988STUB | F178: EDUCATIVO | G178: Catalogo principal | H178: USD | I178: N/A | J178: Microsoft® Win A5 Edu Subscription Per User_StudentLevelB | K178: Unidad | L178: Und | M178: Monthly Subscriptions | N178: N/A | O178: N/A | P178: EES ACADEMICO | Q178: AAA-72988STUB | R178: Suscripción mensual con pago anual | S178: 4.61 | T178: 1 | U178: 0 | V178: =SUMIF(ResumenCotizacion!$C:$C,E178,ResumenCotizacion!$P:$P) -> 0 | W178: =IF(H178="USD",S178*SolCotizacion!$J$18,S178) -> 17971.9928 | X178: =ROUND(W178/(1-VLOOKUP("Total porcentaje:",ResumenCotizacion!$F:$H,3,0)),2) -> 17971.99 | Y178: 0
A179: Catalogo principalEDUCATIVOAAA-72988STUC | B179: AAA-72988STUCEDUCATIVO | D179: Catalogo principal | E179: AAA-72988STUC | F179: EDUCATIVO | G179: Catalogo principal | H179: USD | I179: N/A | J179: Microsoft® Win A5 Edu Subscription Per User_StudentLevelC | K179: Unidad | L179: Und | M179: Monthly Subscriptions | N179: N/A | O179: N/A | P179: EES ACADEMICO | Q179: AAA-72988STUC | R179: Suscripción mensual con pago anual | S179: 4.49 | T179: 1 | U179: 0 | V179: =SUMIF(ResumenCotizacion!$C:$C,E179,ResumenCotizacion!$P:$P) -> 0 | W179: =IF(H179="USD",S179*SolCotizacion!$J$18,S179) -> 17504.1752 | X179: =ROUND(W179/(1-VLOOKUP("Total porcentaje:",ResumenCotizacion!$F:$H,3,0)),2) -> 17504.18 | Y179: 0
A180: Catalogo principalEDUCATIVOAAA-72988STUD | B180: AAA-72988STUDEDUCATIVO | D180: Catalogo principal | E180: AAA-72988STUD | F180: EDUCATIVO | G180: Catalogo principal | H180: USD | I180: N/A | J180: Microsoft® Win A5 Edu Subscription Per User_StudentLevelD | K180: Unidad | L180: Und | M180: Monthly Subscriptions | N180: N/A | O180: N/A | P180: EES ACADEMICO | Q180: AAA-72988STUD | R180: Suscripción mensual con pago anual | S180: 4.41 | T180: 1 | U180: 0 | V180: =SUMIF(ResumenCotizacion!$C:$C,E180,ResumenCotizacion!$P:$P) -> 0 | W180: =IF(H180="USD",S180*SolCotizacion!$J$18,S180) -> 17192.2968 | X180: =ROUND(W180/(1-VLOOKUP("Total porcentaje:",ResumenCotizacion!$F:$H,3,0)),2) -> 17192.3 | Y180: 0
A181: Catalogo principalEDUCATIVOAAA-72989FACA | B181: AAA-72989FACAEDUCATIVO | D181: Catalogo principal | E181: AAA-72989FACA | F181: EDUCATIVO | G181: Catalogo principal | H181: USD | I181: N/A | J181: Microsoft® Win A5 Edu Step-up Sub Win A3 Per User_FacultyLevelA | K181: Unidad | L181: Und | M181: Monthly Subscriptions | N181: N/A | O181: N/A | P181: EES ACADEMICO | Q181: AAA-72989FACA | R181: Suscripción mensual con pago anual | S181: 2.65 | T181: 1 | U181: 0 | V181: =SUMIF(ResumenCotizacion!$C:$C,E181,ResumenCotizacion!$P:$P) -> 0 | W181: =IF(H181="USD",S181*SolCotizacion!$J$18,S181) -> 10330.972 | X181: =ROUND(W181/(1-VLOOKUP("Total porcentaje:",ResumenCotizacion!$F:$H,3,0)),2) -> 10330.97 | Y181: 0
A182: Catalogo principalEDUCATIVOAAA-72989FACB | B182: AAA-72989FACBEDUCATIVO | D182: Catalogo principal | E182: AAA-72989FACB | F182: EDUCATIVO | G182: Catalogo principal | H182: USD | I182: N/A | J182: Microsoft® Win A5 Edu Step-up Sub Win A3 Per User_FacultyLevelB | K182: Unidad | L182: Und | M182: Monthly Subscriptions | N182: N/A | O182: N/A | P182: EES ACADEMICO | Q182: AAA-72989FACB | R182: Suscripción mensual con pago anual | S182: 2.65 | T182: 1 | U182: 0 | V182: =SUMIF(ResumenCotizacion!$C:$C,E182,ResumenCotizacion!$P:$P) -> 0 | W182: =IF(H182="USD",S182*SolCotizacion!$J$18,S182) -> 10330.972 | X182: =ROUND(W182/(1-VLOOKUP("Total porcentaje:",ResumenCotizacion!$F:$H,3,0)),2) -> 10330.97 | Y182: 0
A183: Catalogo principalEDUCATIVOAAA-72989FACC | B183: AAA-72989FACCEDUCATIVO | D183: Catalogo principal | E183: AAA-72989FACC | F183: EDUCATIVO | G183: Catalogo principal | H183: USD | I183: N/A | J183: Microsoft® Win A5 Edu Step-up Sub Win A3 Per User_FacultyLevelC | K183: Unidad | L183: Und | M183: Monthly Subscriptions | N183: N/A | O183: N/A | P183: EES ACADEMICO | Q183: AAA-72989FACC | R183: Suscripción mensual con pago anual | S183: 2.65 | T183: 1 | U183: 0 | V183: =SUMIF(ResumenCotizacion!$C:$C,E183,ResumenCotizacion!$P:$P) -> 0 | W183: =IF(H183="USD",S183*SolCotizacion!$J$18,S183) -> 10330.972 | X183: =ROUND(W183/(1-VLOOKUP("Total porcentaje:",ResumenCotizacion!$F:$H,3,0)),2) -> 10330.97 | Y183: 0
A184: Catalogo principalEDUCATIVOAAA-72989FACD | B184: AAA-72989FACDEDUCATIVO | D184: Catalogo principal | E184: AAA-72989FACD | F184: EDUCATIVO | G184: Catalogo principal | H184: USD | I184: N/A | J184: Microsoft® Win A5 Edu Step-up Sub Win A3 Per User_FacultyLevelD | K184: Unidad | L184: Und | M184: Monthly Subscriptions | N184: N/A | O184: N/A | P184: EES ACADEMICO | Q184: AAA-72989FACD | R184: Suscripción mensual con pago anual | S184: 2.65 | T184: 1 | U184: 0 | V184: =SUMIF(ResumenCotizacion!$C:$C,E184,ResumenCotizacion!$P:$P) -> 0 | W184: =IF(H184="USD",S184*SolCotizacion!$J$18,S184) -> 10330.972 | X184: =ROUND(W184/(1-VLOOKUP("Total porcentaje:",ResumenCotizacion!$F:$H,3,0)),2) -> 10330.97 | Y184: 0
A185: Catalogo principalEDUCATIVOAAA-72989STUA | B185: AAA-72989STUAEDUCATIVO | D185: Catalogo principal | E185: AAA-72989STUA | F185: EDUCATIVO | G185: Catalogo principal | H185: USD | I185: N/A | J185: Microsoft® Win A5 Edu Step-up Sub Win A3 Per User_StudentLevelA | K185: Unidad | L185: Und | M185: Monthly Subscriptions | N185: N/A | O185: N/A | P185: EES ACADEMICO | Q185: AAA-72989STUA | R185: Suscripción mensual con pago anual | S185: 3.2 | T185: 1 | U185: 0 | V185: =SUMIF(ResumenCotizacion!$C:$C,E185,ResumenCotizacion!$P:$P) -> 0 | W185: =IF(H185="USD",S185*SolCotizacion!$J$18,S185) -> 12475.136 | X185: =ROUND(W185/(1-VLOOKUP("Total porcentaje:",ResumenCotizacion!$F:$H,3,0)),2) -> 12475.14 | Y185: 0
A186: Catalogo principalEDUCATIVOAAA-72989STUB | B186: AAA-72989STUBEDUCATIVO | D186: Catalogo principal | E186: AAA-72989STUB | F186: EDUCATIVO | G186: Catalogo principal | H186: USD | I186: N/A | J186: Microsoft® Win A5 Edu Step-up Sub Win A3 Per User_StudentLevelB | K186: Unidad | L186: Und | M186: Monthly Subscriptions | N186: N/A | O186: N/A | P186: EES ACADEMICO | Q186: AAA-72989STUB | R186: Suscripción mensual con pago anual | S186: 3.2 | T186: 1 | U186: 0 | V186: =SUMIF(ResumenCotizacion!$C:$C,E186,ResumenCotizacion!$P:$P) -> 0 | W186: =IF(H186="USD",S186*SolCotizacion!$J$18,S186) -> 12475.136 | X186: =ROUND(W186/(1-VLOOKUP("Total porcentaje:",ResumenCotizacion!$F:$H,3,0)),2) -> 12475.14 | Y186: 0
A187: Catalogo principalEDUCATIVOAAA-72989STUC | B187: AAA-72989STUCEDUCATIVO | D187: Catalogo principal | E187: AAA-72989STUC | F187: EDUCATIVO | G187: Catalogo principal | H187: USD | I187: N/A | J187: Microsoft® Win A5 Edu Step-up Sub Win A3 Per User_StudentLevelC | K187: Unidad | L187: Und | M187: Monthly Subscriptions | N187: N/A | O187: N/A | P187: EES ACADEMICO | Q187: AAA-72989STUC | R187: Suscripción mensual con pago anual | S187: 3.15 | T187: 1 | U187: 0 | V187: =SUMIF(ResumenCotizacion!$C:$C,E187,ResumenCotizacion!$P:$P) -> 0 | W187: =IF(H187="USD",S187*SolCotizacion!$J$18,S187) -> 12280.212 | X187: =ROUND(W187/(1-VLOOKUP("Total porcentaje:",ResumenCotizacion!$F:$H,3,0)),2) -> 12280.21 | Y187: 0
A188: Catalogo principalEDUCATIVOAAA-72989STUD | B188: AAA-72989STUDEDUCATIVO | D188: Catalogo principal | E188: AAA-72989STUD | F188: EDUCATIVO | G188: Catalogo principal | H188: USD | I188: N/A | J188: Microsoft® Win A5 Edu Step-up Sub Win A3 Per User_StudentLevelD | K188: Unidad | L188: Und | M188: Monthly Subscriptions | N188: N/A | O188: N/A | P188: EES ACADEMICO | Q188: AAA-72989STUD | R188: Suscripción mensual con pago anual | S188: 3.13 | T188: 1 | U188: 0 | V188: =SUMIF(ResumenCotizacion!$C:$C,E188,ResumenCotizacion!$P:$P) -> 0 | W188: =IF(H188="USD",S188*SolCotizacion!$J$18,S188) -> 12202.2424 | X188: =ROUND(W188/(1-VLOOKUP("Total porcentaje:",ResumenCotizacion!$F:$H,3,0)),2) -> 12202.24 | Y188: 0
A189: Catalogo principalEDUCATIVOAAA-72990SUB | B189: AAA-72990SUBEDUCATIVO | D189: Catalogo principal | E189: AAA-72990SUB | F189: EDUCATIVO | G189: Catalogo principal | H189: USD | I189: N/A | J189: Microsoft® Win A5 Edu Subscription Student Use Benefit Per User | K189: Unidad | L189: Und | M189: Monthly Subscriptions | N189: N/A | O189: N/A | P189: EES ACADEMICO | Q189: AAA-72990SUB | R189: Suscripción mensual con pago anual | S189: 0 | T189: 1 | U189: 0 | V189: =SUMIF(ResumenCotizacion!$C:$C,E189,ResumenCotizacion!$P:$P) -> 0 | W189: =IF(H189="USD",S189*SolCotizacion!$J$18,S189) -> 0 | X189: =ROUND(W189/(1-VLOOKUP("Total porcentaje:",ResumenCotizacion!$F:$H,3,0)),2) -> 0 | Y189: 0
A190: Catalogo principalEDUCATIVOAAA-73001SUB | B190: AAA-73001SUBEDUCATIVO | D190: Catalogo principal | E190: AAA-73001SUB | F190: EDUCATIVO | G190: Catalogo principal | H190: USD | I190: N/A | J190: Microsoft® Win A3 Edu Subscription Student Use Benefit Per User | K190: Unidad | L190: Und | M190: Monthly Subscriptions | N190: N/A | O190: N/A | P190: EES ACADEMICO | Q190: AAA-73001SUB | R190: Suscripción mensual con pago anual | S190: 0 | T190: 1 | U190: 0 | V190: =SUMIF(ResumenCotizacion!$C:$C,E190,ResumenCotizacion!$P:$P) -> 0 | W190: =IF(H190="USD",S190*SolCotizacion!$J$18,S190) -> 0 | X190: =ROUND(W190/(1-VLOOKUP("Total porcentaje:",ResumenCotizacion!$F:$H,3,0)),2) -> 0 | Y190: 0
A191: Catalogo principalEDUCATIVOAAD-38391FACA | B191: AAD-38391FACAEDUCATIVO | D191: Catalogo principal | E191: AAD-38391FACA | F191: EDUCATIVO | G191: Catalogo principal | H191: USD | I191: N/A | J191: Microsoft® M365 A3 Unified Edu Subscription Per User_FacultyLevelA | K191: Unidad | L191: Und | M191: Monthly Subscriptions | N191: N/A | O191: N/A | P191: EES ACADEMICO | Q191: AAD-38391FACA | R191: Suscripción mensual con pago anual | S191: 5.76 | T191: 1 | U191: 0 | V191: =SUMIF(ResumenCotizacion!$C:$C,E191,ResumenCotizacion!$P:$P) -> 0 | W191: =IF(H191="USD",S191*SolCotizacion!$J$18,S191) -> 22455.2448 | X191: =ROUND(W191/(1-VLOOKUP("Total porcentaje:",ResumenCotizacion!$F:$H,3,0)),2) -> 22455.24 | Y191: 0
A192: Catalogo principalEDUCATIVOAAD-38391FACB | B192: AAD-38391FACBEDUCATIVO | D192: Catalogo principal | E192: AAD-38391FACB | F192: EDUCATIVO | G192: Catalogo principal | H192: USD | I192: N/A | J192: Microsoft® M365 A3 Unified Edu Subscription Per User_FacultyLevelB | K192: Unidad | L192: Und | M192: Monthly Subscriptions | N192: N/A | O192: N/A | P192: EES ACADEMICO | Q192: AAD-38391FACB | R192: Suscripción mensual con pago anual | S192: 5.37 | T192: 1 | U192: 0 | V192: =SUMIF(ResumenCotizacion!$C:$C,E192,ResumenCotizacion!$P:$P) -> 0 | W192: =IF(H192="USD",S192*SolCotizacion!$J$18,S192) -> 20934.8376 | X192: =ROUND(W192/(1-VLOOKUP("Total porcentaje:",ResumenCotizacion!$F:$H,3,0)),2) -> 20934.84 | Y192: 0
A193: Catalogo principalEDUCATIVOAAD-38391FACC | B193: AAD-38391FACCEDUCATIVO | D193: Catalogo principal | E193: AAD-38391FACC | F193: EDUCATIVO | G193: Catalogo principal | H193: USD | I193: N/A | J193: Microsoft® M365 A3 Unified Edu Subscription Per User_FacultyLevelC | K193: Unidad | L193: Und | M193: Monthly Subscriptions | N193: N/A | O193: N/A | P193: EES ACADEMICO | Q193: AAD-38391FACC | R193: Suscripción mensual con pago anual | S193: 4.96 | T193: 1 | U193: 0 | V193: =SUMIF(ResumenCotizacion!$C:$C,E193,ResumenCotizacion!$P:$P) -> 0 | W193: =IF(H193="USD",S193*SolCotizacion!$J$18,S193) -> 19336.4608 | X193: =ROUND(W193/(1-VLOOKUP("Total porcentaje:",ResumenCotizacion!$F:$H,3,0)),2) -> 19336.46 | Y193: 0
A194: =D194&F194&E194 -> Catalogo principalEDUCATIVOAAD-38391FACD | B194: AAD-38391FACDEDUCATIVO | D194: Catalogo principal | E194: AAD-38391FACD | F194: EDUCATIVO | G194: Catalogo principal | H194: USD | I194: N/A | J194: Microsoft® M365 A3 Unified Edu Subscription Per User_FacultyLevelD | K194: Unidad | L194: Und | M194: Monthly Subscriptions | N194: N/A | O194: N/A | P194: EES ACADEMICO | Q194: AAD-38391FACD | R194: Suscripción mensual con pago anual | S194: 4.68 | T194: 1 | U194: 0 | V194: =SUMIF(ResumenCotizacion!$C:$C,E194,ResumenCotizacion!$P:$P) -> 0 | W194: =IF(H194="USD",S194*SolCotizacion!$J$18,S194) -> 18244.8864 | X194: =ROUND(W194/(1-VLOOKUP("Total porcentaje:",ResumenCotizacion!$F:$H,3,0)),2) -> 18244.89 | Y194: 0
A195: Catalogo principalEDUCATIVOAAD-38391STUA | B195: =E195&F195 -> AAD-38391STUAEDUCATIVO | D195: Catalogo principal | E195: AAD-38391STUA | F195: EDUCATIVO | G195: =D195 -> Catalogo principal | H195: USD | I195: N/A | J195: Microsoft® M365 A3 Unified Edu Subscription Per User_StudentLevelA | K195: Unidad | L195: Und | M195: Monthly Subscriptions | N195: N/A | O195: N/A | P195: EES ACADEMICO | Q195: AAD-38391STUA | R195: Suscripción mensual con pago anual | S195: 4.24 | T195: 1 | U195: 0 | V195: =SUMIF(ResumenCotizacion!$C:$C,E195,ResumenCotizacion!$P:$P) -> 0 | W195: =IF(H195="USD",S195*SolCotizacion!$J$18,S195) -> 16529.5552 | X195: =ROUND(W195/(1-VLOOKUP("Total porcentaje:",ResumenCotizacion!$F:$H,3,0)),2) -> 16529.56 | Y195: =V195*X195 -> 0
A196: Catalogo principalEDUCATIVOAAD-38391STUB | B196: AAD-38391STUBEDUCATIVO | D196: Catalogo principal | E196: AAD-38391STUB | F196: EDUCATIVO | G196: Catalogo principal | H196: USD | I196: N/A | J196: Microsoft® M365 A3 Unified Edu Subscription Per User_StudentLevelB | K196: Unidad | L196: Und | M196: Monthly Subscriptions | N196: N/A | O196: N/A | P196: EES ACADEMICO | Q196: AAD-38391STUB | R196: Suscripción mensual con pago anual | S196: 3.97 | T196: 1 | U196: 0 | V196: =SUMIF(ResumenCotizacion!$C:$C,E196,ResumenCotizacion!$P:$P) -> 0 | W196: =IF(H196="USD",S196*SolCotizacion!$J$18,S196) -> 15476.9656 | X196: =ROUND(W196/(1-VLOOKUP("Total porcentaje:",ResumenCotizacion!$F:$H,3,0)),2) -> 15476.97 | Y196: 0
A197: Catalogo principalEDUCATIVOAAD-38391STUC | B197: AAD-38391STUCEDUCATIVO | D197: Catalogo principal | E197: AAD-38391STUC | F197: EDUCATIVO | G197: Catalogo principal | H197: USD | I197: N/A | J197: Microsoft® M365 A3 Unified Edu Subscription Per User_StudentLevelC | K197: Unidad | L197: Und | M197: Monthly Subscriptions | N197: N/A | O197: N/A | P197: EES ACADEMICO | Q197: AAD-38391STUC | R197: Suscripción mensual con pago anual | S197: 3.67 | T197: 1 | U197: 0 | V197: =SUMIF(ResumenCotizacion!$C:$C,E197,ResumenCotizacion!$P:$P) -> 0 | W197: =IF(H197="USD",S197*SolCotizacion!$J$18,S197) -> 14307.4216 | X197: =ROUND(W197/(1-VLOOKUP("Total porcentaje:",ResumenCotizacion!$F:$H,3,0)),2) -> 14307.42 | Y197: 0
A198: Catalogo principalEDUCATIVOAAD-38391STUD | B198: AAD-38391STUDEDUCATIVO | D198: Catalogo principal | E198: AAD-38391STUD | F198: EDUCATIVO | G198: Catalogo principal | H198: USD | I198: N/A | J198: Microsoft® M365 A3 Unified Edu Subscription Per User_StudentLevelD | K198: Unidad | L198: Und | M198: Monthly Subscriptions | N198: N/A | O198: N/A | P198: EES ACADEMICO | Q198: AAD-38391STUD | R198: Suscripción mensual con pago anual | S198: 3.46 | T198: 1 | U198: 0 | V198: =SUMIF(ResumenCotizacion!$C:$C,E198,ResumenCotizacion!$P:$P) -> 0 | W198: =IF(H198="USD",S198*SolCotizacion!$J$18,S198) -> 13488.7408 | X198: =ROUND(W198/(1-VLOOKUP("Total porcentaje:",ResumenCotizacion!$F:$H,3,0)),2) -> 13488.74 | Y198: 0
A199: Catalogo principalEDUCATIVOAAD-38392FACA | B199: AAD-38392FACAEDUCATIVO | D199: Catalogo principal | E199: AAD-38392FACA | F199: EDUCATIVO | G199: Catalogo principal | H199: USD | I199: N/A | J199: Microsoft® M365 A3 Unified Edu Subscription for CCAL Per User_FacultyLevelA | K199: Unidad | L199: Und | M199: Monthly Subscriptions | N199: N/A | O199: N/A | P199: EES ACADEMICO | Q199: AAD-38392FACA | R199: Suscripción mensual con pago anual | S199: 4.92 | T199: 1 | U199: 0 | V199: =SUMIF(ResumenCotizacion!$C:$C,E199,ResumenCotizacion!$P:$P) -> 0 | W199: =IF(H199="USD",S199*SolCotizacion!$J$18,S199) -> 19180.5216 | X199: =ROUND(W199/(1-VLOOKUP("Total porcentaje:",ResumenCotizacion!$F:$H,3,0)),2) -> 19180.52 | Y199: 0
A200: Catalogo principalEDUCATIVOAAD-38392FACB | B200: AAD-38392FACBEDUCATIVO | D200: Catalogo principal | E200: AAD-38392FACB | F200: EDUCATIVO | G200: Catalogo principal | H200: USD | I200: N/A | J200: Microsoft® M365 A3 Unified Edu Subscription for CCAL Per User_FacultyLevelB | K200: Unidad | L200: Und | M200: Monthly Subscriptions | N200: N/A | O200: N/A | P200: EES ACADEMICO | Q200: AAD-38392FACB | R200: Suscripción mensual con pago anual | S200: 4.59 | T200: 1 | U200: 0 | V200: =SUMIF(ResumenCotizacion!$C:$C,E200,ResumenCotizacion!$P:$P) -> 0 | W200: =IF(H200="USD",S200*SolCotizacion!$J$18,S200) -> 17894.0232 | X200: =ROUND(W200/(1-VLOOKUP("Total porcentaje:",ResumenCotizacion!$F:$H,3,0)),2) -> 17894.02 | Y200: 0
... 2050 more rows

Sheet tempListas (hidden)
A1: categoria
A2: EDUCATIVO
A3: ENTERPRISE
A4: ENTERPRISE ENTIDADES NO CUALIFICADAS
A5: CANAL
A6: Microsoft Soporte Premier
